Body Name,Date Paid,Transaction Number,Amount,Supplier Name,Supplier Type,Expense Area,Cost Centre Description,Expense Type
Cambridgeshire County Council,03-Oct-22,51301819611,"-1,281.91",CARMELCREST LIMITED,COMPANY,Kitchen Ventilation,Kitchen Ventilation,"New Construction, Conversion and Renovation"
Cambridgeshire County Council,03-Oct-22,51301861589,508.40,Redacted Personal Data,FOSTER PARENT,Fostering,FCP allowances,Adoption Allowances
Cambridgeshire County Council,03-Oct-22,51301851087,528.00,COVERGOLD LTD,TRADE SUPPLIER,Libraries - Support,Support - Business Support,Specialist Equipment For Service Delivery
Cambridgeshire County Council,03-Oct-22,51301854574,535.63,G & S HUTCHINSON LTD,COMPANY,SEN Pupil Adaptations,SEN Pupil Adaptations,Buildings - Mechanical and Electrical
Cambridgeshire County Council,03-Oct-22,51301861671,537.60,PANTHER TAXIS LTD,TRADE SUPPLIER,LD - City Locality - Staffing,LD - City - Staffing,Social Care Transport
Cambridgeshire County Council,03-Oct-22,51301849109,538.37,CAMBS COMPRESSOR ENGINEERING LTD,TRADE SUPPLIER,Highways General,Highways,Specialist Equipment For Service Delivery
Cambridgeshire County Council,03-Oct-22,51301861708,546.00,ADAMS CABS,TRADE SUPPLIER,LD - South Locality - Cost of Care,LD - South Cambs - Care,Social Care Transport
Cambridgeshire County Council,03-Oct-22,51301852190,547.80,TEACHING PERSONNEL LTD,TRADE SUPPLIER,Schools Partnership Service,Virtual School LACPP Financing,Mandatory Student Awards
Cambridgeshire County Council,03-Oct-22,51301861681,557.40,PANTHER TAXIS LTD,TRADE SUPPLIER,LD - Young Adults Team,LD - Young Adults - Care,Social Care Transport
Cambridgeshire County Council,03-Oct-22,51301861773,567.56,HOLDSWORTH,TRADE SUPPLIER,Grafham Water,Grafham Water Centre,Catering Provisions
Cambridgeshire County Council,03-Oct-22,51301861588,575.00,Redacted Personal Data,INDIVIDUAL,Children's Disability Direct Payments,CSC Direct Payments,Direct Payments
Cambridgeshire County Council,03-Oct-22,51301847706,580.70,RSP LTD,TRADE SUPPLIER,Safeguarding East & South Cambs and Cambridge,Family Safeguarding East & South Cambs and Cambridge,Parents Visiting Expenses
Cambridgeshire County Council,03-Oct-22,51301861453,597.60,MA EDUCATION LTD,EDUCATION,EY - Workforce Development,EY Staff CPD,Staff Training & Development
Cambridgeshire County Council,03-Oct-22,51301849315,615.24,Select Apointments Norwich,TRADE SUPPLIER,Finance Operations,Covid - Debt Team,Agency Staff
Cambridgeshire County Council,03-Oct-22,51301849317,615.24,Select Apointments Norwich,TRADE SUPPLIER,LA Finance Operations,Debt Team,Agency Staff
Cambridgeshire County Council,03-Oct-22,51301861770,622.89,HOLDSWORTH,TRADE SUPPLIER,Grafham Water,Grafham Water Centre,Catering Provisions
Cambridgeshire County Council,03-Oct-22,51301861836,624.00,Redacted Personal Data,PARENT/GUARDIAN,Children's Disability Direct Payments,CSC Direct Payments,Direct Payments
Cambridgeshire County Council,03-Oct-22,51301861737,625.00,Aqua Park Grafham Ltd,COMPANY,Grafham Water,Grafham Water Centre,Professional Fees and Hired Services
Cambridgeshire County Council,03-Oct-22,51301861670,645.12,PANTHER TAXIS LTD,TRADE SUPPLIER,LD - City Locality - Staffing,LD - City - Staffing,Social Care Transport
Cambridgeshire County Council,03-Oct-22,51301850560,660.00,C JACKSON & SONS (JACKSON ENVIRONMENTAL LTD),COMPANY,Health & Safety,POD - Health & Safety,Professional Fees and Hired Services
Cambridgeshire County Council,03-Oct-22,51301850561,661.02,C JACKSON & SONS (JACKSON ENVIRONMENTAL LTD),COMPANY,Health & Safety,POD - Health & Safety,Professional Fees and Hired Services
Cambridgeshire County Council,03-Oct-22,51301850959,666.50,Alexandra H Hemus t/a Float Your Boat,SOLETRADER,Grafham Water,Grafham Water Centre,Catering Provisions
Cambridgeshire County Council,03-Oct-22,51301861667,669.60,PANTHER TAXIS LTD,TRADE SUPPLIER,LD - East Locality - Cost of Care,LD - East Cambs - Care,Social Care Transport
Cambridgeshire County Council,03-Oct-22,51301861809,672.00,All Clean and Clear,COMPANY,OPMH - Hunts & Fens,Older People Mental Health Hunts,Other Care Provide Payments and Contributions
Cambridgeshire County Council,03-Oct-22,51301861690,685.00,Cambridge and Huntingdon Airport Travel Service,COMPANY,LD - South Locality - Cost of Care,LD - South Cambs - Care,Social Care Transport
Cambridgeshire County Council,03-Oct-22,51301861677,686.40,PANTHER TAXIS LTD,TRADE SUPPLIER,LD - City Locality - Cost of Care,LD - City - Care,Social Care Transport
Cambridgeshire County Council,03-Oct-22,51301851286,694.50,SC Electrical Contracting Ltd,COMPANY,County Farms,County Farms,County Farms Maintenance unplanned
Cambridgeshire County Council,03-Oct-22,51301861701,722.40,ASH SCHOOL TRANSPORT,TRADE SUPPLIER,LD - Hunts Locality - Cost of Care,LD - Huntingdonshire - Care,Social Care Transport
Cambridgeshire County Council,03-Oct-22,51301849322,739.20,Opus People Solutions,TRADE SUPPLIER,AD IT & Digital Services,ITDS,Agency Staff
Cambridgeshire County Council,03-Oct-22,51301861715,744.12,ADAMS CABS,TRADE SUPPLIER,LD - South Locality - Cost of Care,LD - South Cambs - Care,Social Care Transport
Cambridgeshire County Council,03-Oct-22,51301861685,745.20,PANTHER TAXIS LTD,TRADE SUPPLIER,LD - South Locality - Cost of Care,LD - South Cambs - Care,Social Care Transport
Cambridgeshire County Council,03-Oct-22,51301861603,764.57,ATHENA HOUSING AND SUPPORT LIMITED,CARE ESTABLISHMENT,Unaccompanied Asylum Seeking Children,Unaccompanied Asylum Seeking Children >18 Leaving Care,Living Spport Grants - Financial Assistance 18+
Cambridgeshire County Council,03-Oct-22,51301861658,766.87,Master Cars,COMPANY,LD - Hunts Locality - Cost of Care,LD - Huntingdonshire - Care,Social Care Transport
Cambridgeshire County Council,03-Oct-22,51301861665,775.24,PANTHER TAXIS LTD,TRADE SUPPLIER,LD - South Locality - Cost of Care,LD - South Cambs - Care,Social Care Transport
Cambridgeshire County Council,03-Oct-22,51301861726,778.80,Blossoms Play Therapy,EDUCATION,SEND Specialist Services - Sensory Support,Sensory Support 0 - 25,Educational equipment
Cambridgeshire County Council,03-Oct-22,51301861702,780.00,ALANS TAXI LTD,TRADE SUPPLIER,LD - East Locality - Cost of Care,LD - East Cambs - Care,Social Care Transport
Cambridgeshire County Council,03-Oct-22,51301861720,784.80,Sam Private Hire,COMPANY,LAC Transport,LAC Transport  - Contact Visits,Social Care Transport
Cambridgeshire County Council,03-Oct-22,51301851108,840.00,Cambridge Electric Transport Ltd,COMPANY,Travel Plan,Smart Journeys,Advertising / Publicity (non Recruitment)
Cambridgeshire County Council,03-Oct-22,51301861639,845.37,Leicester YMCA,CARE ESTABLISHMENT,Unaccompanied Asylum Seeking Children,Unaccompanied Asylum Seeking Children >18 Leaving Care,Living Spport Grants - Financial Assistance 18+
Cambridgeshire County Council,03-Oct-22,51301854599,863.50,KIDS R US @ ST MATTHEWS,LOCAL CLUBS & GROUPS,Early Years Specialist Support,Procurement - TA Inclusion & Access (EARLY YEARS),Independent School Placements
Cambridgeshire County Council,03-Oct-22,51301847500,916.20,RSP LTD,TRADE SUPPLIER,Safeguarding Hunts and Fenland,Family Safeguarding Hunts and Fenland,Concessions - payments to transport operators
Cambridgeshire County Council,03-Oct-22,51301850958,930.00,D&A CREATIVE LIMITED,TRADE SUPPLIER,GCP - Chisholm Trail cycle links,GCP - Chisholm Trail cycle links,Construction - External Professional Fees
Cambridgeshire County Council,03-Oct-22,51301852944,942.00,KIDS CLUB ELY,NURSERY,Early Years Specialist Support,Procurement - TA Inclusion & Access (EARLY YEARS),Independent School Placements
Cambridgeshire County Council,03-Oct-22,51301861837,950.00,Redacted Personal Data,PARENT/GUARDIAN,Children's Disability Direct Payments,CSC Direct Payments,Direct Payments
Cambridgeshire County Council,03-Oct-22,51301861689,967.50,Cambridge and Huntingdon Airport Travel Service,COMPANY,LD - Young Adults Staffing,LD - Young Adults - Staffing,Social Care Transport
Cambridgeshire County Council,03-Oct-22,51301861666,978.00,PANTHER TAXIS LTD,TRADE SUPPLIER,LD - South Locality - Cost of Care,LD - South Cambs - Care,Social Care Transport
Cambridgeshire County Council,03-Oct-22,51301861693,980.55,Cambridge and Huntingdon Airport Travel Service,COMPANY,Early Years Service - HAF,HAF Grant,Home to School - Contract
Cambridgeshire County Council,03-Oct-22,51301850915,"1,000.00",Wesley Methodist Church,CHARITY,Youth and Community Services,YS - National Citizen Service,Educational visits
Cambridgeshire County Council,03-Oct-22,51301838867,"1,001.98",CARMELCREST LIMITED,COMPANY,"School Condition, Maintenance & Suitability","School Condition, Maintenance & Suitability","New Construction, Conversion and Renovation"
Cambridgeshire County Council,03-Oct-22,51301861678,"1,041.36",PANTHER TAXIS LTD,TRADE SUPPLIER,LD - South Locality - Cost of Care,LD - South Cambs - Care,Social Care Transport
Cambridgeshire County Council,03-Oct-22,51301861725,"1,062.00",FLEXESERVICES LIMITED,TRADE SUPPLIER,LD - Hunts Locality - Cost of Care,LD - Huntingdonshire - Care,Social Care Transport
Cambridgeshire County Council,03-Oct-22,51301861839,"1,080.00",Redacted Personal Data,INDIVIDUAL,Children's Disability Direct Payments,CSC Direct Payments,Direct Payments
Cambridgeshire County Council,03-Oct-22,51301851405,"1,092.00",SMILE PUBLISHING LTD,TRADE SUPPLIER,Domestic Violence & Sexual Violence,MHCLG Grant,Advertising / Publicity (non Recruitment)
Cambridgeshire County Council,03-Oct-22,51301850596,"1,113.96",TUSHINGHAM SAILS LIMITED,TRADE SUPPLIER,Grafham Water,Grafham Water Centre,Educational equipment
Cambridgeshire County Council,03-Oct-22,51301852945,"1,115.40",THE URBAN ENGINEERING STUDIO,TRADE SUPPLIER,Growth & Development,Quality Charter funding,Professional Fees and Hired Services
Cambridgeshire County Council,03-Oct-22,51301852590,"1,133.35",ENTERPRISE RENT-A-CAR UK LTD,TRADE SUPPLIER,Corporate Offices,Pool Cars,Leased Vehicle Costs
Cambridgeshire County Council,03-Oct-22,51301861688,"1,161.00",Cambridge and Huntingdon Airport Travel Service,COMPANY,LD - City Locality - Staffing,LD - City - Staffing,Social Care Transport
Cambridgeshire County Council,03-Oct-22,51301861657,"1,165.78",Master Cars,COMPANY,LD - Hunts Locality - Cost of Care,LD - Huntingdonshire - Care,Social Care Transport
Cambridgeshire County Council,03-Oct-22,51301849368,"1,188.00",Mallina Group,COMPANY,Domestic Violence & Sexual Violence,MHCLG Grant,Advertising / Publicity (non Recruitment)
Cambridgeshire County Council,03-Oct-22,51301851386,"1,188.43",Braunability UK Ltd,TRADE SUPPLIER,Home to School Transport - Special,Home to School Transport Special - Central Costs,Specialist Equipment For Service Delivery
Cambridgeshire County Council,03-Oct-22,51301849304,"1,200.00",WATERMAN ASPEN LTD,TRADE SUPPLIER,Street Lighting,Street Lighting PFI,Consultancy
Cambridgeshire County Council,03-Oct-22,51301861597,"1,275.00",CAMBRIDGE ENGLISH LANGUAGE SOCIETY,LOCAL CLUBS & GROUPS,Cambridgeshire Skills - Ely Library,Cambridgeshire Skills - Ely - Learning,Grants
Cambridgeshire County Council,03-Oct-22,51301861591,"1,312.00",Redacted Personal Data,INDIVIDUAL,Children's Disability Direct Payments,CSC Direct Payments,Direct Payments
Cambridgeshire County Council,03-Oct-22,51301861590,"1,317.32",Redacted Personal Data,INDIVIDUAL,Children's Disability Direct Payments,CSC Direct Payments,Direct Payments
Cambridgeshire County Council,03-Oct-22,51301861716,"1,403.52",ADAMS CABS,TRADE SUPPLIER,LD - City Locality - Staffing,LD - City - Staffing,Social Care Transport
Cambridgeshire County Council,03-Oct-22,51301861714,"1,411.20",ADAMS CABS,TRADE SUPPLIER,LD - South Locality - Cost of Care,LD - South Cambs - Care,Social Care Transport
Cambridgeshire County Council,03-Oct-22,51301861838,"1,440.00",Redacted Personal Data,PARENT/GUARDIAN,Children's Disability Direct Payments,CSC Direct Payments,Direct Payments
Cambridgeshire County Council,03-Oct-22,51301855896,"1,467.01",ATKINS LTD,COMPANY,TIPF - Strategy & Scheme Dev,TIPF - Strategy & Scheme Dev,Construction - External Professional Fees
Cambridgeshire County Council,03-Oct-22,51301861661,"1,584.00",FLEXESERVICES LIMITED,TRADE SUPPLIER,LD - Hunts Locality - Cost of Care,LD - Huntingdonshire - Care,Social Care Transport
Cambridgeshire County Council,03-Oct-22,51301861757,"1,588.00",Redacted Personal Data,INDIVIDUAL,SEND High Needs Top Up,SEND Specialist Services-High needs top-up-Post 16,Independent School Placements
Cambridgeshire County Council,03-Oct-22,51301849289,"1,612.80",WATERMAN ASPEN LTD,TRADE SUPPLIER,Highways Development Management,Highways Development Management,Agency Staff
Cambridgeshire County Council,03-Oct-22,51301852151,"1,650.59",THE RECRUITMENT AGENCY LIMITED,TRADE SUPPLIER,Grafham Water,Grafham Water Centre,Agency Staff
Cambridgeshire County Council,03-Oct-22,51301861694,"1,708.80",A1 PRIVATE HIRE,TRADE SUPPLIER,LAC Transport,LAC Transport - Home to School,Social Care Transport
Cambridgeshire County Council,03-Oct-22,51301861612,"1,800.00",Crown Social Care Ltd,CARE ESTABLISHMENT,Unaccompanied Asylum Seeking Children,Unaccompanied Asylum Seeking Children >18 Leaving Care,Living Spport Grants - Financial Assistance 18+
Cambridgeshire County Council,03-Oct-22,51301861613,"1,800.00",Crown Social Care Ltd,CARE ESTABLISHMENT,Unaccompanied Asylum Seeking Children,Unaccompanied Asylum Seeking Children >18 Leaving Care,Living Spport Grants - Financial Assistance 18+
Cambridgeshire County Council,03-Oct-22,51301849309,"1,800.00",Anspear Ltd,EDUCATION,Schools Partnership Service,Virtual School LACPP Financing,Mandatory Student Awards
Cambridgeshire County Council,03-Oct-22,51301861713,"1,814.40",ADAMS CABS,TRADE SUPPLIER,LD - Young Adults Team,LD - Young Adults - Care,Social Care Transport
Cambridgeshire County Council,03-Oct-22,51301861699,"1,831.50",PARKERS OF WISBECH LTD,TRADE SUPPLIER,OPPD - Cost of Care - Fenland - Over 65,Older People - Fenland - Care,Social Care Transport
Cambridgeshire County Council,03-Oct-22,51301861703,"1,840.00",ALANS TAXI LTD,TRADE SUPPLIER,LD - East Locality - Cost of Care,LD - East Cambs - Care,Social Care Transport
Cambridgeshire County Council,03-Oct-22,51301849285,"1,896.00",Permanent Futures Ltd,COMPANY,Educations Systems,Educations System,IT Software
Cambridgeshire County Council,03-Oct-22,51301861602,"1,900.00",ATHENA HOUSING AND SUPPORT LIMITED,CARE ESTABLISHMENT,Unaccompanied Asylum Seeking Children,Unaccompanied Asylum Seeking Children <18,Asylum Seekers
Cambridgeshire County Council,03-Oct-22,51301861846,"1,980.00",EMW Medical Ltd,COMPANY,Coroners,Coroners General,Court Costs
Cambridgeshire County Council,03-Oct-22,51301861709,"1,987.20",ADAMS CABS,TRADE SUPPLIER,LAC Transport,LAC Transport - Home to School,Social Care Transport
Cambridgeshire County Council,03-Oct-22,51301861756,"1,998.28",Redacted Personal Data,INDIVIDUAL,SEND High Needs Top Up,SEND Specialist Services-High needs top-up-Post 16,Independent School Placements
Cambridgeshire County Council,03-Oct-22,51301861835,"2,000.00",Redacted Personal Data,INDIVIDUAL,Children's Disability Direct Payments,CSC Direct Payments,Direct Payments
Cambridgeshire County Council,03-Oct-22,51301861782,"2,121.43",PCH Integration Services Ltd.,CARE ESTABLISHMENT,Unaccompanied Asylum Seeking Children,Unaccompanied Asylum Seeking Children <18,Asylum Seekers
Cambridgeshire County Council,03-Oct-22,51301861784,"2,121.43",PCH Integration Services Ltd.,CARE ESTABLISHMENT,Unaccompanied Asylum Seeking Children,Unaccompanied Asylum Seeking Children <18,Asylum Seekers
Cambridgeshire County Council,03-Oct-22,51301861786,"2,121.43",PCH Integration Services Ltd.,CARE ESTABLISHMENT,Unaccompanied Asylum Seeking Children,Unaccompanied Asylum Seeking Children <18,Asylum Seekers
Cambridgeshire County Council,03-Oct-22,51301861788,"2,121.43",PCH Integration Services Ltd.,CARE ESTABLISHMENT,Unaccompanied Asylum Seeking Children,Unaccompanied Asylum Seeking Children <18,Asylum Seekers
Cambridgeshire County Council,03-Oct-22,51301861790,"2,121.43",PCH Integration Services Ltd.,CARE ESTABLISHMENT,Unaccompanied Asylum Seeking Children,Unaccompanied Asylum Seeking Children <18,Asylum Seekers
Cambridgeshire County Council,03-Oct-22,51301861792,"2,121.43",PCH Integration Services Ltd.,CARE ESTABLISHMENT,Unaccompanied Asylum Seeking Children,Unaccompanied Asylum Seeking Children <18,Asylum Seekers
Cambridgeshire County Council,03-Oct-22,51301861794,"2,121.43",PCH Integration Services Ltd.,CARE ESTABLISHMENT,Unaccompanied Asylum Seeking Children,Unaccompanied Asylum Seeking Children <18,Asylum Seekers
Cambridgeshire County Council,03-Oct-22,51301861796,"2,121.43",PCH Integration Services Ltd.,CARE ESTABLISHMENT,Unaccompanied Asylum Seeking Children,Unaccompanied Asylum Seeking Children <18,Asylum Seekers
Cambridgeshire County Council,03-Oct-22,51301861798,"2,121.43",PCH Integration Services Ltd.,CARE ESTABLISHMENT,Unaccompanied Asylum Seeking Children,Unaccompanied Asylum Seeking Children <18,Asylum Seekers
Cambridgeshire County Council,03-Oct-22,51301861800,"2,121.43",PCH Integration Services Ltd.,CARE ESTABLISHMENT,Unaccompanied Asylum Seeking Children,Unaccompanied Asylum Seeking Children <18,Asylum Seekers
Cambridgeshire County Council,03-Oct-22,51301861802,"2,121.43",PCH Integration Services Ltd.,CARE ESTABLISHMENT,Unaccompanied Asylum Seeking Children,Unaccompanied Asylum Seeking Children <18,Asylum Seekers
Cambridgeshire County Council,03-Oct-22,51301861804,"2,121.43",PCH Integration Services Ltd.,CARE ESTABLISHMENT,Unaccompanied Asylum Seeking Children,Unaccompanied Asylum Seeking Children <18,Asylum Seekers
Cambridgeshire County Council,03-Oct-22,51301861806,"2,121.43",PCH Integration Services Ltd.,CARE ESTABLISHMENT,Unaccompanied Asylum Seeking Children,Unaccompanied Asylum Seeking Children <18,Asylum Seekers
Cambridgeshire County Council,03-Oct-22,51301861862,"2,200.00",TMLEP Client Account,OTHER PUBLIC BODIES,Coroners,Coroners General,Court Costs
Cambridgeshire County Council,03-Oct-22,51301861779,"2,217.22",Low Carbon Contracts Company Ltd,COMPANY,County Farms,"Triangle Solar Farm, Soham",Electricity
Cambridgeshire County Council,03-Oct-22,51301851460,"2,250.00",ST BEDES INTER CHURCH SCHOOL,EDUCATION,Home to School Transport - Mainstream,Home to School Transport Mainstream - Secondary,Home to School - Contract
Cambridgeshire County Council,03-Oct-22,51301861739,"2,265.60",John Seymour Carpets,COMPANY,Grafham Water,Grafham Water Centre,Building Repair and Maintenance
Cambridgeshire County Council,03-Oct-22,51301849347,"2,346.00",Matchtech,COMPANY,PD - General,Major Infrastructure Delivery,Agency Staff
Cambridgeshire County Council,03-Oct-22,51301861616,"2,386.28",Crown Social Care Ltd,CARE ESTABLISHMENT,Unaccompanied Asylum Seeking Children,Unaccompanied Asylum Seeking Children <18,Asylum Seekers
Cambridgeshire County Council,03-Oct-22,51301852850,"2,400.00",MOVING UP CARE,CARE ESTABLISHMENT,Unaccompanied Asylum Seeking Children,Unaccompanied Asylum Seeking Children <18,Asylum Seekers
Cambridgeshire County Council,03-Oct-22,51301853265,"2,402.10",Clarence House Day Nurseries Ltd,EDUCATION,Early Years Specialist Support,Procurement - TA Inclusion & Access (EARLY YEARS),Independent School Placements
Cambridgeshire County Council,03-Oct-22,51301861722,"2,436.00",Sam Private Hire,COMPANY,LD - Young Adults Team,LD - Young Adults - Care,Social Care Transport
Cambridgeshire County Council,03-Oct-22,51301861624,"2,468.57",Crown Social Care Ltd,CARE ESTABLISHMENT,Unaccompanied Asylum Seeking Children,Unaccompanied Asylum Seeking Children <18,Asylum Seekers
Cambridgeshire County Council,03-Oct-22,51301861628,"2,468.57",Crown Social Care Ltd,CARE ESTABLISHMENT,Unaccompanied Asylum Seeking Children,Unaccompanied Asylum Seeking Children <18,Asylum Seekers
Cambridgeshire County Council,03-Oct-22,51301861633,"2,468.57",Crown Social Care Ltd,CARE ESTABLISHMENT,Unaccompanied Asylum Seeking Children,Unaccompanied Asylum Seeking Children <18,Asylum Seekers
Cambridgeshire County Council,03-Oct-22,51301861615,"2,468.57",Crown Social Care Ltd,CARE ESTABLISHMENT,Unaccompanied Asylum Seeking Children,Unaccompanied Asylum Seeking Children >18 Leaving Care,Living Spport Grants - Financial Assistance 18+
Cambridgeshire County Council,03-Oct-22,51301861609,"2,468.57",Crown Social Care Ltd,CARE ESTABLISHMENT,Unaccompanied Asylum Seeking Children,Unaccompanied Asylum Seeking Children >18 Leaving Care,Living Spport Grants - Financial Assistance 18+
Cambridgeshire County Council,03-Oct-22,51301861611,"2,468.57",Crown Social Care Ltd,CARE ESTABLISHMENT,Unaccompanied Asylum Seeking Children,Unaccompanied Asylum Seeking Children >18 Leaving Care,Living Spport Grants - Financial Assistance 18+
Cambridgeshire County Council,03-Oct-22,51301851099,"2,470.93",G4S SECURE SOLUTIONS (UK) LTD,TRADE SUPPLIER,Corporate Offices,Shire Hall Area,Security Equipment
Cambridgeshire County Council,03-Oct-22,51301852864,"2,500.00",MOVING UP CARE,CARE ESTABLISHMENT,Unaccompanied Asylum Seeking Children,Unaccompanied Asylum Seeking Children <18,Asylum Seekers
Cambridgeshire County Council,03-Oct-22,51301861719,"2,502.00",RAY-AL COACHES LTD,TRADE SUPPLIER,LD - Hunts Locality - Cost of Care,LD - Huntingdonshire - Care,Social Care Transport
Cambridgeshire County Council,03-Oct-22,51301849348,"2,544.00",Matchtech,COMPANY,PD - General,Major Infrastructure Delivery,Agency Staff
Cambridgeshire County Council,03-Oct-22,51301861814,"2,575.93",BEDAZZLE EXPRESSIVE ARTS,EDUCATION,SEND High Needs Top Up,SEND Specialist Services-High needs top-up-Post 16,Independent School Placements
Cambridgeshire County Council,03-Oct-22,51301851377,"2,589.96",ROYAL MAIL,TRADE SUPPLIER,Information Management,Resources Franking Machine,Postage & Carriage
Cambridgeshire County Council,03-Oct-22,51301861724,"2,592.00",Sam Private Hire,COMPANY,LD - Young Adults Team,LD - Young Adults - Care,Social Care Transport
Cambridgeshire County Council,03-Oct-22,51301849343,"2,640.00",Matchtech,COMPANY,PD - General,Major Infrastructure Delivery,Agency Staff
Cambridgeshire County Council,03-Oct-22,51301850597,"2,664.96",STORM TECHNOLOGIES,TRADE SUPPLIER,Corporate IT Managed,Hardware & Infrastructure,Computer hardware - purchase
Cambridgeshire County Council,03-Oct-22,51301849349,"2,688.00",Matchtech,COMPANY,PD - General,Major Infrastructure Delivery,Agency Staff
Cambridgeshire County Council,03-Oct-22,51301849345,"2,688.00",Matchtech,COMPANY,PD - General,Major Infrastructure Delivery,Agency Staff
Cambridgeshire County Council,03-Oct-22,51301849437,"2,932.50",Matchtech,COMPANY,PD - General,Major Infrastructure Delivery,Agency Staff
Cambridgeshire County Council,03-Oct-22,51301849202,"3,066.24",FLOCKTONS TVP LTD,COMPANY,Winter Maintenance,Central Winter Maintenance,Building Repair and Maintenance
Cambridgeshire County Council,03-Oct-22,51301849344,"3,180.00",Matchtech,COMPANY,PD - General,Major Infrastructure Delivery,Agency Staff
Cambridgeshire County Council,03-Oct-22,51301849247,"3,480.90",NETWORK RAIL LTD,COMPANY,Highways - Bridges,Highways - Bridges,Highways - Bridges
Cambridgeshire County Council,03-Oct-22,51301861598,"3,695.76",THE CAM ACADEMY TRUST,EDUCATION,Cambridgeshire Skills - Ely Library,Cambridgeshire Skills - Ely - Learning,Grants
Cambridgeshire County Council,03-Oct-22,51301861500,"3,738.00",PEASGOOD & SKEATES FUNERAL DIRECTORS,TRADE SUPPLIER,Coroners,Coroners General,Transportion Services
Cambridgeshire County Council,03-Oct-22,51301861780,"3,766.10",Low Carbon Contracts Company Ltd,COMPANY,County Farms,"Triangle Solar Farm, Soham",Electricity
Cambridgeshire County Council,03-Oct-22,51301861697,"3,903.99",PARKERS OF WISBECH LTD,TRADE SUPPLIER,LD - Young Adults Team,LD - Young Adults - Care,Social Care Transport
Cambridgeshire County Council,03-Oct-22,51301861691,"4,099.00",Cambridge and Huntingdon Airport Travel Service,COMPANY,LD - Young Adults Team,LD - Young Adults - Care,Social Care Transport
Cambridgeshire County Council,03-Oct-22,51301861834,"4,160.00",Redacted Personal Data,INDIVIDUAL,Children's Disability Direct Payments,CSC Direct Payments,Direct Payments
Cambridgeshire County Council,03-Oct-22,51301851107,"4,257.12",CAMBRIDGE UNIVERSITY HOSPITALS NHS FOUNDATION TRUST,TRUST (OTHER),Coroners,Coroners General,Payments to Other Establishments
Cambridgeshire County Council,03-Oct-22,51301861723,"4,646.40",Sam Private Hire,COMPANY,LD - Young Adults Team,LD - Young Adults - Care,Social Care Transport
Cambridgeshire County Council,03-Oct-22,51301861646,"4,875.00",ROMSEY MILL TRUST LTD,TRUST (OTHER),Early Years Service - HAF,HAF Grant,Care & Ed Childcare Settings
Cambridgeshire County Council,03-Oct-22,51301849246,"4,950.00",SHINE PSYCHOLOGY,EDUCATION,SEND Specialist Services - Education Psychology,SEND Specialist Services - Education Psychology,Professional Fees and Hired Services
Cambridgeshire County Council,03-Oct-22,51301861696,"5,290.58",PARKERS OF WISBECH LTD,TRADE SUPPLIER,LD - Fenland Locality - Cost of Care,LD - Fenland  - Care,Social Care Transport
Cambridgeshire County Council,03-Oct-22,51301852242,"5,547.60",PINSENT MASONS LLP,TRADE SUPPLIER,GCP - Energy,GCP - Energy,External Legal Fees
Cambridgeshire County Council,03-Oct-22,51301850478,"6,000.00",Sancus Solutions,COMPANY,Domestic Violence & Sexual Violence,Domestic Homicide Reviews,Consultancy
Cambridgeshire County Council,03-Oct-22,51301849116,"6,000.00",Tile Hill Interim & Executive Ltd,COMPANY,Exec Director,Executive Director - Place & Economy,Recruitment Costs
Cambridgeshire County Council,03-Oct-22,51301848905,"6,666.33",RED BALLOON OF THE AIR,CARE ESTABLISHMENT,SEN Placements,Placements - Education,Independent School Placements
Cambridgeshire County Council,03-Oct-22,51301861778,"7,731.48",Low Carbon Contracts Company Ltd,COMPANY,County Farms,"Triangle Solar Farm, Soham",Electricity
Cambridgeshire County Council,03-Oct-22,51301851461,"8,250.00",ST BEDES INTER CHURCH SCHOOL,EDUCATION,Home to School Transport - Mainstream,Home to School Transport Mainstream - Secondary,Home to School - Contract
Cambridgeshire County Council,03-Oct-22,51301859002,"8,314.74",MOTT MACDONALD LTD,TRADE SUPPLIER,Emergency Active Travel Fund,Emergency Active Travel Fund,Construction - External Professional Fees
Cambridgeshire County Council,03-Oct-22,51301852259,"8,316.00",4X LIMITED T/A STEVES TAXI & PRIVATE HIRE,TRADE SUPPLIER,Home to School Transport - Special,Home to School Transport Special - Secondary,Home to School - Contract
Cambridgeshire County Council,03-Oct-22,51301848910,"8,333.00",RED BALLOON OF THE AIR,CARE ESTABLISHMENT,SEN Placements,Placements - Education,Independent School Placements
Cambridgeshire County Council,03-Oct-22,51301848911,"8,333.00",RED BALLOON OF THE AIR,CARE ESTABLISHMENT,SEN Placements,Placements - Education,Independent School Placements
Cambridgeshire County Council,03-Oct-22,51301848919,"8,333.00",RED BALLOON OF THE AIR,CARE ESTABLISHMENT,SEN Placements,Placements - Education,Independent School Placements
Cambridgeshire County Council,03-Oct-22,51301848915,"8,333.00",RED BALLOON OF THE AIR,CARE ESTABLISHMENT,SEN Placements,Placements - Education,Independent School Placements
Cambridgeshire County Council,03-Oct-22,51301848917,"8,333.00",RED BALLOON OF THE AIR,CARE ESTABLISHMENT,SEN Placements,Placements - Education,Independent School Placements
Cambridgeshire County Council,03-Oct-22,51301861600,"8,402.45",Cambridge Academic Partnership,EDUCATION,Cambridgeshire Skills - Ely Library,Cambridgeshire Skills - Ely - Learning,Grants
Cambridgeshire County Council,03-Oct-22,51301855895,"8,648.14",ATKINS LTD,COMPANY,TIPF - Strategy & Scheme Dev,TIPF - Strategy & Scheme Dev,Construction - External Professional Fees
Cambridgeshire County Council,03-Oct-22,51301855897,"9,088.18",ATKINS LTD,COMPANY,TIPF - Strategy & Scheme Dev,TIPF - Strategy & Scheme Dev,Construction - External Professional Fees
Cambridgeshire County Council,03-Oct-22,51301852728,"9,600.00",Service Level Management Ltd,COMPANY,Information Management,Information Management,Equipment and Tools
Cambridgeshire County Council,03-Oct-22,51301861647,"9,877.04",PETERBOROUGH CITY COUNCIL,OTHER PUBLIC BODIES,IT External Recharges,IT External Recharges,Professional Fees and Hired Services
Cambridgeshire County Council,03-Oct-22,51301848906,"9,999.00",RED BALLOON OF THE AIR,CARE ESTABLISHMENT,SEN Placements,Placements - Education,Independent School Placements
Cambridgeshire County Council,03-Oct-22,51301848918,"9,999.67",RED BALLOON OF THE AIR,CARE ESTABLISHMENT,SEN Placements,Placements - Education,Independent School Placements
Cambridgeshire County Council,03-Oct-22,51301848912,"9,999.67",RED BALLOON OF THE AIR,CARE ESTABLISHMENT,SEN Placements,Placements - Education,Independent School Placements
Cambridgeshire County Council,03-Oct-22,51301848914,"9,999.67",RED BALLOON OF THE AIR,CARE ESTABLISHMENT,SEN Placements,Placements - Education,Independent School Placements
Cambridgeshire County Council,03-Oct-22,51301848904,"9,999.67",RED BALLOON OF THE AIR,CARE ESTABLISHMENT,SEN Placements,Placements - Education,Independent School Placements
Cambridgeshire County Council,03-Oct-22,51301847253,"10,260.00",XMA LIMITED,TRADE SUPPLIER,Corporate IT Managed,Hardware & Infrastructure,Computer hardware - purchase
Cambridgeshire County Council,03-Oct-22,51301853102,"10,980.00",Team Q Maintenance Ltd,COMPANY,Condition Survey Works,Building Maintenance,"New Construction, Conversion and Renovation"
Cambridgeshire County Council,03-Oct-22,51301848920,"11,499.67",RED BALLOON OF THE AIR,CARE ESTABLISHMENT,SEN Placements,Placements - Education,Independent School Placements
Cambridgeshire County Council,03-Oct-22,51301848903,"11,666.33",RED BALLOON OF THE AIR,CARE ESTABLISHMENT,SEN Placements,Placements - Education,Independent School Placements
Cambridgeshire County Council,03-Oct-22,51301852363,"11,850.00",CAMEL PROJECTS (HISTON) LTD,TRADE SUPPLIER,Corporate Offices,Histon Library,Rents and Leases
Cambridgeshire County Council,03-Oct-22,51301850910,"11,859.96",New Park Court Chambers,OTHER PUBLIC BODIES,Coroners,Coroners - Complex inquests,Professional Fees and Hired Services
Cambridgeshire County Council,03-Oct-22,51301848730,"11,880.00",OXFORD ARCHAEOLOGY LTD,TRADE SUPPLIER,GCP - Chisholm Trail cycle links,GCP - Chisholm Trail cycle links,Construction - External Professional Fees
Cambridgeshire County Council,03-Oct-22,51301850663,"12,780.33",KIMBOLTON SCHOOL,EDUCATION,SEND High Needs Top Up,"SEND Specialist Services,High Needs Top Up,Other institutions",Independent School Placements
Cambridgeshire County Council,03-Oct-22,51301849405,"13,787.14",SWARCO TRAFFIC LTD,COMPANY,Traffic Management Centre,Traffic Management Centre,Traffic Signs and Lines Maintenance
Cambridgeshire County Council,03-Oct-22,51301861852,"13,946.00",Redacted Personal Data,INDIVIDUAL,Children's Disability Direct Payments,CSC Direct Payments,Direct Payments
Cambridgeshire County Council,03-Oct-22,51301861731,"14,667.16",Sunhill Daycare Ltd,EDUCATION,SEND High Needs Top Up,SEND Specialist Services-High needs top-up-Early Years,Independent School Placements
Cambridgeshire County Council,03-Oct-22,51301861695,"17,310.50",PARKERS OF WISBECH LTD,TRADE SUPPLIER,Adults - Central Transport,Adults Disabilities and OP Transport,Social Care Transport
Cambridgeshire County Council,03-Oct-22,51301853108,"17,761.74",Team Q Maintenance Ltd,COMPANY,Condition Survey Works,Building Maintenance,"New Construction, Conversion and Renovation"
Cambridgeshire County Council,03-Oct-22,51301861850,"17,874.00",Redacted Personal Data,INDIVIDUAL,Children's Disability Direct Payments,CSC Direct Payments,Direct Payments
Cambridgeshire County Council,03-Oct-22,51301849236,"17,996.67",THE ROYAL NATIONAL COLLEGE FOR THE BLIND,EDUCATION,SEN Placements,Placements - Education,Independent School Placements
Cambridgeshire County Council,03-Oct-22,51301853029,"18,117.16",Barnoldswick Alternative School Group Ltd,EDUCATION,SEN Placements,Placements - Education,Independent School Placements
Cambridgeshire County Council,03-Oct-22,51301861599,"18,673.62",Groundwork East,COMPANY,Cambridgeshire Skills - March CC,Cambridgeshire Skills - March Community Centre - Learning,Grants
Cambridgeshire County Council,03-Oct-22,51301861660,"20,898.19",24 X 7 LTD,TRADE SUPPLIER,Adults - Central Transport,Adults Disabilities and OP Transport,Social Care Transport
Cambridgeshire County Council,03-Oct-22,51301847994,"21,200.00",GRETTON SCHOOL,EDUCATION,SEN Placements,Placements - Education,Independent School Placements
Cambridgeshire County Council,03-Oct-22,51301849118,"21,673.20",Crown Workspace Ltd,COMPANY,"St Ives, Eastfield/ Westfield/ Wheatfields","St Ives, Eastfield/ Westfield/ Wheatfields",Site Clearance
Cambridgeshire County Council,03-Oct-22,51301861853,"21,708.50",YMCA Trinity Group,COMPANY,Youth Offending Service,YOT Project,Professional Fees and Hired Services
Cambridgeshire County Council,03-Oct-22,51301851106,"23,501.74",CAMBRIDGE UNIVERSITY HOSPITALS NHS FOUNDATION TRUST,TRUST (OTHER),Coroners,Coroners General,Payments to Other Establishments
Cambridgeshire County Council,03-Oct-22,51301852046,"27,091.19",ATKINS LTD,COMPANY,March Area Transport Study,March Area Transport Study,Construction - External Professional Fees
Cambridgeshire County Council,03-Oct-22,51301849262,"27,600.00",Alchera Data Technologies Limited,COMPANY,GCP - Smart Cambridge,GCP - Smart Cambridge,Consultancy
Cambridgeshire County Council,03-Oct-22,51301861752,"27,810.00",DAVID LITTLECHILD,TRADE SUPPLIER,Corporate Offices,Noble House,Rents and Leases
Cambridgeshire County Council,03-Oct-22,51301849238,"29,913.00",REFUGE,CHARITY,Domestic Violence & Sexual Violence,MHCLG Grant,Consultancy
Cambridgeshire County Council,03-Oct-22,51301861851,"32,323.25",Redacted Personal Data,PARENT/GUARDIAN,Children's Disability Direct Payments,CSC Direct Payments,Direct Payments
Cambridgeshire County Council,03-Oct-22,51301858955,"39,555.00",TIME QUANTUM EXPERT FORENSICS LTD,TRADE SUPPLIER,Guided Busway - Litigation costs,Guided Bus,External Legal Fees
Cambridgeshire County Council,03-Oct-22,51301851751,"41,421.66",CARMELCREST LIMITED,COMPANY,"School Condition, Maintenance & Suitability","School Condition, Maintenance & Suitability","New Construction, Conversion and Renovation"
Cambridgeshire County Council,03-Oct-22,51301861579,"47,187.60",West Northamptonshire Council,OTHER PUBLIC BODIES,Performance and Governance Team,Performance & Governance Team,Service Charges
Cambridgeshire County Council,03-Oct-22,51301849067,"50,005.00",CENTRE 33,CHARITY,P&C Executive Director,VCSE,Professional Fees and Hired Services
Cambridgeshire County Council,03-Oct-22,51301852268,"57,898.35",THE RIVERSIDE GROUP LTD,CARE ESTABLISHMENT,Housing Related Support Contracts � Adults & Children,Mental Health Homelessness,Supporting People
Cambridgeshire County Council,03-Oct-22,51301849093,"61,860.05",ATKINS LTD,COMPANY,Additional secondary capacity to serve March & Wisbech,Additional secondary capacity to serve March & Wisbech,Construction - External Professional Fees
Cambridgeshire County Council,03-Oct-22,51301848741,"74,889.92",ATKINS LTD,COMPANY,GCP Waterbeach Greenway,GCP Waterbeach Greenway,Construction - External Professional Fees
Cambridgeshire County Council,03-Oct-22,51301852258,"76,030.50",4X LIMITED T/A STEVES TAXI & PRIVATE HIRE,TRADE SUPPLIER,Home to School Transport - Mainstream,Home to School Transport Mainstream - Primary,Home to School - Contract
Cambridgeshire County Council,03-Oct-22,51301861562,"281,012.84",OPUS LGSS (PEOPLE SOLUTIONS) LTD,TRADE SUPPLIER,Control Accounts,Suspense Account - General,Suspense Items
Cambridgeshire County Council,04-Oct-22,51301861936,"-1,802.70",WRIXON CARE SERVICES,CARE ESTABLISHMENT,LAC Placements,Placements - residential homes,Agency Placements - Out of  County
Cambridgeshire County Council,04-Oct-22,51301862285,"-1,468.25",THE SALVATION ARMY,CHARITY,LAC Placements,Placements - 16+,Agency Placements - In County
Cambridgeshire County Council,04-Oct-22,51301862163,"-1,206.40",WRIXON CARE SERVICES,CARE ESTABLISHMENT,LAC Placements,Placements - supported accommodation,Agency Placements - In County
Cambridgeshire County Council,04-Oct-22,51301862316,"1,056.30",YMCA Trinity Group,COMPANY,LAC Placements,Placements - supported accommodation,Agency Placements - In County
Cambridgeshire County Council,04-Oct-22,51301862325,"1,056.30",YMCA Trinity Group,COMPANY,Unaccompanied Asylum Seeking Children,Unaccompanied Asylum Seeking Children >18 Leaving Care,Living Spport Grants - Financial Assistance 18+
Cambridgeshire County Council,04-Oct-22,51301862327,"1,056.30",YMCA Trinity Group,COMPANY,Unaccompanied Asylum Seeking Children,Unaccompanied Asylum Seeking Children >18 Leaving Care,Living Spport Grants - Financial Assistance 18+
Cambridgeshire County Council,04-Oct-22,51301862317,"1,101.00",YMCA Trinity Group,COMPANY,Unaccompanied Asylum Seeking Children,Unaccompanied Asylum Seeking Children >18 Leaving Care,Living Spport Grants - Financial Assistance 18+
Cambridgeshire County Council,04-Oct-22,51301862322,"1,113.00",YMCA Trinity Group,COMPANY,Unaccompanied Asylum Seeking Children,Unaccompanied Asylum Seeking Children >18 Leaving Care,Living Spport Grants - Financial Assistance 18+
Cambridgeshire County Council,04-Oct-22,51301862323,"1,191.00",YMCA Trinity Group,COMPANY,Unaccompanied Asylum Seeking Children,Unaccompanied Asylum Seeking Children >18 Leaving Care,Living Spport Grants - Financial Assistance 18+
Cambridgeshire County Council,04-Oct-22,51301862324,"1,191.00",YMCA Trinity Group,COMPANY,Unaccompanied Asylum Seeking Children,Unaccompanied Asylum Seeking Children >18 Leaving Care,Living Spport Grants - Financial Assistance 18+
Cambridgeshire County Council,04-Oct-22,51301862318,"1,191.00",YMCA Trinity Group,COMPANY,Unaccompanied Asylum Seeking Children,Unaccompanied Asylum Seeking Children >18 Leaving Care,Living Spport Grants - Financial Assistance 18+
Cambridgeshire County Council,04-Oct-22,51301862319,"1,191.00",YMCA Trinity Group,COMPANY,Unaccompanied Asylum Seeking Children,Unaccompanied Asylum Seeking Children >18 Leaving Care,Living Spport Grants - Financial Assistance 18+
Cambridgeshire County Council,04-Oct-22,51301862320,"1,191.00",YMCA Trinity Group,COMPANY,Unaccompanied Asylum Seeking Children,Unaccompanied Asylum Seeking Children >18 Leaving Care,Living Spport Grants - Financial Assistance 18+
Cambridgeshire County Council,04-Oct-22,51301862315,"1,191.00",YMCA Trinity Group,COMPANY,Unaccompanied Asylum Seeking Children,Unaccompanied Asylum Seeking Children >18 Leaving Care,Living Spport Grants - Financial Assistance 18+
Cambridgeshire County Council,04-Oct-22,51301862326,"1,191.00",YMCA Trinity Group,COMPANY,Unaccompanied Asylum Seeking Children,Unaccompanied Asylum Seeking Children >18 Leaving Care,Living Spport Grants - Financial Assistance 18+
Cambridgeshire County Council,04-Oct-22,51301862165,"1,206.40",WRIXON CARE SERVICES,CARE ESTABLISHMENT,LAC Placements,Placements - supported accommodation,Agency Placements - In County
Cambridgeshire County Council,04-Oct-22,51301862164,"1,447.68",WRIXON CARE SERVICES,CARE ESTABLISHMENT,LAC Placements,Placements - supported accommodation,Agency Placements - In County
Cambridgeshire County Council,04-Oct-22,51301862286,"1,468.25",THE SALVATION ARMY,CHARITY,LAC Placements,Placements - 16+,Agency Placements - In County
Cambridgeshire County Council,04-Oct-22,51301862287,"1,483.35",THE SALVATION ARMY,CHARITY,LAC Placements,Placements - 16+,Agency Placements - In County
Cambridgeshire County Council,04-Oct-22,51301861938,"1,802.70",WRIXON CARE SERVICES,CARE ESTABLISHMENT,LAC Placements,Placements - residential homes,Agency Placements - Out of  County
Cambridgeshire County Council,04-Oct-22,51301861937,"2,163.24",WRIXON CARE SERVICES,CARE ESTABLISHMENT,LAC Placements,Placements - residential homes,Agency Placements - Out of  County
Cambridgeshire County Council,04-Oct-22,51301861940,"2,304.10",SUFFOLK COUNTY COUNCIL,OTHER PUBLIC BODIES,LAC Placements,Placements - independent fostering,Agency Placements - Out of  County
Cambridgeshire County Council,04-Oct-22,51301862310,"3,720.00",FOSTER CARE ASSOCIATES LTD (FCA),CARE ESTABLISHMENT,Unaccompanied Asylum Seeking Children,Unaccompanied Asylum Seeking Children <18,Agency Placements - Out of  County
Cambridgeshire County Council,04-Oct-22,51301861941,"12,500.00",First 4 Care Ltd,CARE ESTABLISHMENT,LAC Placements,Placements - residential homes,Agency Placements - Out of  County
Cambridgeshire County Council,04-Oct-22,51301861942,"12,500.00",First 4 Care Ltd,CARE ESTABLISHMENT,LAC Placements,Placements - residential homes,Agency Placements - Out of  County
Cambridgeshire County Council,05-Oct-22,51301862723,"-1,860.96",RADIS COMMUNITY CARE,CARE ESTABLISHMENT,OPPD - Cost of Care - Fenland - Over 65,Older People - Fenland - Care,Supported Living
Cambridgeshire County Council,05-Oct-22,51301862715,"-1,180.59",RADIS COMMUNITY CARE,CARE ESTABLISHMENT,OPPD - Cost of Care - East Cambs - Over 65,East Cambs - O P Team - Care,Supported Living
Cambridgeshire County Council,05-Oct-22,51301862062,507.68,Redacted Personal Data,PARENT/GUARDIAN,Home to School Transport - Special,Home to School Transport Special - Special School,Contribution To Transport Related Provisions
Cambridgeshire County Council,05-Oct-22,51301861885,510.00,Blossoms Play Therapy,EDUCATION,SEND Specialist Services - Sensory Support,Sensory Support 0 - 25,Educational equipment
Cambridgeshire County Council,05-Oct-22,51301862045,514.11,Redacted Personal Data,PARENT/GUARDIAN,Home to School Transport - Special,Home to School Transport Special - Special School,Contribution To Transport Related Provisions
Cambridgeshire County Council,05-Oct-22,51301861990,525.73,Redacted Personal Data,INDIVIDUAL,Children's Disability Direct Payments,CSC Direct Payments,Direct Payments
Cambridgeshire County Council,05-Oct-22,51301862262,538.46,NORMANS LTD,TRADE SUPPLIER,Cambs Music Head of Instrumental Studies,Cambs Music Instrumental and Vocal Studies,Educational equipment
Cambridgeshire County Council,05-Oct-22,51301862088,538.91,Redacted Personal Data,INDIVIDUAL,Home to School Transport - Special,Home to School Transport Special - Special School,Contribution To Transport Related Provisions
Cambridgeshire County Council,05-Oct-22,51301862135,542.23,Redacted Personal Data,INDIVIDUAL,Home to School Transport - Special,Home to School Transport Special - Out of County,Contribution To Transport Related Provisions
Cambridgeshire County Council,05-Oct-22,51301862531,544.40,Redacted Personal Data,INDIVIDUAL,LD - Hunts Locality - Cost of Care,LD - Huntingdonshire - Care,Day Care
Cambridgeshire County Council,05-Oct-22,51301862017,545.13,Redacted Personal Data,INDIVIDUAL,Home to School Transport - Special,Home to School Transport Special - Special School,Contribution To Transport Related Provisions
Cambridgeshire County Council,05-Oct-22,51301862120,549.00,Redacted Personal Data,PARENT/GUARDIAN,Home to School Transport - Special,Home to School Transport Special - Special School,Contribution To Transport Related Provisions
Cambridgeshire County Council,05-Oct-22,51301862073,574.84,Redacted Personal Data,INDIVIDUAL,Home to School Transport - Special,Home to School Transport Special - Special School,Contribution To Transport Related Provisions
Cambridgeshire County Council,05-Oct-22,51301862050,580.32,Redacted Personal Data,PARENT/GUARDIAN,Home to School Transport - Special,Home to School Transport Special - Special School,Contribution To Transport Related Provisions
Cambridgeshire County Council,05-Oct-22,51301862091,587.27,Redacted Personal Data,INDIVIDUAL,Home to School Transport - Special,Home to School Transport Special - Special School,Contribution To Transport Related Provisions
Cambridgeshire County Council,05-Oct-22,51301862716,588.70,RADIS COMMUNITY CARE,CARE ESTABLISHMENT,OPPD - Cost of Care - East Cambs - Over 65,East Cambs - O P Team - Care,Supported Living
Cambridgeshire County Council,05-Oct-22,51301862013,591.42,Redacted Personal Data,PARENT/GUARDIAN,Home to School Transport - Special,Home to School Transport Special - Out of County,Contribution To Transport Related Provisions
Cambridgeshire County Council,05-Oct-22,51301852175,600.00,Cinolla Software Ltd,COMPANY,Grafham Water,Grafham Water Centre,Professional Fees and Hired Services
Cambridgeshire County Council,05-Oct-22,51301861922,600.00,Light Blue Media Cambridge Ltd (Star Radio),COMPANY,Regional Adoption Agency,Regional Adoption Agency,Advertising / Publicity (non Recruitment)
Cambridgeshire County Council,05-Oct-22,51301862061,608.00,Redacted Personal Data,PARENT/GUARDIAN,Home to School Transport - Special,Home to School Transport Special - Out of County,Contribution To Transport Related Provisions
Cambridgeshire County Council,05-Oct-22,51301862092,613.53,Redacted Personal Data,PARENT/GUARDIAN,Home to School Transport - Special,Home to School Transport Special - Out of County,Contribution To Transport Related Provisions
Cambridgeshire County Council,05-Oct-22,51301851253,625.00,CHESTERTON CARPETS,COMPANY,Domestic Violence & Sexual Violence,MHCLG Grant,"Fixtures, Fittings and Furnishings"
Cambridgeshire County Council,05-Oct-22,51301862169,625.00,THOMAS DRYER BEERS,TRADE SUPPLIER,Cambs Music Head of Business Development,Cambs Music Business Development,Grounds Maintenance
Cambridgeshire County Council,05-Oct-22,51301862048,629.00,Redacted Personal Data,INDIVIDUAL,Home to School Transport - Special,Home to School Transport Special - Post 16,Contribution To Transport Related Provisions
Cambridgeshire County Council,05-Oct-22,51301862653,634.40,Redacted Personal Data,INDIVIDUAL,LAC Transport,LAC Transport - Home to School,Social Care Transport
Cambridgeshire County Council,05-Oct-22,51301862644,634.60,Redacted Personal Data,INDIVIDUAL,LAC Transport,LAC Transport  - Contact Visits,Social Care Transport
Cambridgeshire County Council,05-Oct-22,51301862044,638.40,Redacted Personal Data,PARENT/GUARDIAN,Home to School Transport - Special,Home to School Transport Special - Out of County,Contribution To Transport Related Provisions
Cambridgeshire County Council,05-Oct-22,51301861949,648.00,Oakdale Centre CiC,COMPANY,Regional Adoption Agency,Adoption Support Fund,Professional Fees and Hired Services
Cambridgeshire County Council,05-Oct-22,51301862066,668.80,Redacted Personal Data,PARENT/GUARDIAN,Home to School Transport - Special,Home to School Transport Special - Post 16,Contribution To Transport Related Provisions
Cambridgeshire County Council,05-Oct-22,51301862713,670.71,RADIS COMMUNITY CARE,CARE ESTABLISHMENT,OPPD - Cost of Care - East Cambs - Over 65,East Cambs - O P Team - Care,Supported Living
Cambridgeshire County Council,05-Oct-22,51301851367,676.00,OCR,TRADE SUPPLIER,Apprenticeship Training Provider,Apprenticeship Training Provider,Professional Fees and Hired Services
Cambridgeshire County Council,05-Oct-22,51301862643,683.15,Redacted Personal Data,INDIVIDUAL,LAC Transport,LAC Transport - Home to School,Social Care Transport
Cambridgeshire County Council,05-Oct-22,51301862537,693.50,Redacted Personal Data,INDIVIDUAL,LD - Fenland Locality - Cost of Care,LD - Fenland  - Care,Day Care
Cambridgeshire County Council,05-Oct-22,51301862712,704.98,RADIS COMMUNITY CARE,CARE ESTABLISHMENT,OPPD - Cost of Care - East Cambs - Over 65,East Cambs - O P Team - Care,Supported Living
Cambridgeshire County Council,05-Oct-22,51301862712,704.98,RADIS COMMUNITY CARE,CARE ESTABLISHMENT,OPPD - Cost of Care - East Cambs - Over 65,East Cambs - O P Team - Care,Supported Living
Cambridgeshire County Council,05-Oct-22,51301862712,704.98,RADIS COMMUNITY CARE,CARE ESTABLISHMENT,OPPD - Cost of Care - East Cambs - Over 65,East Cambs - O P Team - Care,Supported Living
Cambridgeshire County Council,05-Oct-22,51301862712,704.98,RADIS COMMUNITY CARE,CARE ESTABLISHMENT,OPPD - Cost of Care - East Cambs - Over 65,East Cambs - O P Team - Care,Supported Living
Cambridgeshire County Council,05-Oct-22,51301862712,704.98,RADIS COMMUNITY CARE,CARE ESTABLISHMENT,OPPD - Cost of Care - East Cambs - Over 65,East Cambs - O P Team - Care,Supported Living
Cambridgeshire County Council,05-Oct-22,51301862712,704.98,RADIS COMMUNITY CARE,CARE ESTABLISHMENT,OPPD - Cost of Care - East Cambs - Over 65,East Cambs - O P Team - Care,Supported Living
Cambridgeshire County Council,05-Oct-22,51301862712,704.98,RADIS COMMUNITY CARE,CARE ESTABLISHMENT,OPPD - Cost of Care - East Cambs - Over 65,East Cambs - O P Team - Care,Supported Living
Cambridgeshire County Council,05-Oct-22,51301862712,704.98,RADIS COMMUNITY CARE,CARE ESTABLISHMENT,OPPD - Cost of Care - East Cambs - Over 65,East Cambs - O P Team - Care,Supported Living
Cambridgeshire County Council,05-Oct-22,51301862712,704.98,RADIS COMMUNITY CARE,CARE ESTABLISHMENT,OPPD - Cost of Care - East Cambs - Over 65,East Cambs - O P Team - Care,Supported Living
Cambridgeshire County Council,05-Oct-22,51301862712,704.98,RADIS COMMUNITY CARE,CARE ESTABLISHMENT,OPPD - Cost of Care - East Cambs - Over 65,East Cambs - O P Team - Care,Supported Living
Cambridgeshire County Council,05-Oct-22,51301862712,704.98,RADIS COMMUNITY CARE,CARE ESTABLISHMENT,OPPD - Cost of Care - East Cambs - Over 65,East Cambs - O P Team - Care,Supported Living
Cambridgeshire County Council,05-Oct-22,51301862712,704.98,RADIS COMMUNITY CARE,CARE ESTABLISHMENT,OPPD - Cost of Care - East Cambs - Over 65,East Cambs - O P Team - Care,Supported Living
Cambridgeshire County Council,05-Oct-22,51301862712,704.98,RADIS COMMUNITY CARE,CARE ESTABLISHMENT,OPPD - Cost of Care - East Cambs - Over 65,East Cambs - O P Team - Care,Supported Living
Cambridgeshire County Council,05-Oct-22,51301862712,704.98,RADIS COMMUNITY CARE,CARE ESTABLISHMENT,OPPD - Cost of Care - East Cambs - Over 65,East Cambs - O P Team - Care,Supported Living
Cambridgeshire County Council,05-Oct-22,51301862712,704.98,RADIS COMMUNITY CARE,CARE ESTABLISHMENT,OPPD - Cost of Care - East Cambs - Over 65,East Cambs - O P Team - Care,Supported Living
Cambridgeshire County Council,05-Oct-22,51301862712,704.98,RADIS COMMUNITY CARE,CARE ESTABLISHMENT,OPPD - Cost of Care - East Cambs - Over 65,East Cambs - O P Team - Care,Supported Living
Cambridgeshire County Council,05-Oct-22,51301862712,704.98,RADIS COMMUNITY CARE,CARE ESTABLISHMENT,OPPD - Cost of Care - East Cambs - Over 65,East Cambs - O P Team - Care,Supported Living
Cambridgeshire County Council,05-Oct-22,51301862712,704.98,RADIS COMMUNITY CARE,CARE ESTABLISHMENT,OPPD - Cost of Care - East Cambs - Over 65,East Cambs - O P Team - Care,Supported Living
Cambridgeshire County Council,05-Oct-22,51301862712,704.98,RADIS COMMUNITY CARE,CARE ESTABLISHMENT,OPPD - Cost of Care - East Cambs - Over 65,East Cambs - O P Team - Care,Supported Living
Cambridgeshire County Council,05-Oct-22,51301862712,704.98,RADIS COMMUNITY CARE,CARE ESTABLISHMENT,OPPD - Cost of Care - East Cambs - Over 65,East Cambs - O P Team - Care,Supported Living
Cambridgeshire County Council,05-Oct-22,51301862712,704.98,RADIS COMMUNITY CARE,CARE ESTABLISHMENT,OPPD - Cost of Care - East Cambs - Over 65,East Cambs - O P Team - Care,Supported Living
Cambridgeshire County Council,05-Oct-22,51301862712,704.98,RADIS COMMUNITY CARE,CARE ESTABLISHMENT,OPPD - Cost of Care - East Cambs - Over 65,East Cambs - O P Team - Care,Supported Living
Cambridgeshire County Council,05-Oct-22,51301862712,704.98,RADIS COMMUNITY CARE,CARE ESTABLISHMENT,OPPD - Cost of Care - East Cambs - Over 65,East Cambs - O P Team - Care,Supported Living
Cambridgeshire County Council,05-Oct-22,51301862712,704.98,RADIS COMMUNITY CARE,CARE ESTABLISHMENT,OPPD - Cost of Care - East Cambs - Over 65,East Cambs - O P Team - Care,Supported Living
Cambridgeshire County Council,05-Oct-22,51301862712,704.98,RADIS COMMUNITY CARE,CARE ESTABLISHMENT,OPPD - Cost of Care - East Cambs - Over 65,East Cambs - O P Team - Care,Supported Living
Cambridgeshire County Council,05-Oct-22,51301862712,704.98,RADIS COMMUNITY CARE,CARE ESTABLISHMENT,OPPD - Cost of Care - East Cambs - Over 65,East Cambs - O P Team - Care,Supported Living
Cambridgeshire County Council,05-Oct-22,51301862712,704.98,RADIS COMMUNITY CARE,CARE ESTABLISHMENT,OPPD - Cost of Care - East Cambs - Over 65,East Cambs - O P Team - Care,Supported Living
Cambridgeshire County Council,05-Oct-22,51301862712,704.98,RADIS COMMUNITY CARE,CARE ESTABLISHMENT,OPPD - Cost of Care - East Cambs - Over 65,East Cambs - O P Team - Care,Supported Living
Cambridgeshire County Council,05-Oct-22,51301862712,704.98,RADIS COMMUNITY CARE,CARE ESTABLISHMENT,OPPD - Cost of Care - East Cambs - Over 65,East Cambs - O P Team - Care,Supported Living
Cambridgeshire County Council,05-Oct-22,51301862712,704.98,RADIS COMMUNITY CARE,CARE ESTABLISHMENT,OPPD - Cost of Care - East Cambs - Over 65,East Cambs - O P Team - Care,Supported Living
Cambridgeshire County Council,05-Oct-22,51301862712,704.98,RADIS COMMUNITY CARE,CARE ESTABLISHMENT,OPPD - Cost of Care - East Cambs - Over 65,East Cambs - O P Team - Care,Supported Living
Cambridgeshire County Council,05-Oct-22,51301862712,704.98,RADIS COMMUNITY CARE,CARE ESTABLISHMENT,OPPD - Cost of Care - East Cambs - Over 65,East Cambs - O P Team - Care,Supported Living
Cambridgeshire County Council,05-Oct-22,51301861951,705.06,THOMAS RIDLEY & SON LTD,TRADE SUPPLIER,Burwell House,Burwell House Residential Centre,Catering Provisions
Cambridgeshire County Council,05-Oct-22,51301851340,706.50,CAMBRIDGE KIDS CLUB LTD,NURSERY,Early Years Specialist Support,Procurement - TA Inclusion & Access (EARLY YEARS),Independent School Placements
Cambridgeshire County Council,05-Oct-22,51301861868,720.00,Prospero Group,EDUCATION,Out of School Tuition,Out of School Provision - Education and Settings,Independent School Placements
Cambridgeshire County Council,05-Oct-22,51301861993,720.00,Prospero Group,EDUCATION,Out of School Tuition,Out of School Provision - Education and Settings,Independent School Placements
Cambridgeshire County Council,05-Oct-22,51301854406,720.00,Wrightspace Ltd,COMPANY,Temporary Accommodation,Temporary Accommodation,Mobile - Buildings
Cambridgeshire County Council,05-Oct-22,51301862055,720.20,Redacted Personal Data,PARENT/GUARDIAN,Home to School Transport - Special,Home to School Transport Special - Secondary,Contribution To Transport Related Provisions
Cambridgeshire County Council,05-Oct-22,51301862023,735.13,Redacted Personal Data,INDIVIDUAL,Home to School Transport - Special,Home to School Transport Special - Out of County,Contribution To Transport Related Provisions
Cambridgeshire County Council,05-Oct-22,51301862594,741.64,AG FAMILY SUPPORT LTD,OTHER PUBLIC BODIES,Contact,Contact Relief,Professional Fees and Hired Services
Cambridgeshire County Council,05-Oct-22,51301855513,745.75,JLR PLAY,NURSERY,Early Years Specialist Support,Procurement - TA Inclusion & Access (EARLY YEARS),Independent School Placements
Cambridgeshire County Council,05-Oct-22,51301862030,754.06,Redacted Personal Data,PARENT/GUARDIAN,Home to School Transport - Special,Home to School Transport Special - Special School,Contribution To Transport Related Provisions
Cambridgeshire County Council,05-Oct-22,51301862654,770.58,Redacted Personal Data,INDIVIDUAL,LD - East Locality - Cost of Care,LD - East Cambs - Care,Social Care Transport
Cambridgeshire County Council,05-Oct-22,51301862720,770.72,RADIS COMMUNITY CARE,CARE ESTABLISHMENT,OPPD - Cost of Care - Huntingdon - Over 65,Hunts OP Team - Care,Supported Living
Cambridgeshire County Council,05-Oct-22,51301862208,785.00,LITTLE WOMBATZ,NURSERY,Early Years Specialist Support,Procurement - TA Inclusion & Access (EARLY YEARS),Independent School Placements
Cambridgeshire County Council,05-Oct-22,51301862160,800.00,CAVALRY SCHOOL NURSERY,NURSERY,Nursery Schools,Early Years - Funded 3s/4s,Care & Ed Childcare Settings
Cambridgeshire County Council,05-Oct-22,51301862161,800.00,LITTLE HANDS NURSERY SCHOOL (LINTON & BARTLOW),NURSERY,Nursery Schools,Early Years - Funded 3s/4s,Care & Ed Childcare Settings
Cambridgeshire County Council,05-Oct-22,51301862162,800.00,STEPPING STONES PRE-SCHOOL (LEVERINGTON),NURSERY,Nursery Schools,Early Years - Funded 3s/4s,Care & Ed Childcare Settings
Cambridgeshire County Council,05-Oct-22,51301862485,810.00,Sugarman Group,EDUCATION,Out of School Tuition,Out of School Provision - Education and Settings,Independent School Placements
Cambridgeshire County Council,05-Oct-22,51301862069,818.04,Redacted Personal Data,PARENT/GUARDIAN,Home to School Transport - Special,Home to School Transport Special - Special School,Contribution To Transport Related Provisions
Cambridgeshire County Council,05-Oct-22,51301862651,823.50,Redacted Personal Data,INDIVIDUAL,LAC Transport,LAC Transport - Home to School,Social Care Transport
Cambridgeshire County Council,05-Oct-22,51301862716,824.47,RADIS COMMUNITY CARE,CARE ESTABLISHMENT,OPPD - Cost of Care - East Cambs - Over 65,East Cambs - O P Team - Care,Supported Living
Cambridgeshire County Council,05-Oct-22,51301862716,824.47,RADIS COMMUNITY CARE,CARE ESTABLISHMENT,OPPD - Cost of Care - East Cambs - Over 65,East Cambs - O P Team - Care,Supported Living
Cambridgeshire County Council,05-Oct-22,51301862716,824.47,RADIS COMMUNITY CARE,CARE ESTABLISHMENT,OPPD - Cost of Care - East Cambs - Over 65,East Cambs - O P Team - Care,Supported Living
Cambridgeshire County Council,05-Oct-22,51301862716,824.47,RADIS COMMUNITY CARE,CARE ESTABLISHMENT,OPPD - Cost of Care - East Cambs - Over 65,East Cambs - O P Team - Care,Supported Living
Cambridgeshire County Council,05-Oct-22,51301862716,824.47,RADIS COMMUNITY CARE,CARE ESTABLISHMENT,OPPD - Cost of Care - East Cambs - Over 65,East Cambs - O P Team - Care,Supported Living
Cambridgeshire County Council,05-Oct-22,51301862716,824.47,RADIS COMMUNITY CARE,CARE ESTABLISHMENT,OPPD - Cost of Care - East Cambs - Over 65,East Cambs - O P Team - Care,Supported Living
Cambridgeshire County Council,05-Oct-22,51301862716,824.47,RADIS COMMUNITY CARE,CARE ESTABLISHMENT,OPPD - Cost of Care - East Cambs - Over 65,East Cambs - O P Team - Care,Supported Living
Cambridgeshire County Council,05-Oct-22,51301862716,824.47,RADIS COMMUNITY CARE,CARE ESTABLISHMENT,OPPD - Cost of Care - East Cambs - Over 65,East Cambs - O P Team - Care,Supported Living
Cambridgeshire County Council,05-Oct-22,51301862716,824.47,RADIS COMMUNITY CARE,CARE ESTABLISHMENT,OPPD - Cost of Care - East Cambs - Over 65,East Cambs - O P Team - Care,Supported Living
Cambridgeshire County Council,05-Oct-22,51301862716,824.47,RADIS COMMUNITY CARE,CARE ESTABLISHMENT,OPPD - Cost of Care - East Cambs - Over 65,East Cambs - O P Team - Care,Supported Living
Cambridgeshire County Council,05-Oct-22,51301862716,824.47,RADIS COMMUNITY CARE,CARE ESTABLISHMENT,OPPD - Cost of Care - East Cambs - Over 65,East Cambs - O P Team - Care,Supported Living
Cambridgeshire County Council,05-Oct-22,51301862716,824.47,RADIS COMMUNITY CARE,CARE ESTABLISHMENT,OPPD - Cost of Care - East Cambs - Over 65,East Cambs - O P Team - Care,Supported Living
Cambridgeshire County Council,05-Oct-22,51301862716,824.47,RADIS COMMUNITY CARE,CARE ESTABLISHMENT,OPPD - Cost of Care - East Cambs - Over 65,East Cambs - O P Team - Care,Supported Living
Cambridgeshire County Council,05-Oct-22,51301862716,824.47,RADIS COMMUNITY CARE,CARE ESTABLISHMENT,OPPD - Cost of Care - East Cambs - Over 65,East Cambs - O P Team - Care,Supported Living
Cambridgeshire County Council,05-Oct-22,51301862716,824.47,RADIS COMMUNITY CARE,CARE ESTABLISHMENT,OPPD - Cost of Care - East Cambs - Over 65,East Cambs - O P Team - Care,Supported Living
Cambridgeshire County Council,05-Oct-22,51301862716,824.47,RADIS COMMUNITY CARE,CARE ESTABLISHMENT,OPPD - Cost of Care - East Cambs - Over 65,East Cambs - O P Team - Care,Supported Living
Cambridgeshire County Council,05-Oct-22,51301862716,824.47,RADIS COMMUNITY CARE,CARE ESTABLISHMENT,OPPD - Cost of Care - East Cambs - Over 65,East Cambs - O P Team - Care,Supported Living
Cambridgeshire County Council,05-Oct-22,51301862716,824.47,RADIS COMMUNITY CARE,CARE ESTABLISHMENT,OPPD - Cost of Care - East Cambs - Over 65,East Cambs - O P Team - Care,Supported Living
Cambridgeshire County Council,05-Oct-22,51301862716,824.47,RADIS COMMUNITY CARE,CARE ESTABLISHMENT,OPPD - Cost of Care - East Cambs - Over 65,East Cambs - O P Team - Care,Supported Living
Cambridgeshire County Council,05-Oct-22,51301862716,824.47,RADIS COMMUNITY CARE,CARE ESTABLISHMENT,OPPD - Cost of Care - East Cambs - Over 65,East Cambs - O P Team - Care,Supported Living
Cambridgeshire County Council,05-Oct-22,51301862716,824.47,RADIS COMMUNITY CARE,CARE ESTABLISHMENT,OPPD - Cost of Care - East Cambs - Over 65,East Cambs - O P Team - Care,Supported Living
Cambridgeshire County Council,05-Oct-22,51301862716,824.47,RADIS COMMUNITY CARE,CARE ESTABLISHMENT,OPPD - Cost of Care - East Cambs - Over 65,East Cambs - O P Team - Care,Supported Living
Cambridgeshire County Council,05-Oct-22,51301862716,824.47,RADIS COMMUNITY CARE,CARE ESTABLISHMENT,OPPD - Cost of Care - East Cambs - Over 65,East Cambs - O P Team - Care,Supported Living
Cambridgeshire County Council,05-Oct-22,51301862716,824.47,RADIS COMMUNITY CARE,CARE ESTABLISHMENT,OPPD - Cost of Care - East Cambs - Over 65,East Cambs - O P Team - Care,Supported Living
Cambridgeshire County Council,05-Oct-22,51301862716,824.47,RADIS COMMUNITY CARE,CARE ESTABLISHMENT,OPPD - Cost of Care - East Cambs - Over 65,East Cambs - O P Team - Care,Supported Living
Cambridgeshire County Council,05-Oct-22,51301862716,824.47,RADIS COMMUNITY CARE,CARE ESTABLISHMENT,OPPD - Cost of Care - East Cambs - Over 65,East Cambs - O P Team - Care,Supported Living
Cambridgeshire County Council,05-Oct-22,51301862716,824.47,RADIS COMMUNITY CARE,CARE ESTABLISHMENT,OPPD - Cost of Care - East Cambs - Over 65,East Cambs - O P Team - Care,Supported Living
Cambridgeshire County Council,05-Oct-22,51301862716,824.47,RADIS COMMUNITY CARE,CARE ESTABLISHMENT,OPPD - Cost of Care - East Cambs - Over 65,East Cambs - O P Team - Care,Supported Living
Cambridgeshire County Council,05-Oct-22,51301862716,824.47,RADIS COMMUNITY CARE,CARE ESTABLISHMENT,OPPD - Cost of Care - East Cambs - Over 65,East Cambs - O P Team - Care,Supported Living
Cambridgeshire County Council,05-Oct-22,51301862716,824.47,RADIS COMMUNITY CARE,CARE ESTABLISHMENT,OPPD - Cost of Care - East Cambs - Over 65,East Cambs - O P Team - Care,Supported Living
Cambridgeshire County Council,05-Oct-22,51301862717,824.47,RADIS COMMUNITY CARE,CARE ESTABLISHMENT,OPPD - Cost of Care - East Cambs - Over 65,East Cambs - O P Team - Care,Supported Living
Cambridgeshire County Council,05-Oct-22,51301862717,824.47,RADIS COMMUNITY CARE,CARE ESTABLISHMENT,OPPD - Cost of Care - East Cambs - Over 65,East Cambs - O P Team - Care,Supported Living
Cambridgeshire County Council,05-Oct-22,51301862717,824.47,RADIS COMMUNITY CARE,CARE ESTABLISHMENT,OPPD - Cost of Care - East Cambs - Over 65,East Cambs - O P Team - Care,Supported Living
Cambridgeshire County Council,05-Oct-22,51301862716,824.47,RADIS COMMUNITY CARE,CARE ESTABLISHMENT,OPPD - Cost of Care - East Cambs - Over 65,East Cambs - O P Team - Care,Supported Living
Cambridgeshire County Council,05-Oct-22,51301862716,824.47,RADIS COMMUNITY CARE,CARE ESTABLISHMENT,OPPD - Cost of Care - East Cambs - Over 65,East Cambs - O P Team - Care,Supported Living
Cambridgeshire County Council,05-Oct-22,51301862716,824.47,RADIS COMMUNITY CARE,CARE ESTABLISHMENT,OPPD - Cost of Care - East Cambs - Over 65,East Cambs - O P Team - Care,Supported Living
Cambridgeshire County Council,05-Oct-22,51301862716,824.47,RADIS COMMUNITY CARE,CARE ESTABLISHMENT,OPPD - Cost of Care - East Cambs - Over 65,East Cambs - O P Team - Care,Supported Living
Cambridgeshire County Council,05-Oct-22,51301862716,824.47,RADIS COMMUNITY CARE,CARE ESTABLISHMENT,OPPD - Cost of Care - East Cambs - Over 65,East Cambs - O P Team - Care,Supported Living
Cambridgeshire County Council,05-Oct-22,51301862716,824.47,RADIS COMMUNITY CARE,CARE ESTABLISHMENT,OPPD - Cost of Care - East Cambs - Over 65,East Cambs - O P Team - Care,Supported Living
Cambridgeshire County Council,05-Oct-22,51301862716,824.47,RADIS COMMUNITY CARE,CARE ESTABLISHMENT,OPPD - Cost of Care - East Cambs - Over 65,East Cambs - O P Team - Care,Supported Living
Cambridgeshire County Council,05-Oct-22,51301862716,824.47,RADIS COMMUNITY CARE,CARE ESTABLISHMENT,OPPD - Cost of Care - East Cambs - Over 65,East Cambs - O P Team - Care,Supported Living
Cambridgeshire County Council,05-Oct-22,51301862716,824.47,RADIS COMMUNITY CARE,CARE ESTABLISHMENT,OPPD - Cost of Care - East Cambs - Over 65,East Cambs - O P Team - Care,Supported Living
Cambridgeshire County Council,05-Oct-22,51301862716,824.47,RADIS COMMUNITY CARE,CARE ESTABLISHMENT,OPPD - Cost of Care - East Cambs - Over 65,East Cambs - O P Team - Care,Supported Living
Cambridgeshire County Council,05-Oct-22,51301862716,824.47,RADIS COMMUNITY CARE,CARE ESTABLISHMENT,OPPD - Cost of Care - East Cambs - Over 65,East Cambs - O P Team - Care,Supported Living
Cambridgeshire County Council,05-Oct-22,51301862716,824.47,RADIS COMMUNITY CARE,CARE ESTABLISHMENT,OPPD - Cost of Care - East Cambs - Over 65,East Cambs - O P Team - Care,Supported Living
Cambridgeshire County Council,05-Oct-22,51301862716,824.47,RADIS COMMUNITY CARE,CARE ESTABLISHMENT,OPPD - Cost of Care - East Cambs - Over 65,East Cambs - O P Team - Care,Supported Living
Cambridgeshire County Council,05-Oct-22,51301862716,824.47,RADIS COMMUNITY CARE,CARE ESTABLISHMENT,OPPD - Cost of Care - East Cambs - Over 65,East Cambs - O P Team - Care,Supported Living
Cambridgeshire County Council,05-Oct-22,51301862716,824.47,RADIS COMMUNITY CARE,CARE ESTABLISHMENT,OPPD - Cost of Care - East Cambs - Over 65,East Cambs - O P Team - Care,Supported Living
Cambridgeshire County Council,05-Oct-22,51301862716,824.47,RADIS COMMUNITY CARE,CARE ESTABLISHMENT,OPPD - Cost of Care - East Cambs - Over 65,East Cambs - O P Team - Care,Supported Living
Cambridgeshire County Council,05-Oct-22,51301862716,824.47,RADIS COMMUNITY CARE,CARE ESTABLISHMENT,OPPD - Cost of Care - East Cambs - Over 65,East Cambs - O P Team - Care,Supported Living
Cambridgeshire County Council,05-Oct-22,51301862716,824.47,RADIS COMMUNITY CARE,CARE ESTABLISHMENT,OPPD - Cost of Care - East Cambs - Over 65,East Cambs - O P Team - Care,Supported Living
Cambridgeshire County Council,05-Oct-22,51301862716,824.47,RADIS COMMUNITY CARE,CARE ESTABLISHMENT,OPPD - Cost of Care - East Cambs - Over 65,East Cambs - O P Team - Care,Supported Living
Cambridgeshire County Council,05-Oct-22,51301862716,824.47,RADIS COMMUNITY CARE,CARE ESTABLISHMENT,OPPD - Cost of Care - East Cambs - Over 65,East Cambs - O P Team - Care,Supported Living
Cambridgeshire County Council,05-Oct-22,51301862716,824.47,RADIS COMMUNITY CARE,CARE ESTABLISHMENT,OPPD - Cost of Care - East Cambs - Over 65,East Cambs - O P Team - Care,Supported Living
Cambridgeshire County Council,05-Oct-22,51301862717,824.47,RADIS COMMUNITY CARE,CARE ESTABLISHMENT,OPPD - Cost of Care - East Cambs - Over 65,East Cambs - O P Team - Care,Supported Living
Cambridgeshire County Council,05-Oct-22,51301862717,824.47,RADIS COMMUNITY CARE,CARE ESTABLISHMENT,OPPD - Cost of Care - East Cambs - Over 65,East Cambs - O P Team - Care,Supported Living
Cambridgeshire County Council,05-Oct-22,51301862717,824.47,RADIS COMMUNITY CARE,CARE ESTABLISHMENT,OPPD - Cost of Care - East Cambs - Over 65,East Cambs - O P Team - Care,Supported Living
Cambridgeshire County Council,05-Oct-22,51301862717,824.47,RADIS COMMUNITY CARE,CARE ESTABLISHMENT,OPPD - Cost of Care - East Cambs - Over 65,East Cambs - O P Team - Care,Supported Living
Cambridgeshire County Council,05-Oct-22,51301862717,824.47,RADIS COMMUNITY CARE,CARE ESTABLISHMENT,OPPD - Cost of Care - East Cambs - Over 65,East Cambs - O P Team - Care,Supported Living
Cambridgeshire County Council,05-Oct-22,51301862717,824.47,RADIS COMMUNITY CARE,CARE ESTABLISHMENT,OPPD - Cost of Care - East Cambs - Over 65,East Cambs - O P Team - Care,Supported Living
Cambridgeshire County Council,05-Oct-22,51301862717,824.47,RADIS COMMUNITY CARE,CARE ESTABLISHMENT,OPPD - Cost of Care - East Cambs - Over 65,East Cambs - O P Team - Care,Supported Living
Cambridgeshire County Council,05-Oct-22,51301862717,824.47,RADIS COMMUNITY CARE,CARE ESTABLISHMENT,OPPD - Cost of Care - East Cambs - Over 65,East Cambs - O P Team - Care,Supported Living
Cambridgeshire County Council,05-Oct-22,51301862717,824.47,RADIS COMMUNITY CARE,CARE ESTABLISHMENT,OPPD - Cost of Care - East Cambs - Over 65,East Cambs - O P Team - Care,Supported Living
Cambridgeshire County Council,05-Oct-22,51301862717,824.47,RADIS COMMUNITY CARE,CARE ESTABLISHMENT,OPPD - Cost of Care - East Cambs - Over 65,East Cambs - O P Team - Care,Supported Living
Cambridgeshire County Council,05-Oct-22,51301862717,824.47,RADIS COMMUNITY CARE,CARE ESTABLISHMENT,OPPD - Cost of Care - East Cambs - Over 65,East Cambs - O P Team - Care,Supported Living
Cambridgeshire County Council,05-Oct-22,51301862717,824.47,RADIS COMMUNITY CARE,CARE ESTABLISHMENT,OPPD - Cost of Care - East Cambs - Over 65,East Cambs - O P Team - Care,Supported Living
Cambridgeshire County Council,05-Oct-22,51301862717,824.47,RADIS COMMUNITY CARE,CARE ESTABLISHMENT,OPPD - Cost of Care - East Cambs - Over 65,East Cambs - O P Team - Care,Supported Living
Cambridgeshire County Council,05-Oct-22,51301862717,824.47,RADIS COMMUNITY CARE,CARE ESTABLISHMENT,OPPD - Cost of Care - East Cambs - Over 65,East Cambs - O P Team - Care,Supported Living
Cambridgeshire County Council,05-Oct-22,51301862717,824.47,RADIS COMMUNITY CARE,CARE ESTABLISHMENT,OPPD - Cost of Care - East Cambs - Over 65,East Cambs - O P Team - Care,Supported Living
Cambridgeshire County Council,05-Oct-22,51301862717,824.47,RADIS COMMUNITY CARE,CARE ESTABLISHMENT,OPPD - Cost of Care - East Cambs - Over 65,East Cambs - O P Team - Care,Supported Living
Cambridgeshire County Council,05-Oct-22,51301862717,824.47,RADIS COMMUNITY CARE,CARE ESTABLISHMENT,OPPD - Cost of Care - East Cambs - Over 65,East Cambs - O P Team - Care,Supported Living
Cambridgeshire County Council,05-Oct-22,51301862717,824.47,RADIS COMMUNITY CARE,CARE ESTABLISHMENT,OPPD - Cost of Care - East Cambs - Over 65,East Cambs - O P Team - Care,Supported Living
Cambridgeshire County Council,05-Oct-22,51301862715,826.31,RADIS COMMUNITY CARE,CARE ESTABLISHMENT,OPPD - Cost of Care - East Cambs - Over 65,East Cambs - O P Team - Care,Supported Living
Cambridgeshire County Council,05-Oct-22,51301862715,826.31,RADIS COMMUNITY CARE,CARE ESTABLISHMENT,OPPD - Cost of Care - East Cambs - Over 65,East Cambs - O P Team - Care,Supported Living
Cambridgeshire County Council,05-Oct-22,51301862715,826.31,RADIS COMMUNITY CARE,CARE ESTABLISHMENT,OPPD - Cost of Care - East Cambs - Over 65,East Cambs - O P Team - Care,Supported Living
Cambridgeshire County Council,05-Oct-22,51301862715,826.31,RADIS COMMUNITY CARE,CARE ESTABLISHMENT,OPPD - Cost of Care - East Cambs - Over 65,East Cambs - O P Team - Care,Supported Living
Cambridgeshire County Council,05-Oct-22,51301862715,826.31,RADIS COMMUNITY CARE,CARE ESTABLISHMENT,OPPD - Cost of Care - East Cambs - Over 65,East Cambs - O P Team - Care,Supported Living
Cambridgeshire County Council,05-Oct-22,51301862715,826.31,RADIS COMMUNITY CARE,CARE ESTABLISHMENT,OPPD - Cost of Care - East Cambs - Over 65,East Cambs - O P Team - Care,Supported Living
Cambridgeshire County Council,05-Oct-22,51301862715,826.31,RADIS COMMUNITY CARE,CARE ESTABLISHMENT,OPPD - Cost of Care - East Cambs - Over 65,East Cambs - O P Team - Care,Supported Living
Cambridgeshire County Council,05-Oct-22,51301862715,826.31,RADIS COMMUNITY CARE,CARE ESTABLISHMENT,OPPD - Cost of Care - East Cambs - Over 65,East Cambs - O P Team - Care,Supported Living
Cambridgeshire County Council,05-Oct-22,51301862715,826.31,RADIS COMMUNITY CARE,CARE ESTABLISHMENT,OPPD - Cost of Care - East Cambs - Over 65,East Cambs - O P Team - Care,Supported Living
Cambridgeshire County Council,05-Oct-22,51301862715,826.31,RADIS COMMUNITY CARE,CARE ESTABLISHMENT,OPPD - Cost of Care - East Cambs - Over 65,East Cambs - O P Team - Care,Supported Living
Cambridgeshire County Council,05-Oct-22,51301862715,826.31,RADIS COMMUNITY CARE,CARE ESTABLISHMENT,OPPD - Cost of Care - East Cambs - Over 65,East Cambs - O P Team - Care,Supported Living
Cambridgeshire County Council,05-Oct-22,51301862715,826.31,RADIS COMMUNITY CARE,CARE ESTABLISHMENT,OPPD - Cost of Care - East Cambs - Over 65,East Cambs - O P Team - Care,Supported Living
Cambridgeshire County Council,05-Oct-22,51301862715,826.31,RADIS COMMUNITY CARE,CARE ESTABLISHMENT,OPPD - Cost of Care - East Cambs - Over 65,East Cambs - O P Team - Care,Supported Living
Cambridgeshire County Council,05-Oct-22,51301862715,826.31,RADIS COMMUNITY CARE,CARE ESTABLISHMENT,OPPD - Cost of Care - East Cambs - Over 65,East Cambs - O P Team - Care,Supported Living
Cambridgeshire County Council,05-Oct-22,51301862715,826.31,RADIS COMMUNITY CARE,CARE ESTABLISHMENT,OPPD - Cost of Care - East Cambs - Over 65,East Cambs - O P Team - Care,Supported Living
Cambridgeshire County Council,05-Oct-22,51301862715,826.31,RADIS COMMUNITY CARE,CARE ESTABLISHMENT,OPPD - Cost of Care - East Cambs - Over 65,East Cambs - O P Team - Care,Supported Living
Cambridgeshire County Council,05-Oct-22,51301862715,826.31,RADIS COMMUNITY CARE,CARE ESTABLISHMENT,OPPD - Cost of Care - East Cambs - Over 65,East Cambs - O P Team - Care,Supported Living
Cambridgeshire County Council,05-Oct-22,51301862715,826.31,RADIS COMMUNITY CARE,CARE ESTABLISHMENT,OPPD - Cost of Care - East Cambs - Over 65,East Cambs - O P Team - Care,Supported Living
Cambridgeshire County Council,05-Oct-22,51301862715,826.31,RADIS COMMUNITY CARE,CARE ESTABLISHMENT,OPPD - Cost of Care - East Cambs - Over 65,East Cambs - O P Team - Care,Supported Living
Cambridgeshire County Council,05-Oct-22,51301862715,826.31,RADIS COMMUNITY CARE,CARE ESTABLISHMENT,OPPD - Cost of Care - East Cambs - Over 65,East Cambs - O P Team - Care,Supported Living
Cambridgeshire County Council,05-Oct-22,51301862715,826.31,RADIS COMMUNITY CARE,CARE ESTABLISHMENT,OPPD - Cost of Care - East Cambs - Over 65,East Cambs - O P Team - Care,Supported Living
Cambridgeshire County Council,05-Oct-22,51301862715,826.31,RADIS COMMUNITY CARE,CARE ESTABLISHMENT,OPPD - Cost of Care - East Cambs - Over 65,East Cambs - O P Team - Care,Supported Living
Cambridgeshire County Council,05-Oct-22,51301862715,826.31,RADIS COMMUNITY CARE,CARE ESTABLISHMENT,OPPD - Cost of Care - East Cambs - Over 65,East Cambs - O P Team - Care,Supported Living
Cambridgeshire County Council,05-Oct-22,51301862715,826.31,RADIS COMMUNITY CARE,CARE ESTABLISHMENT,OPPD - Cost of Care - East Cambs - Over 65,East Cambs - O P Team - Care,Supported Living
Cambridgeshire County Council,05-Oct-22,51301862715,826.31,RADIS COMMUNITY CARE,CARE ESTABLISHMENT,OPPD - Cost of Care - East Cambs - Over 65,East Cambs - O P Team - Care,Supported Living
Cambridgeshire County Council,05-Oct-22,51301862715,826.31,RADIS COMMUNITY CARE,CARE ESTABLISHMENT,OPPD - Cost of Care - East Cambs - Over 65,East Cambs - O P Team - Care,Supported Living
Cambridgeshire County Council,05-Oct-22,51301862715,826.31,RADIS COMMUNITY CARE,CARE ESTABLISHMENT,OPPD - Cost of Care - East Cambs - Over 65,East Cambs - O P Team - Care,Supported Living
Cambridgeshire County Council,05-Oct-22,51301862715,826.31,RADIS COMMUNITY CARE,CARE ESTABLISHMENT,OPPD - Cost of Care - East Cambs - Over 65,East Cambs - O P Team - Care,Supported Living
Cambridgeshire County Council,05-Oct-22,51301862715,826.31,RADIS COMMUNITY CARE,CARE ESTABLISHMENT,OPPD - Cost of Care - East Cambs - Over 65,East Cambs - O P Team - Care,Supported Living
Cambridgeshire County Council,05-Oct-22,51301862715,826.31,RADIS COMMUNITY CARE,CARE ESTABLISHMENT,OPPD - Cost of Care - East Cambs - Over 65,East Cambs - O P Team - Care,Supported Living
Cambridgeshire County Council,05-Oct-22,51301862715,826.31,RADIS COMMUNITY CARE,CARE ESTABLISHMENT,OPPD - Cost of Care - East Cambs - Over 65,East Cambs - O P Team - Care,Supported Living
Cambridgeshire County Council,05-Oct-22,51301862715,826.31,RADIS COMMUNITY CARE,CARE ESTABLISHMENT,OPPD - Cost of Care - East Cambs - Over 65,East Cambs - O P Team - Care,Supported Living
Cambridgeshire County Council,05-Oct-22,51301862104,841.67,Redacted Personal Data,PARENT/GUARDIAN,Home to School Transport - Special,Home to School Transport Special - Primary,Contribution To Transport Related Provisions
Cambridgeshire County Council,05-Oct-22,51301855515,894.90,JLR PLAY,NURSERY,Early Years Specialist Support,Procurement - TA Inclusion & Access (EARLY YEARS),Independent School Placements
Cambridgeshire County Council,05-Oct-22,51301858979,894.90,JLR PLAY,NURSERY,Early Years Specialist Support,Procurement - TA Inclusion & Access (EARLY YEARS),Independent School Placements
Cambridgeshire County Council,05-Oct-22,51301855518,894.90,JLR PLAY,NURSERY,Early Years Specialist Support,Procurement - TA Inclusion & Access (EARLY YEARS),Independent School Placements
Cambridgeshire County Council,05-Oct-22,51301862687,922.12,ASKEWS AND HOLTS LIBRARY SERVICES LTD,TRADE SUPPLIER,Libraries - Stock & Distribution,Support - Stock & Distribution,Books and Multimedia Supplies
Cambridgeshire County Council,05-Oct-22,51301862039,930.31,Redacted Personal Data,PARENT/GUARDIAN,Home to School Transport - Special,Home to School Transport Special - Out of County,Contribution To Transport Related Provisions
Cambridgeshire County Council,05-Oct-22,51301862714,939.70,RADIS COMMUNITY CARE,CARE ESTABLISHMENT,OPPD - Cost of Care - East Cambs - Over 65,East Cambs - O P Team - Care,Supported Living
Cambridgeshire County Council,05-Oct-22,51301862714,939.70,RADIS COMMUNITY CARE,CARE ESTABLISHMENT,OPPD - Cost of Care - East Cambs - Over 65,East Cambs - O P Team - Care,Supported Living
Cambridgeshire County Council,05-Oct-22,51301862714,939.70,RADIS COMMUNITY CARE,CARE ESTABLISHMENT,OPPD - Cost of Care - East Cambs - Over 65,East Cambs - O P Team - Care,Supported Living
Cambridgeshire County Council,05-Oct-22,51301862714,939.70,RADIS COMMUNITY CARE,CARE ESTABLISHMENT,OPPD - Cost of Care - East Cambs - Over 65,East Cambs - O P Team - Care,Supported Living
Cambridgeshire County Council,05-Oct-22,51301862714,939.70,RADIS COMMUNITY CARE,CARE ESTABLISHMENT,OPPD - Cost of Care - East Cambs - Over 65,East Cambs - O P Team - Care,Supported Living
Cambridgeshire County Council,05-Oct-22,51301862714,939.70,RADIS COMMUNITY CARE,CARE ESTABLISHMENT,OPPD - Cost of Care - East Cambs - Over 65,East Cambs - O P Team - Care,Supported Living
Cambridgeshire County Council,05-Oct-22,51301862714,939.70,RADIS COMMUNITY CARE,CARE ESTABLISHMENT,OPPD - Cost of Care - East Cambs - Over 65,East Cambs - O P Team - Care,Supported Living
Cambridgeshire County Council,05-Oct-22,51301862714,939.70,RADIS COMMUNITY CARE,CARE ESTABLISHMENT,OPPD - Cost of Care - East Cambs - Over 65,East Cambs - O P Team - Care,Supported Living
Cambridgeshire County Council,05-Oct-22,51301862713,939.70,RADIS COMMUNITY CARE,CARE ESTABLISHMENT,OPPD - Cost of Care - East Cambs - Over 65,East Cambs - O P Team - Care,Supported Living
Cambridgeshire County Council,05-Oct-22,51301862713,939.70,RADIS COMMUNITY CARE,CARE ESTABLISHMENT,OPPD - Cost of Care - East Cambs - Over 65,East Cambs - O P Team - Care,Supported Living
Cambridgeshire County Council,05-Oct-22,51301862713,939.70,RADIS COMMUNITY CARE,CARE ESTABLISHMENT,OPPD - Cost of Care - East Cambs - Over 65,East Cambs - O P Team - Care,Supported Living
Cambridgeshire County Council,05-Oct-22,51301862713,939.70,RADIS COMMUNITY CARE,CARE ESTABLISHMENT,OPPD - Cost of Care - East Cambs - Over 65,East Cambs - O P Team - Care,Supported Living
Cambridgeshire County Council,05-Oct-22,51301862713,939.70,RADIS COMMUNITY CARE,CARE ESTABLISHMENT,OPPD - Cost of Care - East Cambs - Over 65,East Cambs - O P Team - Care,Supported Living
Cambridgeshire County Council,05-Oct-22,51301862713,939.70,RADIS COMMUNITY CARE,CARE ESTABLISHMENT,OPPD - Cost of Care - East Cambs - Over 65,East Cambs - O P Team - Care,Supported Living
Cambridgeshire County Council,05-Oct-22,51301862713,939.70,RADIS COMMUNITY CARE,CARE ESTABLISHMENT,OPPD - Cost of Care - East Cambs - Over 65,East Cambs - O P Team - Care,Supported Living
Cambridgeshire County Council,05-Oct-22,51301862713,939.70,RADIS COMMUNITY CARE,CARE ESTABLISHMENT,OPPD - Cost of Care - East Cambs - Over 65,East Cambs - O P Team - Care,Supported Living
Cambridgeshire County Council,05-Oct-22,51301862713,939.70,RADIS COMMUNITY CARE,CARE ESTABLISHMENT,OPPD - Cost of Care - East Cambs - Over 65,East Cambs - O P Team - Care,Supported Living
Cambridgeshire County Council,05-Oct-22,51301862713,939.70,RADIS COMMUNITY CARE,CARE ESTABLISHMENT,OPPD - Cost of Care - East Cambs - Over 65,East Cambs - O P Team - Care,Supported Living
Cambridgeshire County Council,05-Oct-22,51301862713,939.70,RADIS COMMUNITY CARE,CARE ESTABLISHMENT,OPPD - Cost of Care - East Cambs - Over 65,East Cambs - O P Team - Care,Supported Living
Cambridgeshire County Council,05-Oct-22,51301862713,939.70,RADIS COMMUNITY CARE,CARE ESTABLISHMENT,OPPD - Cost of Care - East Cambs - Over 65,East Cambs - O P Team - Care,Supported Living
Cambridgeshire County Council,05-Oct-22,51301862713,939.70,RADIS COMMUNITY CARE,CARE ESTABLISHMENT,OPPD - Cost of Care - East Cambs - Over 65,East Cambs - O P Team - Care,Supported Living
Cambridgeshire County Council,05-Oct-22,51301862713,939.70,RADIS COMMUNITY CARE,CARE ESTABLISHMENT,OPPD - Cost of Care - East Cambs - Over 65,East Cambs - O P Team - Care,Supported Living
Cambridgeshire County Council,05-Oct-22,51301862713,939.70,RADIS COMMUNITY CARE,CARE ESTABLISHMENT,OPPD - Cost of Care - East Cambs - Over 65,East Cambs - O P Team - Care,Supported Living
Cambridgeshire County Council,05-Oct-22,51301862713,939.70,RADIS COMMUNITY CARE,CARE ESTABLISHMENT,OPPD - Cost of Care - East Cambs - Over 65,East Cambs - O P Team - Care,Supported Living
Cambridgeshire County Council,05-Oct-22,51301862713,939.70,RADIS COMMUNITY CARE,CARE ESTABLISHMENT,OPPD - Cost of Care - East Cambs - Over 65,East Cambs - O P Team - Care,Supported Living
Cambridgeshire County Council,05-Oct-22,51301862713,939.70,RADIS COMMUNITY CARE,CARE ESTABLISHMENT,OPPD - Cost of Care - East Cambs - Over 65,East Cambs - O P Team - Care,Supported Living
Cambridgeshire County Council,05-Oct-22,51301862713,939.70,RADIS COMMUNITY CARE,CARE ESTABLISHMENT,OPPD - Cost of Care - East Cambs - Over 65,East Cambs - O P Team - Care,Supported Living
Cambridgeshire County Council,05-Oct-22,51301862713,939.70,RADIS COMMUNITY CARE,CARE ESTABLISHMENT,OPPD - Cost of Care - East Cambs - Over 65,East Cambs - O P Team - Care,Supported Living
Cambridgeshire County Council,05-Oct-22,51301862713,939.70,RADIS COMMUNITY CARE,CARE ESTABLISHMENT,OPPD - Cost of Care - East Cambs - Over 65,East Cambs - O P Team - Care,Supported Living
Cambridgeshire County Council,05-Oct-22,51301862713,939.70,RADIS COMMUNITY CARE,CARE ESTABLISHMENT,OPPD - Cost of Care - East Cambs - Over 65,East Cambs - O P Team - Care,Supported Living
Cambridgeshire County Council,05-Oct-22,51301862713,939.70,RADIS COMMUNITY CARE,CARE ESTABLISHMENT,OPPD - Cost of Care - East Cambs - Over 65,East Cambs - O P Team - Care,Supported Living
Cambridgeshire County Council,05-Oct-22,51301862713,939.70,RADIS COMMUNITY CARE,CARE ESTABLISHMENT,OPPD - Cost of Care - East Cambs - Over 65,East Cambs - O P Team - Care,Supported Living
Cambridgeshire County Council,05-Oct-22,51301862713,939.70,RADIS COMMUNITY CARE,CARE ESTABLISHMENT,OPPD - Cost of Care - East Cambs - Over 65,East Cambs - O P Team - Care,Supported Living
Cambridgeshire County Council,05-Oct-22,51301862713,939.70,RADIS COMMUNITY CARE,CARE ESTABLISHMENT,OPPD - Cost of Care - East Cambs - Over 65,East Cambs - O P Team - Care,Supported Living
Cambridgeshire County Council,05-Oct-22,51301862713,939.70,RADIS COMMUNITY CARE,CARE ESTABLISHMENT,OPPD - Cost of Care - East Cambs - Over 65,East Cambs - O P Team - Care,Supported Living
Cambridgeshire County Council,05-Oct-22,51301862713,939.70,RADIS COMMUNITY CARE,CARE ESTABLISHMENT,OPPD - Cost of Care - East Cambs - Over 65,East Cambs - O P Team - Care,Supported Living
Cambridgeshire County Council,05-Oct-22,51301862713,939.70,RADIS COMMUNITY CARE,CARE ESTABLISHMENT,OPPD - Cost of Care - East Cambs - Over 65,East Cambs - O P Team - Care,Supported Living
Cambridgeshire County Council,05-Oct-22,51301862714,939.70,RADIS COMMUNITY CARE,CARE ESTABLISHMENT,OPPD - Cost of Care - East Cambs - Over 65,East Cambs - O P Team - Care,Supported Living
Cambridgeshire County Council,05-Oct-22,51301862714,939.70,RADIS COMMUNITY CARE,CARE ESTABLISHMENT,OPPD - Cost of Care - East Cambs - Over 65,East Cambs - O P Team - Care,Supported Living
Cambridgeshire County Council,05-Oct-22,51301862714,939.70,RADIS COMMUNITY CARE,CARE ESTABLISHMENT,OPPD - Cost of Care - East Cambs - Over 65,East Cambs - O P Team - Care,Supported Living
Cambridgeshire County Council,05-Oct-22,51301862714,939.70,RADIS COMMUNITY CARE,CARE ESTABLISHMENT,OPPD - Cost of Care - East Cambs - Over 65,East Cambs - O P Team - Care,Supported Living
Cambridgeshire County Council,05-Oct-22,51301862714,939.70,RADIS COMMUNITY CARE,CARE ESTABLISHMENT,OPPD - Cost of Care - East Cambs - Over 65,East Cambs - O P Team - Care,Supported Living
Cambridgeshire County Council,05-Oct-22,51301862714,939.70,RADIS COMMUNITY CARE,CARE ESTABLISHMENT,OPPD - Cost of Care - East Cambs - Over 65,East Cambs - O P Team - Care,Supported Living
Cambridgeshire County Council,05-Oct-22,51301862714,939.70,RADIS COMMUNITY CARE,CARE ESTABLISHMENT,OPPD - Cost of Care - East Cambs - Over 65,East Cambs - O P Team - Care,Supported Living
Cambridgeshire County Council,05-Oct-22,51301862714,939.70,RADIS COMMUNITY CARE,CARE ESTABLISHMENT,OPPD - Cost of Care - East Cambs - Over 65,East Cambs - O P Team - Care,Supported Living
Cambridgeshire County Council,05-Oct-22,51301862714,939.70,RADIS COMMUNITY CARE,CARE ESTABLISHMENT,OPPD - Cost of Care - East Cambs - Over 65,East Cambs - O P Team - Care,Supported Living
Cambridgeshire County Council,05-Oct-22,51301862714,939.70,RADIS COMMUNITY CARE,CARE ESTABLISHMENT,OPPD - Cost of Care - East Cambs - Over 65,East Cambs - O P Team - Care,Supported Living
Cambridgeshire County Council,05-Oct-22,51301862714,939.70,RADIS COMMUNITY CARE,CARE ESTABLISHMENT,OPPD - Cost of Care - East Cambs - Over 65,East Cambs - O P Team - Care,Supported Living
Cambridgeshire County Council,05-Oct-22,51301862714,939.70,RADIS COMMUNITY CARE,CARE ESTABLISHMENT,OPPD - Cost of Care - East Cambs - Over 65,East Cambs - O P Team - Care,Supported Living
Cambridgeshire County Council,05-Oct-22,51301862714,939.70,RADIS COMMUNITY CARE,CARE ESTABLISHMENT,OPPD - Cost of Care - East Cambs - Over 65,East Cambs - O P Team - Care,Supported Living
Cambridgeshire County Council,05-Oct-22,51301862713,939.70,RADIS COMMUNITY CARE,CARE ESTABLISHMENT,OPPD - Cost of Care - East Cambs - Over 65,East Cambs - O P Team - Care,Supported Living
Cambridgeshire County Council,05-Oct-22,51301862713,939.70,RADIS COMMUNITY CARE,CARE ESTABLISHMENT,OPPD - Cost of Care - East Cambs - Over 65,East Cambs - O P Team - Care,Supported Living
Cambridgeshire County Council,05-Oct-22,51301862713,939.70,RADIS COMMUNITY CARE,CARE ESTABLISHMENT,OPPD - Cost of Care - East Cambs - Over 65,East Cambs - O P Team - Care,Supported Living
Cambridgeshire County Council,05-Oct-22,51301862713,939.70,RADIS COMMUNITY CARE,CARE ESTABLISHMENT,OPPD - Cost of Care - East Cambs - Over 65,East Cambs - O P Team - Care,Supported Living
Cambridgeshire County Council,05-Oct-22,51301862713,939.70,RADIS COMMUNITY CARE,CARE ESTABLISHMENT,OPPD - Cost of Care - East Cambs - Over 65,East Cambs - O P Team - Care,Supported Living
Cambridgeshire County Council,05-Oct-22,51301862713,939.70,RADIS COMMUNITY CARE,CARE ESTABLISHMENT,OPPD - Cost of Care - East Cambs - Over 65,East Cambs - O P Team - Care,Supported Living
Cambridgeshire County Council,05-Oct-22,51301862713,939.70,RADIS COMMUNITY CARE,CARE ESTABLISHMENT,OPPD - Cost of Care - East Cambs - Over 65,East Cambs - O P Team - Care,Supported Living
Cambridgeshire County Council,05-Oct-22,51301862713,939.70,RADIS COMMUNITY CARE,CARE ESTABLISHMENT,OPPD - Cost of Care - East Cambs - Over 65,East Cambs - O P Team - Care,Supported Living
Cambridgeshire County Council,05-Oct-22,51301862713,939.70,RADIS COMMUNITY CARE,CARE ESTABLISHMENT,OPPD - Cost of Care - East Cambs - Over 65,East Cambs - O P Team - Care,Supported Living
Cambridgeshire County Council,05-Oct-22,51301862713,939.70,RADIS COMMUNITY CARE,CARE ESTABLISHMENT,OPPD - Cost of Care - East Cambs - Over 65,East Cambs - O P Team - Care,Supported Living
Cambridgeshire County Council,05-Oct-22,51301862713,939.70,RADIS COMMUNITY CARE,CARE ESTABLISHMENT,OPPD - Cost of Care - East Cambs - Over 65,East Cambs - O P Team - Care,Supported Living
Cambridgeshire County Council,05-Oct-22,51301862713,939.70,RADIS COMMUNITY CARE,CARE ESTABLISHMENT,OPPD - Cost of Care - East Cambs - Over 65,East Cambs - O P Team - Care,Supported Living
Cambridgeshire County Council,05-Oct-22,51301862713,939.70,RADIS COMMUNITY CARE,CARE ESTABLISHMENT,OPPD - Cost of Care - East Cambs - Over 65,East Cambs - O P Team - Care,Supported Living
Cambridgeshire County Council,05-Oct-22,51301862713,939.70,RADIS COMMUNITY CARE,CARE ESTABLISHMENT,OPPD - Cost of Care - East Cambs - Over 65,East Cambs - O P Team - Care,Supported Living
Cambridgeshire County Council,05-Oct-22,51301862713,939.70,RADIS COMMUNITY CARE,CARE ESTABLISHMENT,OPPD - Cost of Care - East Cambs - Over 65,East Cambs - O P Team - Care,Supported Living
Cambridgeshire County Council,05-Oct-22,51301862713,939.70,RADIS COMMUNITY CARE,CARE ESTABLISHMENT,OPPD - Cost of Care - East Cambs - Over 65,East Cambs - O P Team - Care,Supported Living
Cambridgeshire County Council,05-Oct-22,51301862713,939.70,RADIS COMMUNITY CARE,CARE ESTABLISHMENT,OPPD - Cost of Care - East Cambs - Over 65,East Cambs - O P Team - Care,Supported Living
Cambridgeshire County Council,05-Oct-22,51301862713,939.70,RADIS COMMUNITY CARE,CARE ESTABLISHMENT,OPPD - Cost of Care - East Cambs - Over 65,East Cambs - O P Team - Care,Supported Living
Cambridgeshire County Council,05-Oct-22,51301862713,939.70,RADIS COMMUNITY CARE,CARE ESTABLISHMENT,OPPD - Cost of Care - East Cambs - Over 65,East Cambs - O P Team - Care,Supported Living
Cambridgeshire County Council,05-Oct-22,51301862713,939.70,RADIS COMMUNITY CARE,CARE ESTABLISHMENT,OPPD - Cost of Care - East Cambs - Over 65,East Cambs - O P Team - Care,Supported Living
Cambridgeshire County Council,05-Oct-22,51301862713,939.70,RADIS COMMUNITY CARE,CARE ESTABLISHMENT,OPPD - Cost of Care - East Cambs - Over 65,East Cambs - O P Team - Care,Supported Living
Cambridgeshire County Council,05-Oct-22,51301862713,939.70,RADIS COMMUNITY CARE,CARE ESTABLISHMENT,OPPD - Cost of Care - East Cambs - Over 65,East Cambs - O P Team - Care,Supported Living
Cambridgeshire County Council,05-Oct-22,51301862308,945.00,Venue Catering Partner Limited,COMPANY,Education Safeguarding,Education Safeguarding,Casual hire of facilities
Cambridgeshire County Council,05-Oct-22,51301862026,978.85,Redacted Personal Data,INDIVIDUAL,Home to School Transport - Special,Home to School Transport Special - Special School,Contribution To Transport Related Provisions
Cambridgeshire County Council,05-Oct-22,51301862228,"1,000.00",Graysons Client Account,COMPANY,Insurance Fund,Liability,Insurance Claims Paid
Cambridgeshire County Council,05-Oct-22,51301862263,"1,003.75",Acorn Care & Education Ltd,EDUCATION,Children's Disability Direct Payments,CSC Direct Payments,Direct Payments
Cambridgeshire County Council,05-Oct-22,51301862611,"1,017.12",LADYBIRD PLAYGROUP (THRIPLOW),NURSERY,SEND High Needs Top Up,SEND Specialist Services-High needs top-up-Early Years,Independent School Placements
Cambridgeshire County Council,05-Oct-22,51301862159,"1,040.04",Redacted Personal Data,INDIVIDUAL,Nursery Schools,Early Years - Funded 3s/4s,Care & Ed Childcare Settings
Cambridgeshire County Council,05-Oct-22,51301862634,"1,053.55",Redacted Personal Data,INDIVIDUAL,LAC Transport,LAC Transport - Home to School,Social Care Transport
Cambridgeshire County Council,05-Oct-22,51301862090,"1,068.00",Redacted Personal Data,INDIVIDUAL,Home to School Transport - Special,Home to School Transport Special - Out of County,Contribution To Transport Related Provisions
Cambridgeshire County Council,05-Oct-22,51301862581,"1,084.00",Redacted Personal Data,INDIVIDUAL,Children's Disability Direct Payments,CSC Direct Payments,Direct Payments
Cambridgeshire County Council,05-Oct-22,51301851341,"1,099.00",CAMBRIDGE KIDS CLUB LTD,NURSERY,Early Years Specialist Support,Procurement - TA Inclusion & Access (EARLY YEARS),Independent School Placements
Cambridgeshire County Council,05-Oct-22,51301849441,"1,107.60",Sotham Engineering Services Limited,COMPANY,Investment in the CCC Asset Portfolio,Spokes - Hot-Desking Mobile Unit,Mobile - Buildings
Cambridgeshire County Council,05-Oct-22,51301862137,"1,113.60",Redacted Personal Data,PARENT/GUARDIAN,Home to School Transport - Special,Home to School Transport Special - Post 16,Contribution To Transport Related Provisions
Cambridgeshire County Council,05-Oct-22,51301862145,"1,113.60",Redacted Personal Data,PARENT/GUARDIAN,Home to School Transport - Special,Home to School Transport Special - Post 16,Contribution To Transport Related Provisions
Cambridgeshire County Council,05-Oct-22,51301855519,"1,118.63",JLR PLAY,NURSERY,Early Years Specialist Support,Procurement - TA Inclusion & Access (EARLY YEARS),Independent School Placements
Cambridgeshire County Council,05-Oct-22,51301855512,"1,118.63",JLR PLAY,NURSERY,Early Years Specialist Support,Procurement - TA Inclusion & Access (EARLY YEARS),Independent School Placements
Cambridgeshire County Council,05-Oct-22,51301862247,"1,130.16",Redacted Personal Data,INDIVIDUAL,Children's Disability Direct Payments,CSC Direct Payments,Direct Payments
Cambridgeshire County Council,05-Oct-22,51301862189,"1,150.00",Psychology Direct Ltd,EDUCATION,SEND Specialist Services - Education Psychology,SEND Specialist Services - Education Psychology,Professional Fees and Hired Services
Cambridgeshire County Council,05-Oct-22,51301862575,"1,150.00",Psychology Direct Ltd,EDUCATION,SEND Specialist Services - Education Psychology,SEND Specialist Services - Education Psychology,Professional Fees and Hired Services
Cambridgeshire County Council,05-Oct-22,51301862576,"1,150.00",Psychology Direct Ltd,EDUCATION,SEND Specialist Services - Education Psychology,SEND Specialist Services - Education Psychology,Professional Fees and Hired Services
Cambridgeshire County Council,05-Oct-22,51301862577,"1,150.00",Psychology Direct Ltd,EDUCATION,SEND Specialist Services - Education Psychology,SEND Specialist Services - Education Psychology,Professional Fees and Hired Services
Cambridgeshire County Council,05-Oct-22,51301862747,"1,170.00",SARAH MARSHALL OT,TRADE SUPPLIER,Early Years Specialist Support,Procurement - TA Therapy in Schools,Independent School Placements
Cambridgeshire County Council,05-Oct-22,51301851343,"1,177.50",CAMBRIDGE KIDS CLUB LTD,NURSERY,Early Years Specialist Support,Procurement - TA Inclusion & Access (EARLY YEARS),Independent School Placements
Cambridgeshire County Council,05-Oct-22,51301850984,"1,200.00",CYCLEPODS LTD,TRADE SUPPLIER,Road Safety,"Education, Training and Publicity",Educational Materials
Cambridgeshire County Council,05-Oct-22,51301862741,"1,200.00",Redacted Personal Data,INDIVIDUAL,Early Years Specialist Support,Procurement - TA Therapy in Schools,Independent School Placements
Cambridgeshire County Council,05-Oct-22,51301851337,"1,201.05",CAMBRIDGE KIDS CLUB LTD,NURSERY,Early Years Specialist Support,Procurement - TA Inclusion & Access (EARLY YEARS),Independent School Placements
Cambridgeshire County Council,05-Oct-22,51301862172,"1,209.60",University of Cambridge,EDUCATION,Cambs Music Head of Ensembles,Cambs Music Ensembles,Casual hire of facilities
Cambridgeshire County Council,05-Oct-22,51301862253,"1,216.86",M Lamming c/o Spotless Cambridge Ltd,COMPANY,Cambs Music Head of Business Development,Cambs Music Connect,Building Cleaning
Cambridgeshire County Council,05-Oct-22,51301861964,"1,221.93",CONQUEST CARE HOMES PETERBOROUGH,CARE ESTABLISHMENT,LD - Young Adults Team,LD - Young Adults - Special Needs,Residential Care
Cambridgeshire County Council,05-Oct-22,51301862049,"1,243.64",Redacted Personal Data,PARENT/GUARDIAN,Home to School Transport - Special,Home to School Transport Special - Special School,Contribution To Transport Related Provisions
Cambridgeshire County Council,05-Oct-22,51301861963,"1,248.00",Redacted Personal Data,INDIVIDUAL,Carers - DPs,Carers Trust,Direct Payments
Cambridgeshire County Council,05-Oct-22,51301862727,"1,280.00",EAQ,EDUCATION,Out of School Tuition,Out of School Provision - Education and Settings,Independent School Placements
Cambridgeshire County Council,05-Oct-22,51301862659,"1,285.50",Redacted Personal Data,INDIVIDUAL,LAC Transport,LAC Transport - Home to School,Social Care Transport
Cambridgeshire County Council,05-Oct-22,51301862642,"1,304.85",Redacted Personal Data,INDIVIDUAL,Early Years Service - HAF,HAF Grant,Home to School - Contract
Cambridgeshire County Council,05-Oct-22,51301849440,"1,305.60",Sotham Engineering Services Limited,COMPANY,Investment in the CCC Asset Portfolio,Spokes - CPDC,Mobile - Buildings
Cambridgeshire County Council,05-Oct-22,51301861893,"1,321.80",SHAOBINWU LTD,COMPANY,Coroners,Coroners General,Professional Fees and Hired Services
Cambridgeshire County Council,05-Oct-22,51301851338,"1,334.50",CAMBRIDGE KIDS CLUB LTD,NURSERY,Early Years Specialist Support,Procurement - TA Inclusion & Access (EARLY YEARS),Independent School Placements
Cambridgeshire County Council,05-Oct-22,51301862633,"1,358.10",Redacted Personal Data,INDIVIDUAL,LAC Transport,LAC Transport - Home to School,Social Care Transport
Cambridgeshire County Council,05-Oct-22,51301861932,"1,376.00",Redacted Personal Data,INDIVIDUAL,SEND High Needs Top Up,SEND Specialist Services-High needs top-up-Post 16,Independent School Placements
Cambridgeshire County Council,05-Oct-22,51301861915,"1,376.00",Redacted Personal Data,INDIVIDUAL,LAC Placements,Placements - S117 tier 4 step-down,Independent School Placements
Cambridgeshire County Council,05-Oct-22,51301851336,"1,413.00",CAMBRIDGE KIDS CLUB LTD,NURSERY,Early Years Specialist Support,Procurement - TA Inclusion & Access (EARLY YEARS),Independent School Placements
Cambridgeshire County Council,05-Oct-22,51301861964,"1,425.59",CONQUEST CARE HOMES PETERBOROUGH,CARE ESTABLISHMENT,LD - Young Adults Team,LD - Young Adults - Special Needs,Residential Care
Cambridgeshire County Council,05-Oct-22,51301861964,"1,425.59",CONQUEST CARE HOMES PETERBOROUGH,CARE ESTABLISHMENT,LD - Young Adults Team,LD - Young Adults - Special Needs,Residential Care
Cambridgeshire County Council,05-Oct-22,51301861964,"1,425.59",CONQUEST CARE HOMES PETERBOROUGH,CARE ESTABLISHMENT,LD - Young Adults Team,LD - Young Adults - Special Needs,Residential Care
Cambridgeshire County Council,05-Oct-22,51301861964,"1,425.59",CONQUEST CARE HOMES PETERBOROUGH,CARE ESTABLISHMENT,LD - Young Adults Team,LD - Young Adults - Special Needs,Residential Care
Cambridgeshire County Council,05-Oct-22,51301861964,"1,425.59",CONQUEST CARE HOMES PETERBOROUGH,CARE ESTABLISHMENT,LD - Young Adults Team,LD - Young Adults - Special Needs,Residential Care
Cambridgeshire County Council,05-Oct-22,51301861964,"1,425.59",CONQUEST CARE HOMES PETERBOROUGH,CARE ESTABLISHMENT,LD - Young Adults Team,LD - Young Adults - Special Needs,Residential Care
Cambridgeshire County Council,05-Oct-22,51301861964,"1,425.59",CONQUEST CARE HOMES PETERBOROUGH,CARE ESTABLISHMENT,LD - Young Adults Team,LD - Young Adults - Special Needs,Residential Care
Cambridgeshire County Council,05-Oct-22,51301861964,"1,425.59",CONQUEST CARE HOMES PETERBOROUGH,CARE ESTABLISHMENT,LD - Young Adults Team,LD - Young Adults - Special Needs,Residential Care
Cambridgeshire County Council,05-Oct-22,51301861964,"1,425.59",CONQUEST CARE HOMES PETERBOROUGH,CARE ESTABLISHMENT,LD - Young Adults Team,LD - Young Adults - Special Needs,Residential Care
Cambridgeshire County Council,05-Oct-22,51301861991,"1,448.88",Redacted Personal Data,INDIVIDUAL,Children's Disability Direct Payments,CSC Direct Payments,Direct Payments
Cambridgeshire County Council,05-Oct-22,51301862248,"1,464.50",Redacted Personal Data,INDIVIDUAL,Children's Disability Direct Payments,CSC Direct Payments,Direct Payments
Cambridgeshire County Council,05-Oct-22,51301855510,"1,491.50",JLR PLAY,NURSERY,Early Years Specialist Support,Procurement - TA Inclusion & Access (EARLY YEARS),Independent School Placements
Cambridgeshire County Council,05-Oct-22,51301855516,"1,491.50",JLR PLAY,NURSERY,Early Years Specialist Support,Procurement - TA Inclusion & Access (EARLY YEARS),Independent School Placements
Cambridgeshire County Council,05-Oct-22,51301855514,"1,491.50",JLR PLAY,NURSERY,Early Years Specialist Support,Procurement - TA Inclusion & Access (EARLY YEARS),Independent School Placements
Cambridgeshire County Council,05-Oct-22,51301862656,"1,510.20",Redacted Personal Data,INDIVIDUAL,LAC Transport,LAC Transport - Home to School,Social Care Transport
Cambridgeshire County Council,05-Oct-22,51301862093,"1,520.00",Redacted Personal Data,INDIVIDUAL,Home to School Transport - Special,Home to School Transport Special - Special School,Contribution To Transport Related Provisions
Cambridgeshire County Council,05-Oct-22,51301862637,"1,533.20",Redacted Personal Data,INDIVIDUAL,LAC Transport,LAC Transport - Home to School,Social Care Transport
Cambridgeshire County Council,05-Oct-22,51301861891,"1,554.00",TMLEP,OTHER PUBLIC BODIES,Coroners,Coroners General,Court Costs
Cambridgeshire County Council,05-Oct-22,51301862732,"1,597.74",Pathfinder Legal Services Limited,TRADE SUPPLIER,"Site Acquisition, Development, Analysis and Investigations","Site Acquisition, Development, Analysis and Investigations",Acquisition of Buildings
Cambridgeshire County Council,05-Oct-22,51301862636,"1,616.37",Redacted Personal Data,INDIVIDUAL,LAC Transport,LAC Transport - Home to School,Social Care Transport
Cambridgeshire County Council,05-Oct-22,51301862699,"1,622.26",Fair Ways Community Benefit Society,CARE ESTABLISHMENT,LAC Placements,Placements - residential homes,Agency Placements - Out of  County
Cambridgeshire County Council,05-Oct-22,51301862661,"1,713.96",Redacted Personal Data,INDIVIDUAL,LAC Transport,LAC Transport - Home to School,Social Care Transport
Cambridgeshire County Council,05-Oct-22,51301851342,"1,727.00",CAMBRIDGE KIDS CLUB LTD,NURSERY,Early Years Specialist Support,Procurement - TA Inclusion & Access (EARLY YEARS),Independent School Placements
Cambridgeshire County Council,05-Oct-22,51301849439,"1,797.60",Sotham Engineering Services Limited,COMPANY,Investment in the CCC Asset Portfolio,Spokes - Hot-Desking Mobile Unit,Mobile - Buildings
Cambridgeshire County Council,05-Oct-22,51301862745,"1,800.00",CAMBRIDGE MERIDIAN ACADEMIES TRUST T/A SWAVESEY VILLAGE COLLEGE,EDUCATION,Out of School Tuition,Out of School Provision - Education and Settings,Independent School Placements
Cambridgeshire County Council,05-Oct-22,51301851335,"1,826.26",CAMBRIDGE CITY COUNCIL,OTHER PUBLIC BODIES,GCP - Communications,GCP - Strategic Communicatations,Staffing Recharges - External
Cambridgeshire County Council,05-Oct-22,51301852612,"1,858.64",CAMBRIDGE CITY COUNCIL,OTHER PUBLIC BODIES,Mental Health Commissioning,Mental Health Commissioning,Residential Care - Property Voids
Cambridgeshire County Council,05-Oct-22,51301852081,"1,875.84",CAMBRIDGE CITY COUNCIL,OTHER PUBLIC BODIES,GCP - Communications,GCP - Strategic Communicatations,Staffing Recharges - External
Cambridgeshire County Council,05-Oct-22,51301862519,"1,914.00",Redacted Personal Data,FOSTER PARENT,LD - Young Adults Team,LD - Young Adults - Care,Residential Care
Cambridgeshire County Council,05-Oct-22,51301861971,"1,982.96",Redacted Personal Data,SERVICE USER,LD - Hunts Locality - Cost of Care,LD - Huntingdonshire - Care,Direct Payments
Cambridgeshire County Council,05-Oct-22,51301861971,"1,982.96",Redacted Personal Data,SERVICE USER,LD - Hunts Locality - Cost of Care,LD - Huntingdonshire - Care,Direct Payments
Cambridgeshire County Council,05-Oct-22,51301861971,"1,982.96",Redacted Personal Data,SERVICE USER,LD - Hunts Locality - Cost of Care,LD - Huntingdonshire - Care,Direct Payments
Cambridgeshire County Council,05-Oct-22,51301861971,"1,982.96",Redacted Personal Data,SERVICE USER,LD - Hunts Locality - Cost of Care,LD - Huntingdonshire - Care,Direct Payments
Cambridgeshire County Council,05-Oct-22,51301861971,"1,982.96",Redacted Personal Data,SERVICE USER,LD - Hunts Locality - Cost of Care,LD - Huntingdonshire - Care,Direct Payments
Cambridgeshire County Council,05-Oct-22,51301861971,"1,982.96",Redacted Personal Data,SERVICE USER,LD - Hunts Locality - Cost of Care,LD - Huntingdonshire - Care,Direct Payments
Cambridgeshire County Council,05-Oct-22,51301861971,"1,982.96",Redacted Personal Data,SERVICE USER,LD - Hunts Locality - Cost of Care,LD - Huntingdonshire - Care,Direct Payments
Cambridgeshire County Council,05-Oct-22,51301861971,"1,982.96",Redacted Personal Data,SERVICE USER,LD - Hunts Locality - Cost of Care,LD - Huntingdonshire - Care,Direct Payments
Cambridgeshire County Council,05-Oct-22,51301861971,"1,982.96",Redacted Personal Data,SERVICE USER,LD - Hunts Locality - Cost of Care,LD - Huntingdonshire - Care,Direct Payments
Cambridgeshire County Council,05-Oct-22,51301861971,"1,982.96",Redacted Personal Data,SERVICE USER,LD - Hunts Locality - Cost of Care,LD - Huntingdonshire - Care,Direct Payments
Cambridgeshire County Council,05-Oct-22,51301853128,"1,984.16",BALFOUR BEATTY LIVING PLACES LIMITED,COMPANY,Highways - LHIs,Highways - LHIs (Local Highways Improvements),Highways - Construction
Cambridgeshire County Council,05-Oct-22,51301790745,"1,995.00",Kip McGrath Education Centres Peterborough North,EDUCATION,Out of School Tuition,Out of School Provision - Education and Settings,Independent School Placements
Cambridgeshire County Council,05-Oct-22,51301808027,"1,995.00",Kip McGrath Education Centres Peterborough North,EDUCATION,Out of School Tuition,Out of School Provision - Education and Settings,Independent School Placements
Cambridgeshire County Council,05-Oct-22,51301851263,"2,000.00",NOISE SOLUTION,TRADE SUPPLIER,Out of School Tuition,Out of School Provision - Education and Settings,Independent School Placements
Cambridgeshire County Council,05-Oct-22,51301851013,"2,001.00",GASKELL REFURBISHMENTS LTD,COMPANY,County Farms,County Farms,County Farms Maintenance unplanned
Cambridgeshire County Council,05-Oct-22,51301862666,"2,018.15",Redacted Personal Data,INDIVIDUAL,LAC Transport,LAC Transport - Home to School,Social Care Transport
Cambridgeshire County Council,05-Oct-22,51301851351,"2,038.79",MLL Telecom Limited,TRADE SUPPLIER,ICT Service,ICT Service Sales,Materials for resale
Cambridgeshire County Council,05-Oct-22,51301862528,"2,171.00",Redacted Personal Data,INDIVIDUAL,LD - Hunts Locality - Cost of Care,LD - Huntingdonshire - Care,Residential Care
Cambridgeshire County Council,05-Oct-22,51301851262,"2,200.00",NOISE SOLUTION,TRADE SUPPLIER,Out of School Tuition,Out of School Provision - Education and Settings,Independent School Placements
Cambridgeshire County Council,05-Oct-22,51301862154,"2,258.88",BOTTISHAM VILLAGE COLLEGE,EDUCATION,Cambridgeshire Skills - Ely Library,Cambridgeshire Skills - Ely - Learning,Grants
Cambridgeshire County Council,05-Oct-22,51301861988,"2,301.00",NATIONAL TEACHING & ADVISORY SERVICE FOR LOOKED AFTER CHILDREN (NT & AS),OTHER PUBLIC BODIES,Schools Partnership Service,Virtual School LACPP Financing,Mandatory Student Awards
Cambridgeshire County Council,05-Oct-22,51301862728,"2,340.00",NATIONAL TEACHING & ADVISORY SERVICE FOR LOOKED AFTER CHILDREN (NT & AS),OTHER PUBLIC BODIES,Out of School Tuition,Out of School Provision - Education and Settings,Independent School Placements
Cambridgeshire County Council,05-Oct-22,51301862130,"2,360.86",INTECO LTD T/A 505 PRIVATE HIRE,TRADE SUPPLIER,Home to School Transport - Special,Home to School Transport Special - Special School,Home to School - Contract
Cambridgeshire County Council,05-Oct-22,51301861892,"2,398.17",KIDZONE,NURSERY,Early Years Specialist Support,Procurement - TA Inclusion & Access (EARLY YEARS),Independent School Placements
Cambridgeshire County Council,05-Oct-22,51301862129,"2,405.23",Redacted Personal Data,INDIVIDUAL,Home to School Transport - Special,Home to School Transport Special - Post 16,Contribution To Transport Related Provisions
Cambridgeshire County Council,05-Oct-22,51301862529,"2,421.50",Redacted Personal Data,INDIVIDUAL,Autism and Adult Support - Cost of Care,Autism and Adult Support - Care,Residential Care
Cambridgeshire County Council,05-Oct-22,51301862523,"2,505.00",Redacted Personal Data,INDIVIDUAL,Shared Lives,Shared Lives - Countywide,Living support grants
Cambridgeshire County Council,05-Oct-22,51301862524,"2,505.00",Redacted Personal Data,INDIVIDUAL,Shared Lives,Shared Lives - Countywide,Living support grants
Cambridgeshire County Council,05-Oct-22,51301862534,"2,505.00",Redacted Personal Data,FOSTER PARENT,LD - Fenland Locality - Cost of Care,LD - Fenland  - Care,Residential Care
Cambridgeshire County Council,05-Oct-22,51301862530,"2,505.00",Redacted Personal Data,PARENT/GUARDIAN,LD - East Locality - Cost of Care,LD - East Cambs - Care,Residential Care
Cambridgeshire County Council,05-Oct-22,51301852636,"2,622.48",KIDS CLUB ELY,NURSERY,SEND High Needs Top Up,SEND Specialist Services-High needs top-up-Early Years,Independent School Placements
Cambridgeshire County Council,05-Oct-22,51301861964,"2,629.44",CONQUEST CARE HOMES PETERBOROUGH,CARE ESTABLISHMENT,LD - Young Adults Team,LD - Young Adults - Special Needs,Residential Care
Cambridgeshire County Council,05-Oct-22,51301861920,"2,640.00",Keys PCE Ltd,CARE ESTABLISHMENT,South Child Looked After Team 1,South Child Looked After Team 1,Professional Fees and Hired Services
Cambridgeshire County Council,05-Oct-22,51301862503,"2,700.00",1st Staff Limited,COMPANY,Out of School Tuition,Out of School Provision - Education and Settings,Independent School Placements
Cambridgeshire County Council,05-Oct-22,51301861569,"2,752.07",SWARCO TRAFFIC LTD,COMPANY,Highways - IHMC,Highways - IHMC,Highways - Traffic Mgt Systems
Cambridgeshire County Council,05-Oct-22,51301862131,"2,833.03",INTECO LTD T/A 505 PRIVATE HIRE,TRADE SUPPLIER,Home to School Transport - Special,Home to School Transport Special - Special School,Home to School - Contract
Cambridgeshire County Council,05-Oct-22,51301862586,"2,930.22",HOUGHTON & WYTON PRE-SCHOOL PLAYGROUP,NURSERY,SEND High Needs Top Up,SEND Specialist Services-High needs top-up-Early Years,Independent School Placements
Cambridgeshire County Council,05-Oct-22,51301861964,"3,067.68",CONQUEST CARE HOMES PETERBOROUGH,CARE ESTABLISHMENT,LD - Young Adults Team,LD - Young Adults - Special Needs,Residential Care
Cambridgeshire County Council,05-Oct-22,51301861964,"3,067.68",CONQUEST CARE HOMES PETERBOROUGH,CARE ESTABLISHMENT,LD - Young Adults Team,LD - Young Adults - Special Needs,Residential Care
Cambridgeshire County Council,05-Oct-22,51301861964,"3,067.68",CONQUEST CARE HOMES PETERBOROUGH,CARE ESTABLISHMENT,LD - Young Adults Team,LD - Young Adults - Special Needs,Residential Care
Cambridgeshire County Council,05-Oct-22,51301861964,"3,067.68",CONQUEST CARE HOMES PETERBOROUGH,CARE ESTABLISHMENT,LD - Young Adults Team,LD - Young Adults - Special Needs,Residential Care
Cambridgeshire County Council,05-Oct-22,51301861964,"3,067.68",CONQUEST CARE HOMES PETERBOROUGH,CARE ESTABLISHMENT,LD - Young Adults Team,LD - Young Adults - Special Needs,Residential Care
Cambridgeshire County Council,05-Oct-22,51301861964,"3,067.68",CONQUEST CARE HOMES PETERBOROUGH,CARE ESTABLISHMENT,LD - Young Adults Team,LD - Young Adults - Special Needs,Residential Care
Cambridgeshire County Council,05-Oct-22,51301861964,"3,067.68",CONQUEST CARE HOMES PETERBOROUGH,CARE ESTABLISHMENT,LD - Young Adults Team,LD - Young Adults - Special Needs,Residential Care
Cambridgeshire County Council,05-Oct-22,51301861964,"3,067.68",CONQUEST CARE HOMES PETERBOROUGH,CARE ESTABLISHMENT,LD - Young Adults Team,LD - Young Adults - Special Needs,Residential Care
Cambridgeshire County Council,05-Oct-22,51301861964,"3,067.68",CONQUEST CARE HOMES PETERBOROUGH,CARE ESTABLISHMENT,LD - Young Adults Team,LD - Young Adults - Special Needs,Residential Care
Cambridgeshire County Council,05-Oct-22,51301862761,"3,137.12",COMPASS MINERALS UK LIMITED,TRADE SUPPLIER,Winter Maintenance,North Winter,Salt for Highways
Cambridgeshire County Council,05-Oct-22,51301862076,"3,190.20",Redacted Personal Data,PARENT/GUARDIAN,Home to School Transport - Special,Home to School Transport Special - Out of County,Contribution To Transport Related Provisions
Cambridgeshire County Council,05-Oct-22,51301861830,"3,296.70",Channels and Choices Ltd,CARE ESTABLISHMENT,SEN Placements,Placements - Education,Independent School Placements
Cambridgeshire County Council,05-Oct-22,51301861964,"3,305.06",CONQUEST CARE HOMES PETERBOROUGH,CARE ESTABLISHMENT,LD - Young Adults Team,LD - Young Adults - Special Needs,Residential Care
Cambridgeshire County Council,05-Oct-22,51301861982,"3,400.00",Sunflowers Care Ltd,CARE ESTABLISHMENT,Head of RSS,Head of RSS,Professional Fees and Hired Services
Cambridgeshire County Council,05-Oct-22,51301862717,"3,808.89",RADIS COMMUNITY CARE,CARE ESTABLISHMENT,OPPD - Cost of Care - East Cambs - Over 65,East Cambs - O P Team - Care,Supported Living
Cambridgeshire County Council,05-Oct-22,51301852613,"3,896.40",Simply Education - Trumpington Early Years and Childcare,COMPANY,EY - Oasis,Trumpington Park Early Years,Recruitment Costs
Cambridgeshire County Council,05-Oct-22,51301861997,"4,095.00",NATIONAL TEACHING & ADVISORY SERVICE FOR LOOKED AFTER CHILDREN (NT & AS),OTHER PUBLIC BODIES,Schools Partnership Service,Virtual School LACPP Financing,Mandatory Student Awards
Cambridgeshire County Council,05-Oct-22,51301852731,"4,215.00",LANDMARK INTERNATIONAL SCHOOL,EDUCATION,SEND High Needs Top Up,"SEND Specialist Services,High Needs Top Up,Other institutions",Independent School Placements
Cambridgeshire County Council,05-Oct-22,51301861881,"4,514.23",BEDAZZLE EXPRESSIVE ARTS,EDUCATION,SEND High Needs Top Up,SEND Specialist Services-High needs top-up-Post 16,Independent School Placements
Cambridgeshire County Council,05-Oct-22,51301862714,"4,742.77",RADIS COMMUNITY CARE,CARE ESTABLISHMENT,OPPD - Cost of Care - East Cambs - Over 65,East Cambs - O P Team - Care,Supported Living
Cambridgeshire County Council,05-Oct-22,51301861811,"4,980.00",BARNARDOS SERVICES LTD,CARE ESTABLISHMENT,Safeguarding East & South Cambs and Cambridge,Family Safeguarding,Staff Training & Development
Cambridgeshire County Council,05-Oct-22,51301850935,"5,000.00",Stevenage Borough Council,OTHER PUBLIC BODIES,Domestic Violence & Sexual Violence,MHCLG Grant,Consultancy
Cambridgeshire County Council,05-Oct-22,51301861812,"5,475.00",BARNARDOS SERVICES LTD,CARE ESTABLISHMENT,Safeguarding East & South Cambs and Cambridge,Family Safeguarding,Staff Training & Development
Cambridgeshire County Council,05-Oct-22,51301858976,"5,512.00",Cambridge International School Ltd T/A Holme Court School,EDUCATION,SEN Placements,Placements - Education,Independent School Placements
Cambridgeshire County Council,05-Oct-22,51301854407,"5,544.00",Wrightspace Ltd,COMPANY,Temporary Accommodation,Temporary Accommodation,Mobile - Buildings
Cambridgeshire County Council,05-Oct-22,51301849203,"5,747.40",St John Fisher Catholic High School,EDUCATION,Recoupment,Procurement - Out-County Mainstream,Independent School Placements
Cambridgeshire County Council,05-Oct-22,51301858970,"5,785.16",Cambridge International School Ltd T/A Holme Court School,EDUCATION,SEN Placements,Placements - Education,Independent School Placements
Cambridgeshire County Council,05-Oct-22,51301858972,"6,136.00",Cambridge International School Ltd T/A Holme Court School,EDUCATION,SEN Placements,Placements - Education,Independent School Placements
Cambridgeshire County Council,05-Oct-22,51301858975,"6,136.00",Cambridge International School Ltd T/A Holme Court School,EDUCATION,SEN Placements,Placements - Education,Independent School Placements
Cambridgeshire County Council,05-Oct-22,51301858956,"6,136.00",Cambridge International School Ltd T/A Holme Court School,EDUCATION,SEN Placements,Placements - Education,Independent School Placements
Cambridgeshire County Council,05-Oct-22,51301858966,"6,136.00",Cambridge International School Ltd T/A Holme Court School,EDUCATION,SEN Placements,Placements - Education,Independent School Placements
Cambridgeshire County Council,05-Oct-22,51301862550,"6,182.00",Patrick B Doyle (Construction) Ltd,COMPANY,Highways Development Management,Section 278 Deposits,Developers Funds
Cambridgeshire County Council,05-Oct-22,51301851389,"6,366.34",In Diverse Company Ltd.,COMPANY,HR Advisory,Equality Diversity and Inclusion,Professional Fees and Hired Services
Cambridgeshire County Council,05-Oct-22,51301862706,"6,438.99",Low Carbon Contracts Company Ltd,COMPANY,County Farms,"Triangle Solar Farm, Soham",Electricity
Cambridgeshire County Council,05-Oct-22,51301858974,"6,528.76",Cambridge International School Ltd T/A Holme Court School,EDUCATION,SEN Placements,Placements - Education,Independent School Placements
Cambridgeshire County Council,05-Oct-22,51301861879,"6,556.95",BEDAZZLE EXPRESSIVE ARTS,EDUCATION,SEND High Needs Top Up,SEND Specialist Services-High needs top-up-Post 16,Independent School Placements
Cambridgeshire County Council,05-Oct-22,51301862698,"6,600.00",Channels & Choices Therapeutic Fostering Ltd,CARE ESTABLISHMENT,LAC Placements,Placements - independent fostering,Agency Placements - Out of  County
Cambridgeshire County Council,05-Oct-22,51301852255,"6,730.52",CUSTOM GROUP LTD,COMPANY,Investment in the CCC Asset Portfolio,Spokes - Roger Ascham,"New Construction, Conversion and Renovation"
Cambridgeshire County Council,05-Oct-22,51301858971,"6,844.06",Cambridge International School Ltd T/A Holme Court School,EDUCATION,SEN Placements,Placements - Education,Independent School Placements
Cambridgeshire County Council,05-Oct-22,51301858969,"7,122.40",Cambridge International School Ltd T/A Holme Court School,EDUCATION,SEN Placements,Placements - Education,Independent School Placements
Cambridgeshire County Council,05-Oct-22,51301861380,"8,587.90",PARK NOW Limited,TRADE SUPPLIER,Parking Enforcement,On Street Parking,Professional Fees and Hired Services
Cambridgeshire County Council,05-Oct-22,51301858968,"9,089.81",Cambridge International School Ltd T/A Holme Court School,EDUCATION,SEN Placements,Placements - Education,Independent School Placements
Cambridgeshire County Council,05-Oct-22,51301862293,"9,151.69",SOUTHERN ELECTRIC PLC,TRADE SUPPLIER,Traffic Management Centre,Traffic Management Centre,Electricity
Cambridgeshire County Council,05-Oct-22,51301858973,"9,783.25",Cambridge International School Ltd T/A Holme Court School,EDUCATION,SEN Placements,Placements - Education,Independent School Placements
Cambridgeshire County Council,05-Oct-22,51301862549,"9,936.50",Patrick B Doyle (Construction) Ltd,COMPANY,Highways Development Management,Section 278 Deposits,Developers Funds
Cambridgeshire County Council,05-Oct-22,51301858967,"10,149.94",Cambridge International School Ltd T/A Holme Court School,EDUCATION,SEN Placements,Placements - Education,Independent School Placements
Cambridgeshire County Council,05-Oct-22,51301862260,"11,844.00",Tonic Consultants Ltd,COMPANY,Drug & Alcohol Misuse,PH - CJ Universal Grant,Professional Fees and Hired Services
Cambridgeshire County Council,05-Oct-22,51301858965,"11,995.46",Cambridge International School Ltd T/A Holme Court School,EDUCATION,SEN Placements,Placements - Education,Independent School Placements
Cambridgeshire County Council,05-Oct-22,51301862225,"12,000.00",John Joseph Hurley t/a JJH Health Consulting Ltd,COMPANY,PH Adult Mental Health & Community Safety,Mental Health Anti-Stigma,Research & Development
Cambridgeshire County Council,05-Oct-22,51301855609,"12,784.00",LANDMARK INTERNATIONAL SCHOOL,EDUCATION,SEN Placements,Placements - Education,Independent School Placements
Cambridgeshire County Council,05-Oct-22,51301862712,"12,945.57",RADIS COMMUNITY CARE,CARE ESTABLISHMENT,OPPD - Cost of Care - East Cambs - Over 65,East Cambs - O P Team - Care,Supported Living
Cambridgeshire County Council,05-Oct-22,51301862212,"13,669.75",Access UK Ltd,TRADE SUPPLIER,IT - Shared Care Record,IT - Shared Care Record,IT Software
Cambridgeshire County Council,05-Oct-22,51301862707,"14,364.54",Low Carbon Contracts Company Ltd,COMPANY,County Farms,"Triangle Solar Farm, Soham",Electricity
Cambridgeshire County Council,05-Oct-22,51301861956,"14,527.84",SPS Training,EDUCATION,Cambridgeshire Skills - March CC,Cambridgeshire Skills - March Community Centre - Learning,Grants
Cambridgeshire County Council,05-Oct-22,51301862702,"16,164.29",CHARTWELL HOUSE,CARE ESTABLISHMENT,LAC Placements,Placements - residential homes,Agency Placements - In County
Cambridgeshire County Council,05-Oct-22,51301852759,"17,012.60",Willow Care and Support,CARE ESTABLISHMENT,LAC Placements,Supported Living,Agency Placements - In County
Cambridgeshire County Council,05-Oct-22,51301862703,"17,050.00",CHARTWELL HOUSE,CARE ESTABLISHMENT,LAC Placements,Placements - residential homes,Agency Placements - In County
Cambridgeshire County Council,05-Oct-22,51301862704,"17,050.00",CHARTWELL HOUSE,CARE ESTABLISHMENT,LAC Placements,Placements - residential homes,Agency Placements - In County
Cambridgeshire County Council,05-Oct-22,51301858895,"17,100.00",BORRAS CONSTRUCTION LTD,COMPANY,"School Condition, Maintenance & Suitability","School Condition, Maintenance & Suitability",Buildings - Roof
Cambridgeshire County Council,05-Oct-22,51301862705,"18,600.00",CHARTWELL HOUSE,CARE ESTABLISHMENT,LAC Placements,Placements - residential homes,Agency Placements - In County
Cambridgeshire County Council,05-Oct-22,51301862494,"18,700.00",Esland Care (Esland North Ltd),EDUCATION,SEN Placements,Placements - Education,Independent School Placements
Cambridgeshire County Council,05-Oct-22,51301862498,"18,700.00",Esland Care (Esland North Ltd),EDUCATION,SEN Placements,Placements - Education,Independent School Placements
Cambridgeshire County Council,05-Oct-22,51301862605,"20,010.35",Team Q Maintenance Ltd,COMPANY,BM - Corporate Offices,Building Maintenance,Building Stuctural Maintenance - Planned
Cambridgeshire County Council,05-Oct-22,51301862765,"20,163.36",EAST SUFFOLK MIND,CARE ESTABLISHMENT,Mental Health Commissioning,Mental Health Commissioning,Supported Living
Cambridgeshire County Council,05-Oct-22,51301850492,"21,591.11",ATKINS LTD,COMPANY,Sir Harry Smith,Sir Harry Smith,Construction - External Professional Fees
Cambridgeshire County Council,05-Oct-22,51301862748,"22,275.00",Channels & Choices LLP,CARE ESTABLISHMENT,LAC Placements,Placements - residential homes,Agency Placements - Out of  County
Cambridgeshire County Council,05-Oct-22,51301852166,"22,798.13",ATKINS LTD,COMPANY,March Area Transport Study,March Area Transport Study,Construction - External Professional Fees
Cambridgeshire County Council,05-Oct-22,51301862558,"23,604.00",MOTT MACDONALD LTD,TRADE SUPPLIER,GCP - Cambridge South East (A1307),GCP - Cambridge South East (A1307),Construction - External Professional Fees
Cambridgeshire County Council,05-Oct-22,51301861943,"23,655.00",New College Worcester,EDUCATION,SEN Placements,Placements - Education,Independent School Placements
Cambridgeshire County Council,05-Oct-22,51301862513,"25,323.20",Esland Care (Esland North Ltd),EDUCATION,SEN Placements,Placements - Education,Independent School Placements
Cambridgeshire County Council,05-Oct-22,51301851815,"35,000.40",CONSERVATION EDUCATION & RESEARCH TRUST,COMPANY,Community Energy,Treescape Fund,Professional Fees and Hired Services
Cambridgeshire County Council,05-Oct-22,51301852047,"36,729.40",ATKINS LTD,COMPANY,March Area Transport Study,March Area Transport Study,Construction - External Professional Fees
Cambridgeshire County Council,05-Oct-22,51301862701,"41,887.22",Fair Ways Community Benefit Society,CARE ESTABLISHMENT,LAC Placements,Placements - residential homes,Agency Placements - Out of  County
Cambridgeshire County Council,05-Oct-22,51301861901,"45,215.09",CPFT- NHS,OTHER PUBLIC BODIES,Falls Prevention,"PH, Falls, Therapy Assistants",Professional Fees and Hired Services
Cambridgeshire County Council,05-Oct-22,51301847729,"60,355.50",Focus Care Agency,CARE ESTABLISHMENT,LAC Placements,Supported Living,Agency Placements - In County
Cambridgeshire County Council,05-Oct-22,51301850475,"74,280.54",KISIMUL SCHOOL,CARE ESTABLISHMENT,SEN Placements,Placements - Education,Independent School Placements
Cambridgeshire County Council,05-Oct-22,51301839318,"77,112.26",ATKINS LTD,COMPANY,GCP - City Centre Access Project,GCP - City Centre Access Project,Construction - External Professional Fees
Cambridgeshire County Council,05-Oct-22,51301850476,"98,000.00",Terence Higgins Trust,CHARITY,SH SAPP - PH Sexual Health,SH Services Advice Prevn Promtn - HIV & Sexual Health - Dhiverse,Joint Partnership Funding
Cambridgeshire County Council,05-Oct-22,51301850477,"98,000.00",Terence Higgins Trust,CHARITY,SH SAPP - PH Sexual Health,SH Services Advice Prevn Promtn - HIV & Sexual Health - Dhiverse,Joint Partnership Funding
Cambridgeshire County Council,05-Oct-22,51301862479,"169,029.00",CADENT GAS LTD,TRADE SUPPLIER,March Area Transport Study,March Area Transport Study,Construction - External Professional Fees
Cambridgeshire County Council,06-Oct-22,51301862176,-900.00,Pathfinder Legal Services Limited,TRADE SUPPLIER,Legal Proceedings,Legal Proceedings,External Legal Fees
Cambridgeshire County Council,06-Oct-22,51301862726,659.06,Redacted Personal Data,PARENT/GUARDIAN,Adoption Allowances,Adoption Allowances,Childcare Costs
Cambridgeshire County Council,06-Oct-22,51301861413,"1,316.00",Dafna Lender,COMPANY,Regional Adoption Agency,Regional Adoption Agency,Staff Training & Development
Cambridgeshire County Council,06-Oct-22,51301862729,"2,572.07",Redacted Personal Data,FOSTER PARENT,Adoption Allowances,Adoption Allowances,Childcare Costs
Cambridgeshire County Council,06-Oct-22,51301862606,"75,372.20",LOCAL GOVERNMENT ASSOCIATION,OTHER PUBLIC BODIES,Subscriptions,Corporate Subscriptions,Subscriptions
Cambridgeshire County Council,06-Oct-22,51301861577,"419,892.00",ANGLIAN WATER SERVICES LIMITED,COMPANY,The Hub - Covid-19 Response,Household Support Fund Grant,Grants
Cambridgeshire County Council,06-Oct-22,51301861584,"465,432.00",South Staffordshire Water Plc,COMPANY,The Hub - Covid-19 Response,Household Support Fund Grant,Grants
Cambridgeshire County Council,07-Oct-22,51301862762,"-137,291.17",TOTALENERGIES GAS AND POWER LTD,TRADE SUPPLIER,Street Lighting,Street Lighting Energy,Street Light Energy
Cambridgeshire County Council,07-Oct-22,51301862556,"-113,587.20",TOTALENERGIES GAS AND POWER LTD,TRADE SUPPLIER,Street Lighting,Street Lighting Energy,Street Light Energy
Cambridgeshire County Council,07-Oct-22,51301851378,"-81,508.75",WSP UK LTD T/A WSP INTEGRATED BUILDING SERVICES,TRADE SUPPLIER,GCP-Eastern Access,GCP - Eastern Access,Construction - External Professional Fees
Cambridgeshire County Council,07-Oct-22,51301863166,"-15,800.00",Keys PCE Ltd,CARE ESTABLISHMENT,LAC Placements,Placements - residential disability,Agency Placements - Out of  County
Cambridgeshire County Council,07-Oct-22,51301863154,"-15,800.00",Keys PCE Ltd,CARE ESTABLISHMENT,LAC Placements,Placements - residential homes,Agency Placements - In County
Cambridgeshire County Council,07-Oct-22,51301863157,"-15,800.00",Keys PCE Ltd,CARE ESTABLISHMENT,LAC Placements,Placements - residential homes,Agency Placements - In County
Cambridgeshire County Council,07-Oct-22,51301863160,"-15,800.00",Keys PCE Ltd,CARE ESTABLISHMENT,LAC Placements,Placements - residential homes,Agency Placements - In County
Cambridgeshire County Council,07-Oct-22,51301863163,"-15,800.00",Keys PCE Ltd,CARE ESTABLISHMENT,LAC Placements,Placements - residential homes,Agency Placements - Out of  County
Cambridgeshire County Council,07-Oct-22,51301863169,"-15,800.00",Keys PCE Ltd,CARE ESTABLISHMENT,LAC Placements,Placements - residential homes,Agency Placements - Out of  County
Cambridgeshire County Council,07-Oct-22,51301863172,"-15,800.00",Keys PCE Ltd,CARE ESTABLISHMENT,LAC Placements,Placements - residential homes,Agency Placements - Out of  County
Cambridgeshire County Council,07-Oct-22,51301863143,"-7,773.57",Heartwood RSC Ltd,CARE ESTABLISHMENT,LAC Placements,Placements - residential homes,Agency Placements - In County
Cambridgeshire County Council,07-Oct-22,51301792196,"-3,700.00",White Hall Academy,EDUCATION,Recoupment,Procurement - Out-County Mainstream,Independent School Placements
Cambridgeshire County Council,07-Oct-22,51301863221,"-2,542.80",KISIMUL SCHOOL,CARE ESTABLISHMENT,LD - South Locality - Cost of Care,LD - South Cambs - Care,Supported Living
Cambridgeshire County Council,07-Oct-22,51301863221,"-2,542.80",KISIMUL SCHOOL,CARE ESTABLISHMENT,LD - South Locality - Cost of Care,LD - South Cambs - Care,Supported Living
Cambridgeshire County Council,07-Oct-22,51301863221,"-2,542.80",KISIMUL SCHOOL,CARE ESTABLISHMENT,LD - South Locality - Cost of Care,LD - South Cambs - Care,Supported Living
Cambridgeshire County Council,07-Oct-22,51301863221,"-2,542.80",KISIMUL SCHOOL,CARE ESTABLISHMENT,LD - South Locality - Cost of Care,LD - South Cambs - Care,Supported Living
Cambridgeshire County Council,07-Oct-22,51301863221,"-2,542.80",KISIMUL SCHOOL,CARE ESTABLISHMENT,LD - South Locality - Cost of Care,LD - South Cambs - Care,Supported Living
Cambridgeshire County Council,07-Oct-22,51301863221,"-2,542.80",KISIMUL SCHOOL,CARE ESTABLISHMENT,LD - South Locality - Cost of Care,LD - South Cambs - Care,Supported Living
Cambridgeshire County Council,07-Oct-22,51301863221,"-2,542.80",KISIMUL SCHOOL,CARE ESTABLISHMENT,LD - South Locality - Cost of Care,LD - South Cambs - Care,Supported Living
Cambridgeshire County Council,07-Oct-22,51301863221,"-2,542.80",KISIMUL SCHOOL,CARE ESTABLISHMENT,LD - South Locality - Cost of Care,LD - South Cambs - Care,Supported Living
Cambridgeshire County Council,07-Oct-22,51301863221,"-2,542.80",KISIMUL SCHOOL,CARE ESTABLISHMENT,LD - South Locality - Cost of Care,LD - South Cambs - Care,Supported Living
Cambridgeshire County Council,07-Oct-22,51301863221,"-2,542.80",KISIMUL SCHOOL,CARE ESTABLISHMENT,LD - South Locality - Cost of Care,LD - South Cambs - Care,Supported Living
Cambridgeshire County Council,07-Oct-22,51301863221,"-2,542.80",KISIMUL SCHOOL,CARE ESTABLISHMENT,LD - South Locality - Cost of Care,LD - South Cambs - Care,Supported Living
Cambridgeshire County Council,07-Oct-22,51301863221,"-2,542.80",KISIMUL SCHOOL,CARE ESTABLISHMENT,LD - South Locality - Cost of Care,LD - South Cambs - Care,Supported Living
Cambridgeshire County Council,07-Oct-22,51301863221,"-2,542.80",KISIMUL SCHOOL,CARE ESTABLISHMENT,LD - South Locality - Cost of Care,LD - South Cambs - Care,Supported Living
Cambridgeshire County Council,07-Oct-22,51301863221,"-2,542.80",KISIMUL SCHOOL,CARE ESTABLISHMENT,LD - South Locality - Cost of Care,LD - South Cambs - Care,Supported Living
Cambridgeshire County Council,07-Oct-22,51301863221,"-2,542.80",KISIMUL SCHOOL,CARE ESTABLISHMENT,LD - South Locality - Cost of Care,LD - South Cambs - Care,Supported Living
Cambridgeshire County Council,07-Oct-22,51301863221,"-2,542.80",KISIMUL SCHOOL,CARE ESTABLISHMENT,LD - South Locality - Cost of Care,LD - South Cambs - Care,Supported Living
Cambridgeshire County Council,07-Oct-22,51301863221,"-2,542.80",KISIMUL SCHOOL,CARE ESTABLISHMENT,LD - South Locality - Cost of Care,LD - South Cambs - Care,Supported Living
Cambridgeshire County Council,07-Oct-22,51301863221,"-2,542.80",KISIMUL SCHOOL,CARE ESTABLISHMENT,LD - South Locality - Cost of Care,LD - South Cambs - Care,Supported Living
Cambridgeshire County Council,07-Oct-22,51301863221,"-2,542.80",KISIMUL SCHOOL,CARE ESTABLISHMENT,LD - South Locality - Cost of Care,LD - South Cambs - Care,Supported Living
Cambridgeshire County Council,07-Oct-22,51301863221,"-2,542.80",KISIMUL SCHOOL,CARE ESTABLISHMENT,LD - South Locality - Cost of Care,LD - South Cambs - Care,Supported Living
Cambridgeshire County Council,07-Oct-22,51301863221,"-2,542.80",KISIMUL SCHOOL,CARE ESTABLISHMENT,LD - South Locality - Cost of Care,LD - South Cambs - Care,Supported Living
Cambridgeshire County Council,07-Oct-22,51301863221,"-2,542.80",KISIMUL SCHOOL,CARE ESTABLISHMENT,LD - South Locality - Cost of Care,LD - South Cambs - Care,Supported Living
Cambridgeshire County Council,07-Oct-22,51301863221,"-2,542.80",KISIMUL SCHOOL,CARE ESTABLISHMENT,LD - South Locality - Cost of Care,LD - South Cambs - Care,Supported Living
Cambridgeshire County Council,07-Oct-22,51301863221,"-2,542.80",KISIMUL SCHOOL,CARE ESTABLISHMENT,LD - South Locality - Cost of Care,LD - South Cambs - Care,Supported Living
Cambridgeshire County Council,07-Oct-22,51301863221,"-2,542.80",KISIMUL SCHOOL,CARE ESTABLISHMENT,LD - South Locality - Cost of Care,LD - South Cambs - Care,Supported Living
Cambridgeshire County Council,07-Oct-22,51301863221,"-2,542.80",KISIMUL SCHOOL,CARE ESTABLISHMENT,LD - South Locality - Cost of Care,LD - South Cambs - Care,Supported Living
Cambridgeshire County Council,07-Oct-22,51301863221,"-2,542.80",KISIMUL SCHOOL,CARE ESTABLISHMENT,LD - South Locality - Cost of Care,LD - South Cambs - Care,Supported Living
Cambridgeshire County Council,07-Oct-22,51301863185,"-2,380.84",WESTMINSTER HOMECARE LIMITED,CARE ESTABLISHMENT,LD - South Locality - Cost of Care,LD - South Cambs - Care,Supported Living
Cambridgeshire County Council,07-Oct-22,51301863185,"-2,380.84",WESTMINSTER HOMECARE LIMITED,CARE ESTABLISHMENT,LD - South Locality - Cost of Care,LD - South Cambs - Care,Supported Living
Cambridgeshire County Council,07-Oct-22,51301863185,"-2,380.84",WESTMINSTER HOMECARE LIMITED,CARE ESTABLISHMENT,LD - South Locality - Cost of Care,LD - South Cambs - Care,Supported Living
Cambridgeshire County Council,07-Oct-22,51301863185,"-2,380.84",WESTMINSTER HOMECARE LIMITED,CARE ESTABLISHMENT,LD - South Locality - Cost of Care,LD - South Cambs - Care,Supported Living
Cambridgeshire County Council,07-Oct-22,51301863185,"-2,380.84",WESTMINSTER HOMECARE LIMITED,CARE ESTABLISHMENT,LD - South Locality - Cost of Care,LD - South Cambs - Care,Supported Living
Cambridgeshire County Council,07-Oct-22,51301863185,"-2,380.84",WESTMINSTER HOMECARE LIMITED,CARE ESTABLISHMENT,LD - South Locality - Cost of Care,LD - South Cambs - Care,Supported Living
Cambridgeshire County Council,07-Oct-22,51301863185,"-2,380.84",WESTMINSTER HOMECARE LIMITED,CARE ESTABLISHMENT,LD - South Locality - Cost of Care,LD - South Cambs - Care,Supported Living
Cambridgeshire County Council,07-Oct-22,51301863185,"-2,380.84",WESTMINSTER HOMECARE LIMITED,CARE ESTABLISHMENT,LD - South Locality - Cost of Care,LD - South Cambs - Care,Supported Living
Cambridgeshire County Council,07-Oct-22,51301863185,"-2,380.84",WESTMINSTER HOMECARE LIMITED,CARE ESTABLISHMENT,LD - South Locality - Cost of Care,LD - South Cambs - Care,Supported Living
Cambridgeshire County Council,07-Oct-22,51301863185,"-2,380.84",WESTMINSTER HOMECARE LIMITED,CARE ESTABLISHMENT,LD - South Locality - Cost of Care,LD - South Cambs - Care,Supported Living
Cambridgeshire County Council,07-Oct-22,51301863185,"-2,380.84",WESTMINSTER HOMECARE LIMITED,CARE ESTABLISHMENT,LD - South Locality - Cost of Care,LD - South Cambs - Care,Supported Living
Cambridgeshire County Council,07-Oct-22,51301863185,"-2,380.84",WESTMINSTER HOMECARE LIMITED,CARE ESTABLISHMENT,LD - South Locality - Cost of Care,LD - South Cambs - Care,Supported Living
Cambridgeshire County Council,07-Oct-22,51301863185,"-2,380.84",WESTMINSTER HOMECARE LIMITED,CARE ESTABLISHMENT,LD - South Locality - Cost of Care,LD - South Cambs - Care,Supported Living
Cambridgeshire County Council,07-Oct-22,51301863185,"-2,380.84",WESTMINSTER HOMECARE LIMITED,CARE ESTABLISHMENT,LD - South Locality - Cost of Care,LD - South Cambs - Care,Supported Living
Cambridgeshire County Council,07-Oct-22,51301863185,"-2,380.84",WESTMINSTER HOMECARE LIMITED,CARE ESTABLISHMENT,LD - South Locality - Cost of Care,LD - South Cambs - Care,Supported Living
Cambridgeshire County Council,07-Oct-22,51301863185,"-2,380.84",WESTMINSTER HOMECARE LIMITED,CARE ESTABLISHMENT,LD - South Locality - Cost of Care,LD - South Cambs - Care,Supported Living
Cambridgeshire County Council,07-Oct-22,51301863185,"-2,380.84",WESTMINSTER HOMECARE LIMITED,CARE ESTABLISHMENT,LD - South Locality - Cost of Care,LD - South Cambs - Care,Supported Living
Cambridgeshire County Council,07-Oct-22,51301863185,"-2,380.84",WESTMINSTER HOMECARE LIMITED,CARE ESTABLISHMENT,LD - South Locality - Cost of Care,LD - South Cambs - Care,Supported Living
Cambridgeshire County Council,07-Oct-22,51301863185,"-2,380.84",WESTMINSTER HOMECARE LIMITED,CARE ESTABLISHMENT,LD - South Locality - Cost of Care,LD - South Cambs - Care,Supported Living
Cambridgeshire County Council,07-Oct-22,51301863185,"-2,380.84",WESTMINSTER HOMECARE LIMITED,CARE ESTABLISHMENT,LD - South Locality - Cost of Care,LD - South Cambs - Care,Supported Living
Cambridgeshire County Council,07-Oct-22,51301863185,"-2,380.84",WESTMINSTER HOMECARE LIMITED,CARE ESTABLISHMENT,LD - South Locality - Cost of Care,LD - South Cambs - Care,Supported Living
Cambridgeshire County Council,07-Oct-22,51301863185,"-2,380.84",WESTMINSTER HOMECARE LIMITED,CARE ESTABLISHMENT,LD - South Locality - Cost of Care,LD - South Cambs - Care,Supported Living
Cambridgeshire County Council,07-Oct-22,51301863185,"-2,380.84",WESTMINSTER HOMECARE LIMITED,CARE ESTABLISHMENT,LD - South Locality - Cost of Care,LD - South Cambs - Care,Supported Living
Cambridgeshire County Council,07-Oct-22,51301863185,"-2,380.84",WESTMINSTER HOMECARE LIMITED,CARE ESTABLISHMENT,LD - South Locality - Cost of Care,LD - South Cambs - Care,Supported Living
Cambridgeshire County Council,07-Oct-22,51301863185,"-2,380.84",WESTMINSTER HOMECARE LIMITED,CARE ESTABLISHMENT,LD - South Locality - Cost of Care,LD - South Cambs - Care,Supported Living
Cambridgeshire County Council,07-Oct-22,51301863185,"-2,380.84",WESTMINSTER HOMECARE LIMITED,CARE ESTABLISHMENT,LD - South Locality - Cost of Care,LD - South Cambs - Care,Supported Living
Cambridgeshire County Council,07-Oct-22,51301863185,"-2,380.84",WESTMINSTER HOMECARE LIMITED,CARE ESTABLISHMENT,LD - South Locality - Cost of Care,LD - South Cambs - Care,Supported Living
Cambridgeshire County Council,07-Oct-22,51301863188,"-2,170.77",TIGH NAVEEN (KISIMUL),CARE ESTABLISHMENT,LD - Hunts Locality - Cost of Care,LD - Huntingdonshire - Care,Supported Living
Cambridgeshire County Council,07-Oct-22,51301863188,"-2,170.77",TIGH NAVEEN (KISIMUL),CARE ESTABLISHMENT,LD - Hunts Locality - Cost of Care,LD - Huntingdonshire - Care,Supported Living
Cambridgeshire County Council,07-Oct-22,51301863188,"-2,170.77",TIGH NAVEEN (KISIMUL),CARE ESTABLISHMENT,LD - Hunts Locality - Cost of Care,LD - Huntingdonshire - Care,Supported Living
Cambridgeshire County Council,07-Oct-22,51301863188,"-2,170.77",TIGH NAVEEN (KISIMUL),CARE ESTABLISHMENT,LD - Hunts Locality - Cost of Care,LD - Huntingdonshire - Care,Supported Living
Cambridgeshire County Council,07-Oct-22,51301863188,"-2,170.77",TIGH NAVEEN (KISIMUL),CARE ESTABLISHMENT,LD - Hunts Locality - Cost of Care,LD - Huntingdonshire - Care,Supported Living
Cambridgeshire County Council,07-Oct-22,51301863188,"-2,170.77",TIGH NAVEEN (KISIMUL),CARE ESTABLISHMENT,LD - Hunts Locality - Cost of Care,LD - Huntingdonshire - Care,Supported Living
Cambridgeshire County Council,07-Oct-22,51301863188,"-2,170.77",TIGH NAVEEN (KISIMUL),CARE ESTABLISHMENT,LD - Hunts Locality - Cost of Care,LD - Huntingdonshire - Care,Supported Living
Cambridgeshire County Council,07-Oct-22,51301863188,"-2,170.77",TIGH NAVEEN (KISIMUL),CARE ESTABLISHMENT,LD - Hunts Locality - Cost of Care,LD - Huntingdonshire - Care,Supported Living
Cambridgeshire County Council,07-Oct-22,51301863188,"-2,170.77",TIGH NAVEEN (KISIMUL),CARE ESTABLISHMENT,LD - Hunts Locality - Cost of Care,LD - Huntingdonshire - Care,Supported Living
Cambridgeshire County Council,07-Oct-22,51301863188,"-2,170.77",TIGH NAVEEN (KISIMUL),CARE ESTABLISHMENT,LD - Hunts Locality - Cost of Care,LD - Huntingdonshire - Care,Supported Living
Cambridgeshire County Council,07-Oct-22,51301863188,"-2,170.77",TIGH NAVEEN (KISIMUL),CARE ESTABLISHMENT,LD - Hunts Locality - Cost of Care,LD - Huntingdonshire - Care,Supported Living
Cambridgeshire County Council,07-Oct-22,51301863188,"-2,170.77",TIGH NAVEEN (KISIMUL),CARE ESTABLISHMENT,LD - Hunts Locality - Cost of Care,LD - Huntingdonshire - Care,Supported Living
Cambridgeshire County Council,07-Oct-22,51301863188,"-2,170.77",TIGH NAVEEN (KISIMUL),CARE ESTABLISHMENT,LD - Hunts Locality - Cost of Care,LD - Huntingdonshire - Care,Supported Living
Cambridgeshire County Council,07-Oct-22,51301863188,"-2,170.77",TIGH NAVEEN (KISIMUL),CARE ESTABLISHMENT,LD - Hunts Locality - Cost of Care,LD - Huntingdonshire - Care,Supported Living
Cambridgeshire County Council,07-Oct-22,51301863188,"-2,170.77",TIGH NAVEEN (KISIMUL),CARE ESTABLISHMENT,LD - Hunts Locality - Cost of Care,LD - Huntingdonshire - Care,Supported Living
Cambridgeshire County Council,07-Oct-22,51301863188,"-2,170.77",TIGH NAVEEN (KISIMUL),CARE ESTABLISHMENT,LD - Hunts Locality - Cost of Care,LD - Huntingdonshire - Care,Supported Living
Cambridgeshire County Council,07-Oct-22,51301863188,"-2,170.77",TIGH NAVEEN (KISIMUL),CARE ESTABLISHMENT,LD - Hunts Locality - Cost of Care,LD - Huntingdonshire - Care,Supported Living
Cambridgeshire County Council,07-Oct-22,51301863188,"-2,170.77",TIGH NAVEEN (KISIMUL),CARE ESTABLISHMENT,LD - Hunts Locality - Cost of Care,LD - Huntingdonshire - Care,Supported Living
Cambridgeshire County Council,07-Oct-22,51301863188,"-2,170.77",TIGH NAVEEN (KISIMUL),CARE ESTABLISHMENT,LD - Hunts Locality - Cost of Care,LD - Huntingdonshire - Care,Supported Living
Cambridgeshire County Council,07-Oct-22,51301863188,"-2,170.77",TIGH NAVEEN (KISIMUL),CARE ESTABLISHMENT,LD - Hunts Locality - Cost of Care,LD - Huntingdonshire - Care,Supported Living
Cambridgeshire County Council,07-Oct-22,51301863188,"-2,170.77",TIGH NAVEEN (KISIMUL),CARE ESTABLISHMENT,LD - Hunts Locality - Cost of Care,LD - Huntingdonshire - Care,Supported Living
Cambridgeshire County Council,07-Oct-22,51301863188,"-2,170.77",TIGH NAVEEN (KISIMUL),CARE ESTABLISHMENT,LD - Hunts Locality - Cost of Care,LD - Huntingdonshire - Care,Supported Living
Cambridgeshire County Council,07-Oct-22,51301863188,"-2,170.77",TIGH NAVEEN (KISIMUL),CARE ESTABLISHMENT,LD - Hunts Locality - Cost of Care,LD - Huntingdonshire - Care,Supported Living
Cambridgeshire County Council,07-Oct-22,51301863188,"-2,170.77",TIGH NAVEEN (KISIMUL),CARE ESTABLISHMENT,LD - Hunts Locality - Cost of Care,LD - Huntingdonshire - Care,Supported Living
Cambridgeshire County Council,07-Oct-22,51301863188,"-2,170.77",TIGH NAVEEN (KISIMUL),CARE ESTABLISHMENT,LD - Hunts Locality - Cost of Care,LD - Huntingdonshire - Care,Supported Living
Cambridgeshire County Council,07-Oct-22,51301863188,"-2,170.77",TIGH NAVEEN (KISIMUL),CARE ESTABLISHMENT,LD - Hunts Locality - Cost of Care,LD - Huntingdonshire - Care,Supported Living
Cambridgeshire County Council,07-Oct-22,51301863188,"-2,170.77",TIGH NAVEEN (KISIMUL),CARE ESTABLISHMENT,LD - Hunts Locality - Cost of Care,LD - Huntingdonshire - Care,Supported Living
Cambridgeshire County Council,07-Oct-22,51301863218,"-1,605.66",WESTMINSTER HOMECARE LIMITED,CARE ESTABLISHMENT,LD - East Locality - Cost of Care,LD - East Cambs - Care,Supported Living
Cambridgeshire County Council,07-Oct-22,51301863218,"-1,605.66",WESTMINSTER HOMECARE LIMITED,CARE ESTABLISHMENT,LD - East Locality - Cost of Care,LD - East Cambs - Care,Supported Living
Cambridgeshire County Council,07-Oct-22,51301863218,"-1,605.66",WESTMINSTER HOMECARE LIMITED,CARE ESTABLISHMENT,LD - East Locality - Cost of Care,LD - East Cambs - Care,Supported Living
Cambridgeshire County Council,07-Oct-22,51301863218,"-1,605.66",WESTMINSTER HOMECARE LIMITED,CARE ESTABLISHMENT,LD - East Locality - Cost of Care,LD - East Cambs - Care,Supported Living
Cambridgeshire County Council,07-Oct-22,51301863218,"-1,605.66",WESTMINSTER HOMECARE LIMITED,CARE ESTABLISHMENT,LD - East Locality - Cost of Care,LD - East Cambs - Care,Supported Living
Cambridgeshire County Council,07-Oct-22,51301863218,"-1,605.66",WESTMINSTER HOMECARE LIMITED,CARE ESTABLISHMENT,LD - East Locality - Cost of Care,LD - East Cambs - Care,Supported Living
Cambridgeshire County Council,07-Oct-22,51301863218,"-1,605.66",WESTMINSTER HOMECARE LIMITED,CARE ESTABLISHMENT,LD - East Locality - Cost of Care,LD - East Cambs - Care,Supported Living
Cambridgeshire County Council,07-Oct-22,51301863218,"-1,605.66",WESTMINSTER HOMECARE LIMITED,CARE ESTABLISHMENT,LD - East Locality - Cost of Care,LD - East Cambs - Care,Supported Living
Cambridgeshire County Council,07-Oct-22,51301863218,"-1,605.66",WESTMINSTER HOMECARE LIMITED,CARE ESTABLISHMENT,LD - East Locality - Cost of Care,LD - East Cambs - Care,Supported Living
Cambridgeshire County Council,07-Oct-22,51301863218,"-1,605.66",WESTMINSTER HOMECARE LIMITED,CARE ESTABLISHMENT,LD - East Locality - Cost of Care,LD - East Cambs - Care,Supported Living
Cambridgeshire County Council,07-Oct-22,51301863218,"-1,605.66",WESTMINSTER HOMECARE LIMITED,CARE ESTABLISHMENT,LD - East Locality - Cost of Care,LD - East Cambs - Care,Supported Living
Cambridgeshire County Council,07-Oct-22,51301863218,"-1,605.66",WESTMINSTER HOMECARE LIMITED,CARE ESTABLISHMENT,LD - East Locality - Cost of Care,LD - East Cambs - Care,Supported Living
Cambridgeshire County Council,07-Oct-22,51301863218,"-1,605.66",WESTMINSTER HOMECARE LIMITED,CARE ESTABLISHMENT,LD - East Locality - Cost of Care,LD - East Cambs - Care,Supported Living
Cambridgeshire County Council,07-Oct-22,51301863218,"-1,605.66",WESTMINSTER HOMECARE LIMITED,CARE ESTABLISHMENT,LD - East Locality - Cost of Care,LD - East Cambs - Care,Supported Living
Cambridgeshire County Council,07-Oct-22,51301863218,"-1,605.66",WESTMINSTER HOMECARE LIMITED,CARE ESTABLISHMENT,LD - East Locality - Cost of Care,LD - East Cambs - Care,Supported Living
Cambridgeshire County Council,07-Oct-22,51301863218,"-1,605.66",WESTMINSTER HOMECARE LIMITED,CARE ESTABLISHMENT,LD - East Locality - Cost of Care,LD - East Cambs - Care,Supported Living
Cambridgeshire County Council,07-Oct-22,51301863218,"-1,605.66",WESTMINSTER HOMECARE LIMITED,CARE ESTABLISHMENT,LD - East Locality - Cost of Care,LD - East Cambs - Care,Supported Living
Cambridgeshire County Council,07-Oct-22,51301863218,"-1,605.66",WESTMINSTER HOMECARE LIMITED,CARE ESTABLISHMENT,LD - East Locality - Cost of Care,LD - East Cambs - Care,Supported Living
Cambridgeshire County Council,07-Oct-22,51301863218,"-1,605.66",WESTMINSTER HOMECARE LIMITED,CARE ESTABLISHMENT,LD - East Locality - Cost of Care,LD - East Cambs - Care,Supported Living
Cambridgeshire County Council,07-Oct-22,51301863218,"-1,605.66",WESTMINSTER HOMECARE LIMITED,CARE ESTABLISHMENT,LD - East Locality - Cost of Care,LD - East Cambs - Care,Supported Living
Cambridgeshire County Council,07-Oct-22,51301863218,"-1,605.66",WESTMINSTER HOMECARE LIMITED,CARE ESTABLISHMENT,LD - East Locality - Cost of Care,LD - East Cambs - Care,Supported Living
Cambridgeshire County Council,07-Oct-22,51301863218,"-1,605.66",WESTMINSTER HOMECARE LIMITED,CARE ESTABLISHMENT,LD - East Locality - Cost of Care,LD - East Cambs - Care,Supported Living
Cambridgeshire County Council,07-Oct-22,51301863218,"-1,605.66",WESTMINSTER HOMECARE LIMITED,CARE ESTABLISHMENT,LD - East Locality - Cost of Care,LD - East Cambs - Care,Supported Living
Cambridgeshire County Council,07-Oct-22,51301863218,"-1,605.66",WESTMINSTER HOMECARE LIMITED,CARE ESTABLISHMENT,LD - East Locality - Cost of Care,LD - East Cambs - Care,Supported Living
Cambridgeshire County Council,07-Oct-22,51301863218,"-1,605.66",WESTMINSTER HOMECARE LIMITED,CARE ESTABLISHMENT,LD - East Locality - Cost of Care,LD - East Cambs - Care,Supported Living
Cambridgeshire County Council,07-Oct-22,51301863218,"-1,605.66",WESTMINSTER HOMECARE LIMITED,CARE ESTABLISHMENT,LD - East Locality - Cost of Care,LD - East Cambs - Care,Supported Living
Cambridgeshire County Council,07-Oct-22,51301863218,"-1,605.66",WESTMINSTER HOMECARE LIMITED,CARE ESTABLISHMENT,LD - East Locality - Cost of Care,LD - East Cambs - Care,Supported Living
Cambridgeshire County Council,07-Oct-22,51301863183,"-1,511.22",WESTMINSTER HOMECARE LIMITED,CARE ESTABLISHMENT,LD - East Locality - Cost of Care,LD - East Cambs - Care,Supported Living
Cambridgeshire County Council,07-Oct-22,51301863183,"-1,511.22",WESTMINSTER HOMECARE LIMITED,CARE ESTABLISHMENT,LD - East Locality - Cost of Care,LD - East Cambs - Care,Supported Living
Cambridgeshire County Council,07-Oct-22,51301863183,"-1,511.22",WESTMINSTER HOMECARE LIMITED,CARE ESTABLISHMENT,LD - East Locality - Cost of Care,LD - East Cambs - Care,Supported Living
Cambridgeshire County Council,07-Oct-22,51301863183,"-1,511.22",WESTMINSTER HOMECARE LIMITED,CARE ESTABLISHMENT,LD - East Locality - Cost of Care,LD - East Cambs - Care,Supported Living
Cambridgeshire County Council,07-Oct-22,51301863183,"-1,511.22",WESTMINSTER HOMECARE LIMITED,CARE ESTABLISHMENT,LD - East Locality - Cost of Care,LD - East Cambs - Care,Supported Living
Cambridgeshire County Council,07-Oct-22,51301863183,"-1,511.22",WESTMINSTER HOMECARE LIMITED,CARE ESTABLISHMENT,LD - East Locality - Cost of Care,LD - East Cambs - Care,Supported Living
Cambridgeshire County Council,07-Oct-22,51301863183,"-1,511.22",WESTMINSTER HOMECARE LIMITED,CARE ESTABLISHMENT,LD - East Locality - Cost of Care,LD - East Cambs - Care,Supported Living
Cambridgeshire County Council,07-Oct-22,51301863183,"-1,511.22",WESTMINSTER HOMECARE LIMITED,CARE ESTABLISHMENT,LD - East Locality - Cost of Care,LD - East Cambs - Care,Supported Living
Cambridgeshire County Council,07-Oct-22,51301863183,"-1,511.22",WESTMINSTER HOMECARE LIMITED,CARE ESTABLISHMENT,LD - East Locality - Cost of Care,LD - East Cambs - Care,Supported Living
Cambridgeshire County Council,07-Oct-22,51301863183,"-1,511.22",WESTMINSTER HOMECARE LIMITED,CARE ESTABLISHMENT,LD - East Locality - Cost of Care,LD - East Cambs - Care,Supported Living
Cambridgeshire County Council,07-Oct-22,51301863183,"-1,511.22",WESTMINSTER HOMECARE LIMITED,CARE ESTABLISHMENT,LD - East Locality - Cost of Care,LD - East Cambs - Care,Supported Living
Cambridgeshire County Council,07-Oct-22,51301863183,"-1,511.22",WESTMINSTER HOMECARE LIMITED,CARE ESTABLISHMENT,LD - East Locality - Cost of Care,LD - East Cambs - Care,Supported Living
Cambridgeshire County Council,07-Oct-22,51301863183,"-1,511.22",WESTMINSTER HOMECARE LIMITED,CARE ESTABLISHMENT,LD - East Locality - Cost of Care,LD - East Cambs - Care,Supported Living
Cambridgeshire County Council,07-Oct-22,51301863183,"-1,511.22",WESTMINSTER HOMECARE LIMITED,CARE ESTABLISHMENT,LD - East Locality - Cost of Care,LD - East Cambs - Care,Supported Living
Cambridgeshire County Council,07-Oct-22,51301863183,"-1,511.22",WESTMINSTER HOMECARE LIMITED,CARE ESTABLISHMENT,LD - East Locality - Cost of Care,LD - East Cambs - Care,Supported Living
Cambridgeshire County Council,07-Oct-22,51301863183,"-1,511.22",WESTMINSTER HOMECARE LIMITED,CARE ESTABLISHMENT,LD - East Locality - Cost of Care,LD - East Cambs - Care,Supported Living
Cambridgeshire County Council,07-Oct-22,51301863183,"-1,511.22",WESTMINSTER HOMECARE LIMITED,CARE ESTABLISHMENT,LD - East Locality - Cost of Care,LD - East Cambs - Care,Supported Living
Cambridgeshire County Council,07-Oct-22,51301863183,"-1,511.22",WESTMINSTER HOMECARE LIMITED,CARE ESTABLISHMENT,LD - East Locality - Cost of Care,LD - East Cambs - Care,Supported Living
Cambridgeshire County Council,07-Oct-22,51301863183,"-1,511.22",WESTMINSTER HOMECARE LIMITED,CARE ESTABLISHMENT,LD - East Locality - Cost of Care,LD - East Cambs - Care,Supported Living
Cambridgeshire County Council,07-Oct-22,51301863183,"-1,511.22",WESTMINSTER HOMECARE LIMITED,CARE ESTABLISHMENT,LD - East Locality - Cost of Care,LD - East Cambs - Care,Supported Living
Cambridgeshire County Council,07-Oct-22,51301863183,"-1,511.22",WESTMINSTER HOMECARE LIMITED,CARE ESTABLISHMENT,LD - East Locality - Cost of Care,LD - East Cambs - Care,Supported Living
Cambridgeshire County Council,07-Oct-22,51301863183,"-1,511.22",WESTMINSTER HOMECARE LIMITED,CARE ESTABLISHMENT,LD - East Locality - Cost of Care,LD - East Cambs - Care,Supported Living
Cambridgeshire County Council,07-Oct-22,51301863183,"-1,511.22",WESTMINSTER HOMECARE LIMITED,CARE ESTABLISHMENT,LD - East Locality - Cost of Care,LD - East Cambs - Care,Supported Living
Cambridgeshire County Council,07-Oct-22,51301863183,"-1,511.22",WESTMINSTER HOMECARE LIMITED,CARE ESTABLISHMENT,LD - East Locality - Cost of Care,LD - East Cambs - Care,Supported Living
Cambridgeshire County Council,07-Oct-22,51301863183,"-1,511.22",WESTMINSTER HOMECARE LIMITED,CARE ESTABLISHMENT,LD - East Locality - Cost of Care,LD - East Cambs - Care,Supported Living
Cambridgeshire County Council,07-Oct-22,51301863183,"-1,511.22",WESTMINSTER HOMECARE LIMITED,CARE ESTABLISHMENT,LD - East Locality - Cost of Care,LD - East Cambs - Care,Supported Living
Cambridgeshire County Council,07-Oct-22,51301863183,"-1,511.22",WESTMINSTER HOMECARE LIMITED,CARE ESTABLISHMENT,LD - East Locality - Cost of Care,LD - East Cambs - Care,Supported Living
Cambridgeshire County Council,07-Oct-22,51301863189,"-1,502.37",WESTMINSTER HOMECARE LIMITED,CARE ESTABLISHMENT,LD - East Locality - Cost of Care,LD - East Cambs - Care,Supported Living
Cambridgeshire County Council,07-Oct-22,51301863189,"-1,502.37",WESTMINSTER HOMECARE LIMITED,CARE ESTABLISHMENT,LD - East Locality - Cost of Care,LD - East Cambs - Care,Supported Living
Cambridgeshire County Council,07-Oct-22,51301863189,"-1,502.37",WESTMINSTER HOMECARE LIMITED,CARE ESTABLISHMENT,LD - East Locality - Cost of Care,LD - East Cambs - Care,Supported Living
Cambridgeshire County Council,07-Oct-22,51301863189,"-1,502.37",WESTMINSTER HOMECARE LIMITED,CARE ESTABLISHMENT,LD - East Locality - Cost of Care,LD - East Cambs - Care,Supported Living
Cambridgeshire County Council,07-Oct-22,51301863189,"-1,502.37",WESTMINSTER HOMECARE LIMITED,CARE ESTABLISHMENT,LD - East Locality - Cost of Care,LD - East Cambs - Care,Supported Living
Cambridgeshire County Council,07-Oct-22,51301863189,"-1,502.37",WESTMINSTER HOMECARE LIMITED,CARE ESTABLISHMENT,LD - East Locality - Cost of Care,LD - East Cambs - Care,Supported Living
Cambridgeshire County Council,07-Oct-22,51301863189,"-1,502.37",WESTMINSTER HOMECARE LIMITED,CARE ESTABLISHMENT,LD - East Locality - Cost of Care,LD - East Cambs - Care,Supported Living
Cambridgeshire County Council,07-Oct-22,51301863189,"-1,502.37",WESTMINSTER HOMECARE LIMITED,CARE ESTABLISHMENT,LD - East Locality - Cost of Care,LD - East Cambs - Care,Supported Living
Cambridgeshire County Council,07-Oct-22,51301863189,"-1,502.37",WESTMINSTER HOMECARE LIMITED,CARE ESTABLISHMENT,LD - East Locality - Cost of Care,LD - East Cambs - Care,Supported Living
Cambridgeshire County Council,07-Oct-22,51301863189,"-1,502.37",WESTMINSTER HOMECARE LIMITED,CARE ESTABLISHMENT,LD - East Locality - Cost of Care,LD - East Cambs - Care,Supported Living
Cambridgeshire County Council,07-Oct-22,51301863189,"-1,502.37",WESTMINSTER HOMECARE LIMITED,CARE ESTABLISHMENT,LD - East Locality - Cost of Care,LD - East Cambs - Care,Supported Living
Cambridgeshire County Council,07-Oct-22,51301863189,"-1,502.37",WESTMINSTER HOMECARE LIMITED,CARE ESTABLISHMENT,LD - East Locality - Cost of Care,LD - East Cambs - Care,Supported Living
Cambridgeshire County Council,07-Oct-22,51301863189,"-1,502.37",WESTMINSTER HOMECARE LIMITED,CARE ESTABLISHMENT,LD - East Locality - Cost of Care,LD - East Cambs - Care,Supported Living
Cambridgeshire County Council,07-Oct-22,51301863189,"-1,502.37",WESTMINSTER HOMECARE LIMITED,CARE ESTABLISHMENT,LD - East Locality - Cost of Care,LD - East Cambs - Care,Supported Living
Cambridgeshire County Council,07-Oct-22,51301863189,"-1,502.37",WESTMINSTER HOMECARE LIMITED,CARE ESTABLISHMENT,LD - East Locality - Cost of Care,LD - East Cambs - Care,Supported Living
Cambridgeshire County Council,07-Oct-22,51301863189,"-1,502.37",WESTMINSTER HOMECARE LIMITED,CARE ESTABLISHMENT,LD - East Locality - Cost of Care,LD - East Cambs - Care,Supported Living
Cambridgeshire County Council,07-Oct-22,51301863189,"-1,502.37",WESTMINSTER HOMECARE LIMITED,CARE ESTABLISHMENT,LD - East Locality - Cost of Care,LD - East Cambs - Care,Supported Living
Cambridgeshire County Council,07-Oct-22,51301863189,"-1,502.37",WESTMINSTER HOMECARE LIMITED,CARE ESTABLISHMENT,LD - East Locality - Cost of Care,LD - East Cambs - Care,Supported Living
Cambridgeshire County Council,07-Oct-22,51301863189,"-1,502.37",WESTMINSTER HOMECARE LIMITED,CARE ESTABLISHMENT,LD - East Locality - Cost of Care,LD - East Cambs - Care,Supported Living
Cambridgeshire County Council,07-Oct-22,51301863189,"-1,502.37",WESTMINSTER HOMECARE LIMITED,CARE ESTABLISHMENT,LD - East Locality - Cost of Care,LD - East Cambs - Care,Supported Living
Cambridgeshire County Council,07-Oct-22,51301863189,"-1,502.37",WESTMINSTER HOMECARE LIMITED,CARE ESTABLISHMENT,LD - East Locality - Cost of Care,LD - East Cambs - Care,Supported Living
Cambridgeshire County Council,07-Oct-22,51301863189,"-1,502.37",WESTMINSTER HOMECARE LIMITED,CARE ESTABLISHMENT,LD - East Locality - Cost of Care,LD - East Cambs - Care,Supported Living
Cambridgeshire County Council,07-Oct-22,51301863189,"-1,502.37",WESTMINSTER HOMECARE LIMITED,CARE ESTABLISHMENT,LD - East Locality - Cost of Care,LD - East Cambs - Care,Supported Living
Cambridgeshire County Council,07-Oct-22,51301863189,"-1,502.37",WESTMINSTER HOMECARE LIMITED,CARE ESTABLISHMENT,LD - East Locality - Cost of Care,LD - East Cambs - Care,Supported Living
Cambridgeshire County Council,07-Oct-22,51301863189,"-1,502.37",WESTMINSTER HOMECARE LIMITED,CARE ESTABLISHMENT,LD - East Locality - Cost of Care,LD - East Cambs - Care,Supported Living
Cambridgeshire County Council,07-Oct-22,51301863189,"-1,502.37",WESTMINSTER HOMECARE LIMITED,CARE ESTABLISHMENT,LD - East Locality - Cost of Care,LD - East Cambs - Care,Supported Living
Cambridgeshire County Council,07-Oct-22,51301863189,"-1,502.37",WESTMINSTER HOMECARE LIMITED,CARE ESTABLISHMENT,LD - East Locality - Cost of Care,LD - East Cambs - Care,Supported Living
Cambridgeshire County Council,07-Oct-22,51301863187,"-1,483.51",KISIMUL SCHOOL,CARE ESTABLISHMENT,LD - Fenland Locality - Cost of Care,LD - Fenland  - Care,Supported Living
Cambridgeshire County Council,07-Oct-22,51301863187,"-1,483.51",KISIMUL SCHOOL,CARE ESTABLISHMENT,LD - Fenland Locality - Cost of Care,LD - Fenland  - Care,Supported Living
Cambridgeshire County Council,07-Oct-22,51301863187,"-1,483.51",KISIMUL SCHOOL,CARE ESTABLISHMENT,LD - Fenland Locality - Cost of Care,LD - Fenland  - Care,Supported Living
Cambridgeshire County Council,07-Oct-22,51301863187,"-1,483.51",KISIMUL SCHOOL,CARE ESTABLISHMENT,LD - Fenland Locality - Cost of Care,LD - Fenland  - Care,Supported Living
Cambridgeshire County Council,07-Oct-22,51301863187,"-1,483.51",KISIMUL SCHOOL,CARE ESTABLISHMENT,LD - Fenland Locality - Cost of Care,LD - Fenland  - Care,Supported Living
Cambridgeshire County Council,07-Oct-22,51301863187,"-1,483.51",KISIMUL SCHOOL,CARE ESTABLISHMENT,LD - Fenland Locality - Cost of Care,LD - Fenland  - Care,Supported Living
Cambridgeshire County Council,07-Oct-22,51301863187,"-1,483.51",KISIMUL SCHOOL,CARE ESTABLISHMENT,LD - Fenland Locality - Cost of Care,LD - Fenland  - Care,Supported Living
Cambridgeshire County Council,07-Oct-22,51301863187,"-1,483.51",KISIMUL SCHOOL,CARE ESTABLISHMENT,LD - Fenland Locality - Cost of Care,LD - Fenland  - Care,Supported Living
Cambridgeshire County Council,07-Oct-22,51301863187,"-1,483.51",KISIMUL SCHOOL,CARE ESTABLISHMENT,LD - Fenland Locality - Cost of Care,LD - Fenland  - Care,Supported Living
Cambridgeshire County Council,07-Oct-22,51301863187,"-1,483.51",KISIMUL SCHOOL,CARE ESTABLISHMENT,LD - Fenland Locality - Cost of Care,LD - Fenland  - Care,Supported Living
Cambridgeshire County Council,07-Oct-22,51301863187,"-1,483.51",KISIMUL SCHOOL,CARE ESTABLISHMENT,LD - Fenland Locality - Cost of Care,LD - Fenland  - Care,Supported Living
Cambridgeshire County Council,07-Oct-22,51301863187,"-1,483.51",KISIMUL SCHOOL,CARE ESTABLISHMENT,LD - Fenland Locality - Cost of Care,LD - Fenland  - Care,Supported Living
Cambridgeshire County Council,07-Oct-22,51301863187,"-1,483.51",KISIMUL SCHOOL,CARE ESTABLISHMENT,LD - Fenland Locality - Cost of Care,LD - Fenland  - Care,Supported Living
Cambridgeshire County Council,07-Oct-22,51301863187,"-1,483.51",KISIMUL SCHOOL,CARE ESTABLISHMENT,LD - Fenland Locality - Cost of Care,LD - Fenland  - Care,Supported Living
Cambridgeshire County Council,07-Oct-22,51301863187,"-1,483.51",KISIMUL SCHOOL,CARE ESTABLISHMENT,LD - Fenland Locality - Cost of Care,LD - Fenland  - Care,Supported Living
Cambridgeshire County Council,07-Oct-22,51301863187,"-1,483.51",KISIMUL SCHOOL,CARE ESTABLISHMENT,LD - Fenland Locality - Cost of Care,LD - Fenland  - Care,Supported Living
Cambridgeshire County Council,07-Oct-22,51301863187,"-1,483.51",KISIMUL SCHOOL,CARE ESTABLISHMENT,LD - Fenland Locality - Cost of Care,LD - Fenland  - Care,Supported Living
Cambridgeshire County Council,07-Oct-22,51301863187,"-1,483.51",KISIMUL SCHOOL,CARE ESTABLISHMENT,LD - Fenland Locality - Cost of Care,LD - Fenland  - Care,Supported Living
Cambridgeshire County Council,07-Oct-22,51301863187,"-1,483.51",KISIMUL SCHOOL,CARE ESTABLISHMENT,LD - Fenland Locality - Cost of Care,LD - Fenland  - Care,Supported Living
Cambridgeshire County Council,07-Oct-22,51301863187,"-1,483.51",KISIMUL SCHOOL,CARE ESTABLISHMENT,LD - Fenland Locality - Cost of Care,LD - Fenland  - Care,Supported Living
Cambridgeshire County Council,07-Oct-22,51301863187,"-1,483.51",KISIMUL SCHOOL,CARE ESTABLISHMENT,LD - Fenland Locality - Cost of Care,LD - Fenland  - Care,Supported Living
Cambridgeshire County Council,07-Oct-22,51301863187,"-1,483.51",KISIMUL SCHOOL,CARE ESTABLISHMENT,LD - Fenland Locality - Cost of Care,LD - Fenland  - Care,Supported Living
Cambridgeshire County Council,07-Oct-22,51301863187,"-1,483.51",KISIMUL SCHOOL,CARE ESTABLISHMENT,LD - Fenland Locality - Cost of Care,LD - Fenland  - Care,Supported Living
Cambridgeshire County Council,07-Oct-22,51301863187,"-1,483.51",KISIMUL SCHOOL,CARE ESTABLISHMENT,LD - Fenland Locality - Cost of Care,LD - Fenland  - Care,Supported Living
Cambridgeshire County Council,07-Oct-22,51301863187,"-1,483.51",KISIMUL SCHOOL,CARE ESTABLISHMENT,LD - Fenland Locality - Cost of Care,LD - Fenland  - Care,Supported Living
Cambridgeshire County Council,07-Oct-22,51301863187,"-1,483.51",KISIMUL SCHOOL,CARE ESTABLISHMENT,LD - Fenland Locality - Cost of Care,LD - Fenland  - Care,Supported Living
Cambridgeshire County Council,07-Oct-22,51301863187,"-1,483.51",KISIMUL SCHOOL,CARE ESTABLISHMENT,LD - Fenland Locality - Cost of Care,LD - Fenland  - Care,Supported Living
Cambridgeshire County Council,07-Oct-22,51301863189,"-1,386.80",WESTMINSTER HOMECARE LIMITED,CARE ESTABLISHMENT,LD - East Locality - Cost of Care,LD - East Cambs - Care,Supported Living
Cambridgeshire County Council,07-Oct-22,51301863189,"-1,386.80",WESTMINSTER HOMECARE LIMITED,CARE ESTABLISHMENT,LD - East Locality - Cost of Care,LD - East Cambs - Care,Supported Living
Cambridgeshire County Council,07-Oct-22,51301863189,"-1,386.80",WESTMINSTER HOMECARE LIMITED,CARE ESTABLISHMENT,LD - East Locality - Cost of Care,LD - East Cambs - Care,Supported Living
Cambridgeshire County Council,07-Oct-22,51301863189,"-1,386.80",WESTMINSTER HOMECARE LIMITED,CARE ESTABLISHMENT,LD - East Locality - Cost of Care,LD - East Cambs - Care,Supported Living
Cambridgeshire County Council,07-Oct-22,51301863189,"-1,386.80",WESTMINSTER HOMECARE LIMITED,CARE ESTABLISHMENT,LD - East Locality - Cost of Care,LD - East Cambs - Care,Supported Living
Cambridgeshire County Council,07-Oct-22,51301863189,"-1,386.80",WESTMINSTER HOMECARE LIMITED,CARE ESTABLISHMENT,LD - East Locality - Cost of Care,LD - East Cambs - Care,Supported Living
Cambridgeshire County Council,07-Oct-22,51301863189,"-1,386.80",WESTMINSTER HOMECARE LIMITED,CARE ESTABLISHMENT,LD - East Locality - Cost of Care,LD - East Cambs - Care,Supported Living
Cambridgeshire County Council,07-Oct-22,51301863189,"-1,386.80",WESTMINSTER HOMECARE LIMITED,CARE ESTABLISHMENT,LD - East Locality - Cost of Care,LD - East Cambs - Care,Supported Living
Cambridgeshire County Council,07-Oct-22,51301863189,"-1,386.80",WESTMINSTER HOMECARE LIMITED,CARE ESTABLISHMENT,LD - East Locality - Cost of Care,LD - East Cambs - Care,Supported Living
Cambridgeshire County Council,07-Oct-22,51301863189,"-1,386.80",WESTMINSTER HOMECARE LIMITED,CARE ESTABLISHMENT,LD - East Locality - Cost of Care,LD - East Cambs - Care,Supported Living
Cambridgeshire County Council,07-Oct-22,51301863189,"-1,386.80",WESTMINSTER HOMECARE LIMITED,CARE ESTABLISHMENT,LD - East Locality - Cost of Care,LD - East Cambs - Care,Supported Living
Cambridgeshire County Council,07-Oct-22,51301863189,"-1,386.80",WESTMINSTER HOMECARE LIMITED,CARE ESTABLISHMENT,LD - East Locality - Cost of Care,LD - East Cambs - Care,Supported Living
Cambridgeshire County Council,07-Oct-22,51301863189,"-1,386.80",WESTMINSTER HOMECARE LIMITED,CARE ESTABLISHMENT,LD - East Locality - Cost of Care,LD - East Cambs - Care,Supported Living
Cambridgeshire County Council,07-Oct-22,51301863189,"-1,386.80",WESTMINSTER HOMECARE LIMITED,CARE ESTABLISHMENT,LD - East Locality - Cost of Care,LD - East Cambs - Care,Supported Living
Cambridgeshire County Council,07-Oct-22,51301863189,"-1,386.80",WESTMINSTER HOMECARE LIMITED,CARE ESTABLISHMENT,LD - East Locality - Cost of Care,LD - East Cambs - Care,Supported Living
Cambridgeshire County Council,07-Oct-22,51301863189,"-1,386.80",WESTMINSTER HOMECARE LIMITED,CARE ESTABLISHMENT,LD - East Locality - Cost of Care,LD - East Cambs - Care,Supported Living
Cambridgeshire County Council,07-Oct-22,51301863189,"-1,386.80",WESTMINSTER HOMECARE LIMITED,CARE ESTABLISHMENT,LD - East Locality - Cost of Care,LD - East Cambs - Care,Supported Living
Cambridgeshire County Council,07-Oct-22,51301863189,"-1,386.80",WESTMINSTER HOMECARE LIMITED,CARE ESTABLISHMENT,LD - East Locality - Cost of Care,LD - East Cambs - Care,Supported Living
Cambridgeshire County Council,07-Oct-22,51301863189,"-1,386.80",WESTMINSTER HOMECARE LIMITED,CARE ESTABLISHMENT,LD - East Locality - Cost of Care,LD - East Cambs - Care,Supported Living
Cambridgeshire County Council,07-Oct-22,51301863189,"-1,386.80",WESTMINSTER HOMECARE LIMITED,CARE ESTABLISHMENT,LD - East Locality - Cost of Care,LD - East Cambs - Care,Supported Living
Cambridgeshire County Council,07-Oct-22,51301863189,"-1,386.80",WESTMINSTER HOMECARE LIMITED,CARE ESTABLISHMENT,LD - East Locality - Cost of Care,LD - East Cambs - Care,Supported Living
Cambridgeshire County Council,07-Oct-22,51301863189,"-1,386.80",WESTMINSTER HOMECARE LIMITED,CARE ESTABLISHMENT,LD - East Locality - Cost of Care,LD - East Cambs - Care,Supported Living
Cambridgeshire County Council,07-Oct-22,51301863189,"-1,386.80",WESTMINSTER HOMECARE LIMITED,CARE ESTABLISHMENT,LD - East Locality - Cost of Care,LD - East Cambs - Care,Supported Living
Cambridgeshire County Council,07-Oct-22,51301863189,"-1,386.80",WESTMINSTER HOMECARE LIMITED,CARE ESTABLISHMENT,LD - East Locality - Cost of Care,LD - East Cambs - Care,Supported Living
Cambridgeshire County Council,07-Oct-22,51301863189,"-1,386.80",WESTMINSTER HOMECARE LIMITED,CARE ESTABLISHMENT,LD - East Locality - Cost of Care,LD - East Cambs - Care,Supported Living
Cambridgeshire County Council,07-Oct-22,51301863189,"-1,386.80",WESTMINSTER HOMECARE LIMITED,CARE ESTABLISHMENT,LD - East Locality - Cost of Care,LD - East Cambs - Care,Supported Living
Cambridgeshire County Council,07-Oct-22,51301863189,"-1,386.80",WESTMINSTER HOMECARE LIMITED,CARE ESTABLISHMENT,LD - East Locality - Cost of Care,LD - East Cambs - Care,Supported Living
Cambridgeshire County Council,07-Oct-22,51301863186,"-1,345.96",WESTMINSTER HOMECARE LIMITED,CARE ESTABLISHMENT,LD - East Locality - Cost of Care,LD - East Cambs - Care,Supported Living
Cambridgeshire County Council,07-Oct-22,51301863186,"-1,345.96",WESTMINSTER HOMECARE LIMITED,CARE ESTABLISHMENT,LD - East Locality - Cost of Care,LD - East Cambs - Care,Supported Living
Cambridgeshire County Council,07-Oct-22,51301863186,"-1,345.96",WESTMINSTER HOMECARE LIMITED,CARE ESTABLISHMENT,LD - East Locality - Cost of Care,LD - East Cambs - Care,Supported Living
Cambridgeshire County Council,07-Oct-22,51301863186,"-1,345.96",WESTMINSTER HOMECARE LIMITED,CARE ESTABLISHMENT,LD - East Locality - Cost of Care,LD - East Cambs - Care,Supported Living
Cambridgeshire County Council,07-Oct-22,51301863186,"-1,345.96",WESTMINSTER HOMECARE LIMITED,CARE ESTABLISHMENT,LD - East Locality - Cost of Care,LD - East Cambs - Care,Supported Living
Cambridgeshire County Council,07-Oct-22,51301863186,"-1,345.96",WESTMINSTER HOMECARE LIMITED,CARE ESTABLISHMENT,LD - East Locality - Cost of Care,LD - East Cambs - Care,Supported Living
Cambridgeshire County Council,07-Oct-22,51301863186,"-1,345.96",WESTMINSTER HOMECARE LIMITED,CARE ESTABLISHMENT,LD - East Locality - Cost of Care,LD - East Cambs - Care,Supported Living
Cambridgeshire County Council,07-Oct-22,51301863186,"-1,345.96",WESTMINSTER HOMECARE LIMITED,CARE ESTABLISHMENT,LD - East Locality - Cost of Care,LD - East Cambs - Care,Supported Living
Cambridgeshire County Council,07-Oct-22,51301863186,"-1,345.96",WESTMINSTER HOMECARE LIMITED,CARE ESTABLISHMENT,LD - East Locality - Cost of Care,LD - East Cambs - Care,Supported Living
Cambridgeshire County Council,07-Oct-22,51301863186,"-1,345.96",WESTMINSTER HOMECARE LIMITED,CARE ESTABLISHMENT,LD - East Locality - Cost of Care,LD - East Cambs - Care,Supported Living
Cambridgeshire County Council,07-Oct-22,51301863186,"-1,345.96",WESTMINSTER HOMECARE LIMITED,CARE ESTABLISHMENT,LD - East Locality - Cost of Care,LD - East Cambs - Care,Supported Living
Cambridgeshire County Council,07-Oct-22,51301863186,"-1,345.96",WESTMINSTER HOMECARE LIMITED,CARE ESTABLISHMENT,LD - East Locality - Cost of Care,LD - East Cambs - Care,Supported Living
Cambridgeshire County Council,07-Oct-22,51301863186,"-1,345.96",WESTMINSTER HOMECARE LIMITED,CARE ESTABLISHMENT,LD - East Locality - Cost of Care,LD - East Cambs - Care,Supported Living
Cambridgeshire County Council,07-Oct-22,51301863186,"-1,345.96",WESTMINSTER HOMECARE LIMITED,CARE ESTABLISHMENT,LD - East Locality - Cost of Care,LD - East Cambs - Care,Supported Living
Cambridgeshire County Council,07-Oct-22,51301863186,"-1,345.96",WESTMINSTER HOMECARE LIMITED,CARE ESTABLISHMENT,LD - East Locality - Cost of Care,LD - East Cambs - Care,Supported Living
Cambridgeshire County Council,07-Oct-22,51301863186,"-1,345.96",WESTMINSTER HOMECARE LIMITED,CARE ESTABLISHMENT,LD - East Locality - Cost of Care,LD - East Cambs - Care,Supported Living
Cambridgeshire County Council,07-Oct-22,51301863186,"-1,345.96",WESTMINSTER HOMECARE LIMITED,CARE ESTABLISHMENT,LD - East Locality - Cost of Care,LD - East Cambs - Care,Supported Living
Cambridgeshire County Council,07-Oct-22,51301863186,"-1,345.96",WESTMINSTER HOMECARE LIMITED,CARE ESTABLISHMENT,LD - East Locality - Cost of Care,LD - East Cambs - Care,Supported Living
Cambridgeshire County Council,07-Oct-22,51301863186,"-1,345.96",WESTMINSTER HOMECARE LIMITED,CARE ESTABLISHMENT,LD - East Locality - Cost of Care,LD - East Cambs - Care,Supported Living
Cambridgeshire County Council,07-Oct-22,51301863186,"-1,345.96",WESTMINSTER HOMECARE LIMITED,CARE ESTABLISHMENT,LD - East Locality - Cost of Care,LD - East Cambs - Care,Supported Living
Cambridgeshire County Council,07-Oct-22,51301863186,"-1,345.96",WESTMINSTER HOMECARE LIMITED,CARE ESTABLISHMENT,LD - East Locality - Cost of Care,LD - East Cambs - Care,Supported Living
Cambridgeshire County Council,07-Oct-22,51301863186,"-1,345.96",WESTMINSTER HOMECARE LIMITED,CARE ESTABLISHMENT,LD - East Locality - Cost of Care,LD - East Cambs - Care,Supported Living
Cambridgeshire County Council,07-Oct-22,51301863186,"-1,345.96",WESTMINSTER HOMECARE LIMITED,CARE ESTABLISHMENT,LD - East Locality - Cost of Care,LD - East Cambs - Care,Supported Living
Cambridgeshire County Council,07-Oct-22,51301863186,"-1,345.96",WESTMINSTER HOMECARE LIMITED,CARE ESTABLISHMENT,LD - East Locality - Cost of Care,LD - East Cambs - Care,Supported Living
Cambridgeshire County Council,07-Oct-22,51301863186,"-1,345.96",WESTMINSTER HOMECARE LIMITED,CARE ESTABLISHMENT,LD - East Locality - Cost of Care,LD - East Cambs - Care,Supported Living
Cambridgeshire County Council,07-Oct-22,51301863186,"-1,345.96",WESTMINSTER HOMECARE LIMITED,CARE ESTABLISHMENT,LD - East Locality - Cost of Care,LD - East Cambs - Care,Supported Living
Cambridgeshire County Council,07-Oct-22,51301863186,"-1,345.96",WESTMINSTER HOMECARE LIMITED,CARE ESTABLISHMENT,LD - East Locality - Cost of Care,LD - East Cambs - Care,Supported Living
Cambridgeshire County Council,07-Oct-22,51301863214,"-1,292.06",WESTMINSTER HOMECARE LIMITED,CARE ESTABLISHMENT,LD - East Locality - Cost of Care,LD - East Cambs - Care,Supported Living
Cambridgeshire County Council,07-Oct-22,51301863214,"-1,292.06",WESTMINSTER HOMECARE LIMITED,CARE ESTABLISHMENT,LD - East Locality - Cost of Care,LD - East Cambs - Care,Supported Living
Cambridgeshire County Council,07-Oct-22,51301863214,"-1,292.06",WESTMINSTER HOMECARE LIMITED,CARE ESTABLISHMENT,LD - East Locality - Cost of Care,LD - East Cambs - Care,Supported Living
Cambridgeshire County Council,07-Oct-22,51301863214,"-1,292.06",WESTMINSTER HOMECARE LIMITED,CARE ESTABLISHMENT,LD - East Locality - Cost of Care,LD - East Cambs - Care,Supported Living
Cambridgeshire County Council,07-Oct-22,51301863214,"-1,292.06",WESTMINSTER HOMECARE LIMITED,CARE ESTABLISHMENT,LD - East Locality - Cost of Care,LD - East Cambs - Care,Supported Living
Cambridgeshire County Council,07-Oct-22,51301863214,"-1,292.06",WESTMINSTER HOMECARE LIMITED,CARE ESTABLISHMENT,LD - East Locality - Cost of Care,LD - East Cambs - Care,Supported Living
Cambridgeshire County Council,07-Oct-22,51301863214,"-1,292.06",WESTMINSTER HOMECARE LIMITED,CARE ESTABLISHMENT,LD - East Locality - Cost of Care,LD - East Cambs - Care,Supported Living
Cambridgeshire County Council,07-Oct-22,51301863214,"-1,292.06",WESTMINSTER HOMECARE LIMITED,CARE ESTABLISHMENT,LD - East Locality - Cost of Care,LD - East Cambs - Care,Supported Living
Cambridgeshire County Council,07-Oct-22,51301863214,"-1,292.06",WESTMINSTER HOMECARE LIMITED,CARE ESTABLISHMENT,LD - East Locality - Cost of Care,LD - East Cambs - Care,Supported Living
Cambridgeshire County Council,07-Oct-22,51301863214,"-1,292.06",WESTMINSTER HOMECARE LIMITED,CARE ESTABLISHMENT,LD - East Locality - Cost of Care,LD - East Cambs - Care,Supported Living
Cambridgeshire County Council,07-Oct-22,51301863214,"-1,292.06",WESTMINSTER HOMECARE LIMITED,CARE ESTABLISHMENT,LD - East Locality - Cost of Care,LD - East Cambs - Care,Supported Living
Cambridgeshire County Council,07-Oct-22,51301863214,"-1,292.06",WESTMINSTER HOMECARE LIMITED,CARE ESTABLISHMENT,LD - East Locality - Cost of Care,LD - East Cambs - Care,Supported Living
Cambridgeshire County Council,07-Oct-22,51301863214,"-1,292.06",WESTMINSTER HOMECARE LIMITED,CARE ESTABLISHMENT,LD - East Locality - Cost of Care,LD - East Cambs - Care,Supported Living
Cambridgeshire County Council,07-Oct-22,51301863214,"-1,292.06",WESTMINSTER HOMECARE LIMITED,CARE ESTABLISHMENT,LD - East Locality - Cost of Care,LD - East Cambs - Care,Supported Living
Cambridgeshire County Council,07-Oct-22,51301863214,"-1,292.06",WESTMINSTER HOMECARE LIMITED,CARE ESTABLISHMENT,LD - East Locality - Cost of Care,LD - East Cambs - Care,Supported Living
Cambridgeshire County Council,07-Oct-22,51301863214,"-1,292.06",WESTMINSTER HOMECARE LIMITED,CARE ESTABLISHMENT,LD - East Locality - Cost of Care,LD - East Cambs - Care,Supported Living
Cambridgeshire County Council,07-Oct-22,51301863214,"-1,292.06",WESTMINSTER HOMECARE LIMITED,CARE ESTABLISHMENT,LD - East Locality - Cost of Care,LD - East Cambs - Care,Supported Living
Cambridgeshire County Council,07-Oct-22,51301863214,"-1,292.06",WESTMINSTER HOMECARE LIMITED,CARE ESTABLISHMENT,LD - East Locality - Cost of Care,LD - East Cambs - Care,Supported Living
Cambridgeshire County Council,07-Oct-22,51301863214,"-1,292.06",WESTMINSTER HOMECARE LIMITED,CARE ESTABLISHMENT,LD - East Locality - Cost of Care,LD - East Cambs - Care,Supported Living
Cambridgeshire County Council,07-Oct-22,51301863214,"-1,292.06",WESTMINSTER HOMECARE LIMITED,CARE ESTABLISHMENT,LD - East Locality - Cost of Care,LD - East Cambs - Care,Supported Living
Cambridgeshire County Council,07-Oct-22,51301863214,"-1,292.06",WESTMINSTER HOMECARE LIMITED,CARE ESTABLISHMENT,LD - East Locality - Cost of Care,LD - East Cambs - Care,Supported Living
Cambridgeshire County Council,07-Oct-22,51301863214,"-1,292.06",WESTMINSTER HOMECARE LIMITED,CARE ESTABLISHMENT,LD - East Locality - Cost of Care,LD - East Cambs - Care,Supported Living
Cambridgeshire County Council,07-Oct-22,51301863214,"-1,292.06",WESTMINSTER HOMECARE LIMITED,CARE ESTABLISHMENT,LD - East Locality - Cost of Care,LD - East Cambs - Care,Supported Living
Cambridgeshire County Council,07-Oct-22,51301863214,"-1,292.06",WESTMINSTER HOMECARE LIMITED,CARE ESTABLISHMENT,LD - East Locality - Cost of Care,LD - East Cambs - Care,Supported Living
Cambridgeshire County Council,07-Oct-22,51301863214,"-1,292.06",WESTMINSTER HOMECARE LIMITED,CARE ESTABLISHMENT,LD - East Locality - Cost of Care,LD - East Cambs - Care,Supported Living
Cambridgeshire County Council,07-Oct-22,51301863214,"-1,292.06",WESTMINSTER HOMECARE LIMITED,CARE ESTABLISHMENT,LD - East Locality - Cost of Care,LD - East Cambs - Care,Supported Living
Cambridgeshire County Council,07-Oct-22,51301863214,"-1,292.06",WESTMINSTER HOMECARE LIMITED,CARE ESTABLISHMENT,LD - East Locality - Cost of Care,LD - East Cambs - Care,Supported Living
Cambridgeshire County Council,07-Oct-22,51301865184,"-1,259.28",Redacted Personal Data,INDIVIDUAL,Fostering,FCP allowances,Support and Grants to Foster Carers
Cambridgeshire County Council,07-Oct-22,51301863216,"-1,231.39",WESTMINSTER HOMECARE LIMITED,CARE ESTABLISHMENT,LD - East Locality - Cost of Care,LD - East Cambs - Care,Supported Living
Cambridgeshire County Council,07-Oct-22,51301863216,"-1,231.39",WESTMINSTER HOMECARE LIMITED,CARE ESTABLISHMENT,LD - East Locality - Cost of Care,LD - East Cambs - Care,Supported Living
Cambridgeshire County Council,07-Oct-22,51301863216,"-1,231.39",WESTMINSTER HOMECARE LIMITED,CARE ESTABLISHMENT,LD - East Locality - Cost of Care,LD - East Cambs - Care,Supported Living
Cambridgeshire County Council,07-Oct-22,51301863216,"-1,231.39",WESTMINSTER HOMECARE LIMITED,CARE ESTABLISHMENT,LD - East Locality - Cost of Care,LD - East Cambs - Care,Supported Living
Cambridgeshire County Council,07-Oct-22,51301863216,"-1,231.39",WESTMINSTER HOMECARE LIMITED,CARE ESTABLISHMENT,LD - East Locality - Cost of Care,LD - East Cambs - Care,Supported Living
Cambridgeshire County Council,07-Oct-22,51301863216,"-1,231.39",WESTMINSTER HOMECARE LIMITED,CARE ESTABLISHMENT,LD - East Locality - Cost of Care,LD - East Cambs - Care,Supported Living
Cambridgeshire County Council,07-Oct-22,51301863216,"-1,231.39",WESTMINSTER HOMECARE LIMITED,CARE ESTABLISHMENT,LD - East Locality - Cost of Care,LD - East Cambs - Care,Supported Living
Cambridgeshire County Council,07-Oct-22,51301863216,"-1,231.39",WESTMINSTER HOMECARE LIMITED,CARE ESTABLISHMENT,LD - East Locality - Cost of Care,LD - East Cambs - Care,Supported Living
Cambridgeshire County Council,07-Oct-22,51301863216,"-1,231.39",WESTMINSTER HOMECARE LIMITED,CARE ESTABLISHMENT,LD - East Locality - Cost of Care,LD - East Cambs - Care,Supported Living
Cambridgeshire County Council,07-Oct-22,51301863216,"-1,231.39",WESTMINSTER HOMECARE LIMITED,CARE ESTABLISHMENT,LD - East Locality - Cost of Care,LD - East Cambs - Care,Supported Living
Cambridgeshire County Council,07-Oct-22,51301863216,"-1,231.39",WESTMINSTER HOMECARE LIMITED,CARE ESTABLISHMENT,LD - East Locality - Cost of Care,LD - East Cambs - Care,Supported Living
Cambridgeshire County Council,07-Oct-22,51301863216,"-1,231.39",WESTMINSTER HOMECARE LIMITED,CARE ESTABLISHMENT,LD - East Locality - Cost of Care,LD - East Cambs - Care,Supported Living
Cambridgeshire County Council,07-Oct-22,51301863216,"-1,231.39",WESTMINSTER HOMECARE LIMITED,CARE ESTABLISHMENT,LD - East Locality - Cost of Care,LD - East Cambs - Care,Supported Living
Cambridgeshire County Council,07-Oct-22,51301863216,"-1,231.39",WESTMINSTER HOMECARE LIMITED,CARE ESTABLISHMENT,LD - East Locality - Cost of Care,LD - East Cambs - Care,Supported Living
Cambridgeshire County Council,07-Oct-22,51301863216,"-1,231.39",WESTMINSTER HOMECARE LIMITED,CARE ESTABLISHMENT,LD - East Locality - Cost of Care,LD - East Cambs - Care,Supported Living
Cambridgeshire County Council,07-Oct-22,51301863216,"-1,231.39",WESTMINSTER HOMECARE LIMITED,CARE ESTABLISHMENT,LD - East Locality - Cost of Care,LD - East Cambs - Care,Supported Living
Cambridgeshire County Council,07-Oct-22,51301863216,"-1,231.39",WESTMINSTER HOMECARE LIMITED,CARE ESTABLISHMENT,LD - East Locality - Cost of Care,LD - East Cambs - Care,Supported Living
Cambridgeshire County Council,07-Oct-22,51301863216,"-1,231.39",WESTMINSTER HOMECARE LIMITED,CARE ESTABLISHMENT,LD - East Locality - Cost of Care,LD - East Cambs - Care,Supported Living
Cambridgeshire County Council,07-Oct-22,51301863216,"-1,231.39",WESTMINSTER HOMECARE LIMITED,CARE ESTABLISHMENT,LD - East Locality - Cost of Care,LD - East Cambs - Care,Supported Living
Cambridgeshire County Council,07-Oct-22,51301863216,"-1,231.39",WESTMINSTER HOMECARE LIMITED,CARE ESTABLISHMENT,LD - East Locality - Cost of Care,LD - East Cambs - Care,Supported Living
Cambridgeshire County Council,07-Oct-22,51301863216,"-1,231.39",WESTMINSTER HOMECARE LIMITED,CARE ESTABLISHMENT,LD - East Locality - Cost of Care,LD - East Cambs - Care,Supported Living
Cambridgeshire County Council,07-Oct-22,51301863216,"-1,231.39",WESTMINSTER HOMECARE LIMITED,CARE ESTABLISHMENT,LD - East Locality - Cost of Care,LD - East Cambs - Care,Supported Living
Cambridgeshire County Council,07-Oct-22,51301863216,"-1,231.39",WESTMINSTER HOMECARE LIMITED,CARE ESTABLISHMENT,LD - East Locality - Cost of Care,LD - East Cambs - Care,Supported Living
Cambridgeshire County Council,07-Oct-22,51301863216,"-1,231.39",WESTMINSTER HOMECARE LIMITED,CARE ESTABLISHMENT,LD - East Locality - Cost of Care,LD - East Cambs - Care,Supported Living
Cambridgeshire County Council,07-Oct-22,51301863216,"-1,231.39",WESTMINSTER HOMECARE LIMITED,CARE ESTABLISHMENT,LD - East Locality - Cost of Care,LD - East Cambs - Care,Supported Living
Cambridgeshire County Council,07-Oct-22,51301863216,"-1,231.39",WESTMINSTER HOMECARE LIMITED,CARE ESTABLISHMENT,LD - East Locality - Cost of Care,LD - East Cambs - Care,Supported Living
Cambridgeshire County Council,07-Oct-22,51301863216,"-1,231.39",WESTMINSTER HOMECARE LIMITED,CARE ESTABLISHMENT,LD - East Locality - Cost of Care,LD - East Cambs - Care,Supported Living
Cambridgeshire County Council,07-Oct-22,51301863214,"-1,191.79",WESTMINSTER HOMECARE LIMITED,CARE ESTABLISHMENT,LD - East Locality - Cost of Care,LD - East Cambs - Care,Supported Living
Cambridgeshire County Council,07-Oct-22,51301863214,"-1,191.79",WESTMINSTER HOMECARE LIMITED,CARE ESTABLISHMENT,LD - East Locality - Cost of Care,LD - East Cambs - Care,Supported Living
Cambridgeshire County Council,07-Oct-22,51301863214,"-1,191.79",WESTMINSTER HOMECARE LIMITED,CARE ESTABLISHMENT,LD - East Locality - Cost of Care,LD - East Cambs - Care,Supported Living
Cambridgeshire County Council,07-Oct-22,51301863214,"-1,191.79",WESTMINSTER HOMECARE LIMITED,CARE ESTABLISHMENT,LD - East Locality - Cost of Care,LD - East Cambs - Care,Supported Living
Cambridgeshire County Council,07-Oct-22,51301863214,"-1,191.79",WESTMINSTER HOMECARE LIMITED,CARE ESTABLISHMENT,LD - East Locality - Cost of Care,LD - East Cambs - Care,Supported Living
Cambridgeshire County Council,07-Oct-22,51301863214,"-1,191.79",WESTMINSTER HOMECARE LIMITED,CARE ESTABLISHMENT,LD - East Locality - Cost of Care,LD - East Cambs - Care,Supported Living
Cambridgeshire County Council,07-Oct-22,51301863214,"-1,191.79",WESTMINSTER HOMECARE LIMITED,CARE ESTABLISHMENT,LD - East Locality - Cost of Care,LD - East Cambs - Care,Supported Living
Cambridgeshire County Council,07-Oct-22,51301863214,"-1,191.79",WESTMINSTER HOMECARE LIMITED,CARE ESTABLISHMENT,LD - East Locality - Cost of Care,LD - East Cambs - Care,Supported Living
Cambridgeshire County Council,07-Oct-22,51301863214,"-1,191.79",WESTMINSTER HOMECARE LIMITED,CARE ESTABLISHMENT,LD - East Locality - Cost of Care,LD - East Cambs - Care,Supported Living
Cambridgeshire County Council,07-Oct-22,51301863214,"-1,191.79",WESTMINSTER HOMECARE LIMITED,CARE ESTABLISHMENT,LD - East Locality - Cost of Care,LD - East Cambs - Care,Supported Living
Cambridgeshire County Council,07-Oct-22,51301863214,"-1,191.79",WESTMINSTER HOMECARE LIMITED,CARE ESTABLISHMENT,LD - East Locality - Cost of Care,LD - East Cambs - Care,Supported Living
Cambridgeshire County Council,07-Oct-22,51301863214,"-1,191.79",WESTMINSTER HOMECARE LIMITED,CARE ESTABLISHMENT,LD - East Locality - Cost of Care,LD - East Cambs - Care,Supported Living
Cambridgeshire County Council,07-Oct-22,51301863214,"-1,191.79",WESTMINSTER HOMECARE LIMITED,CARE ESTABLISHMENT,LD - East Locality - Cost of Care,LD - East Cambs - Care,Supported Living
Cambridgeshire County Council,07-Oct-22,51301863214,"-1,191.79",WESTMINSTER HOMECARE LIMITED,CARE ESTABLISHMENT,LD - East Locality - Cost of Care,LD - East Cambs - Care,Supported Living
Cambridgeshire County Council,07-Oct-22,51301863214,"-1,191.79",WESTMINSTER HOMECARE LIMITED,CARE ESTABLISHMENT,LD - East Locality - Cost of Care,LD - East Cambs - Care,Supported Living
Cambridgeshire County Council,07-Oct-22,51301863214,"-1,191.79",WESTMINSTER HOMECARE LIMITED,CARE ESTABLISHMENT,LD - East Locality - Cost of Care,LD - East Cambs - Care,Supported Living
Cambridgeshire County Council,07-Oct-22,51301863214,"-1,191.79",WESTMINSTER HOMECARE LIMITED,CARE ESTABLISHMENT,LD - East Locality - Cost of Care,LD - East Cambs - Care,Supported Living
Cambridgeshire County Council,07-Oct-22,51301863214,"-1,191.79",WESTMINSTER HOMECARE LIMITED,CARE ESTABLISHMENT,LD - East Locality - Cost of Care,LD - East Cambs - Care,Supported Living
Cambridgeshire County Council,07-Oct-22,51301863214,"-1,191.79",WESTMINSTER HOMECARE LIMITED,CARE ESTABLISHMENT,LD - East Locality - Cost of Care,LD - East Cambs - Care,Supported Living
Cambridgeshire County Council,07-Oct-22,51301863214,"-1,191.79",WESTMINSTER HOMECARE LIMITED,CARE ESTABLISHMENT,LD - East Locality - Cost of Care,LD - East Cambs - Care,Supported Living
Cambridgeshire County Council,07-Oct-22,51301863214,"-1,191.79",WESTMINSTER HOMECARE LIMITED,CARE ESTABLISHMENT,LD - East Locality - Cost of Care,LD - East Cambs - Care,Supported Living
Cambridgeshire County Council,07-Oct-22,51301863214,"-1,191.79",WESTMINSTER HOMECARE LIMITED,CARE ESTABLISHMENT,LD - East Locality - Cost of Care,LD - East Cambs - Care,Supported Living
Cambridgeshire County Council,07-Oct-22,51301863214,"-1,191.79",WESTMINSTER HOMECARE LIMITED,CARE ESTABLISHMENT,LD - East Locality - Cost of Care,LD - East Cambs - Care,Supported Living
Cambridgeshire County Council,07-Oct-22,51301863214,"-1,191.79",WESTMINSTER HOMECARE LIMITED,CARE ESTABLISHMENT,LD - East Locality - Cost of Care,LD - East Cambs - Care,Supported Living
Cambridgeshire County Council,07-Oct-22,51301863214,"-1,191.79",WESTMINSTER HOMECARE LIMITED,CARE ESTABLISHMENT,LD - East Locality - Cost of Care,LD - East Cambs - Care,Supported Living
Cambridgeshire County Council,07-Oct-22,51301863214,"-1,191.79",WESTMINSTER HOMECARE LIMITED,CARE ESTABLISHMENT,LD - East Locality - Cost of Care,LD - East Cambs - Care,Supported Living
Cambridgeshire County Council,07-Oct-22,51301863214,"-1,191.79",WESTMINSTER HOMECARE LIMITED,CARE ESTABLISHMENT,LD - East Locality - Cost of Care,LD - East Cambs - Care,Supported Living
Cambridgeshire County Council,07-Oct-22,51301863195,"-1,158.41",AFFINITY TRUST,CARE ESTABLISHMENT,LD - South Locality - Cost of Care,LD - South Cambs - Care,Supported Living
Cambridgeshire County Council,07-Oct-22,51301863195,"-1,158.41",AFFINITY TRUST,CARE ESTABLISHMENT,LD - South Locality - Cost of Care,LD - South Cambs - Care,Supported Living
Cambridgeshire County Council,07-Oct-22,51301863195,"-1,158.41",AFFINITY TRUST,CARE ESTABLISHMENT,LD - South Locality - Cost of Care,LD - South Cambs - Care,Supported Living
Cambridgeshire County Council,07-Oct-22,51301863195,"-1,158.41",AFFINITY TRUST,CARE ESTABLISHMENT,LD - South Locality - Cost of Care,LD - South Cambs - Care,Supported Living
Cambridgeshire County Council,07-Oct-22,51301863186,"-1,015.36",WESTMINSTER HOMECARE LIMITED,CARE ESTABLISHMENT,LD - East Locality - Cost of Care,LD - East Cambs - Care,Supported Living
Cambridgeshire County Council,07-Oct-22,51301863186,"-1,015.36",WESTMINSTER HOMECARE LIMITED,CARE ESTABLISHMENT,LD - East Locality - Cost of Care,LD - East Cambs - Care,Supported Living
Cambridgeshire County Council,07-Oct-22,51301863186,"-1,015.36",WESTMINSTER HOMECARE LIMITED,CARE ESTABLISHMENT,LD - East Locality - Cost of Care,LD - East Cambs - Care,Supported Living
Cambridgeshire County Council,07-Oct-22,51301863186,"-1,015.36",WESTMINSTER HOMECARE LIMITED,CARE ESTABLISHMENT,LD - East Locality - Cost of Care,LD - East Cambs - Care,Supported Living
Cambridgeshire County Council,07-Oct-22,51301863186,"-1,015.36",WESTMINSTER HOMECARE LIMITED,CARE ESTABLISHMENT,LD - East Locality - Cost of Care,LD - East Cambs - Care,Supported Living
Cambridgeshire County Council,07-Oct-22,51301863186,"-1,015.36",WESTMINSTER HOMECARE LIMITED,CARE ESTABLISHMENT,LD - East Locality - Cost of Care,LD - East Cambs - Care,Supported Living
Cambridgeshire County Council,07-Oct-22,51301863186,"-1,015.36",WESTMINSTER HOMECARE LIMITED,CARE ESTABLISHMENT,LD - East Locality - Cost of Care,LD - East Cambs - Care,Supported Living
Cambridgeshire County Council,07-Oct-22,51301863186,"-1,015.36",WESTMINSTER HOMECARE LIMITED,CARE ESTABLISHMENT,LD - East Locality - Cost of Care,LD - East Cambs - Care,Supported Living
Cambridgeshire County Council,07-Oct-22,51301863186,"-1,015.36",WESTMINSTER HOMECARE LIMITED,CARE ESTABLISHMENT,LD - East Locality - Cost of Care,LD - East Cambs - Care,Supported Living
Cambridgeshire County Council,07-Oct-22,51301863186,"-1,015.36",WESTMINSTER HOMECARE LIMITED,CARE ESTABLISHMENT,LD - East Locality - Cost of Care,LD - East Cambs - Care,Supported Living
Cambridgeshire County Council,07-Oct-22,51301863186,"-1,015.36",WESTMINSTER HOMECARE LIMITED,CARE ESTABLISHMENT,LD - East Locality - Cost of Care,LD - East Cambs - Care,Supported Living
Cambridgeshire County Council,07-Oct-22,51301863186,"-1,015.36",WESTMINSTER HOMECARE LIMITED,CARE ESTABLISHMENT,LD - East Locality - Cost of Care,LD - East Cambs - Care,Supported Living
Cambridgeshire County Council,07-Oct-22,51301863186,"-1,015.36",WESTMINSTER HOMECARE LIMITED,CARE ESTABLISHMENT,LD - East Locality - Cost of Care,LD - East Cambs - Care,Supported Living
Cambridgeshire County Council,07-Oct-22,51301863186,"-1,015.36",WESTMINSTER HOMECARE LIMITED,CARE ESTABLISHMENT,LD - East Locality - Cost of Care,LD - East Cambs - Care,Supported Living
Cambridgeshire County Council,07-Oct-22,51301863186,"-1,015.36",WESTMINSTER HOMECARE LIMITED,CARE ESTABLISHMENT,LD - East Locality - Cost of Care,LD - East Cambs - Care,Supported Living
Cambridgeshire County Council,07-Oct-22,51301863186,"-1,015.36",WESTMINSTER HOMECARE LIMITED,CARE ESTABLISHMENT,LD - East Locality - Cost of Care,LD - East Cambs - Care,Supported Living
Cambridgeshire County Council,07-Oct-22,51301863186,"-1,015.36",WESTMINSTER HOMECARE LIMITED,CARE ESTABLISHMENT,LD - East Locality - Cost of Care,LD - East Cambs - Care,Supported Living
Cambridgeshire County Council,07-Oct-22,51301863186,"-1,015.36",WESTMINSTER HOMECARE LIMITED,CARE ESTABLISHMENT,LD - East Locality - Cost of Care,LD - East Cambs - Care,Supported Living
Cambridgeshire County Council,07-Oct-22,51301863186,"-1,015.36",WESTMINSTER HOMECARE LIMITED,CARE ESTABLISHMENT,LD - East Locality - Cost of Care,LD - East Cambs - Care,Supported Living
Cambridgeshire County Council,07-Oct-22,51301863186,"-1,015.36",WESTMINSTER HOMECARE LIMITED,CARE ESTABLISHMENT,LD - East Locality - Cost of Care,LD - East Cambs - Care,Supported Living
Cambridgeshire County Council,07-Oct-22,51301863186,"-1,015.36",WESTMINSTER HOMECARE LIMITED,CARE ESTABLISHMENT,LD - East Locality - Cost of Care,LD - East Cambs - Care,Supported Living
Cambridgeshire County Council,07-Oct-22,51301863186,"-1,015.36",WESTMINSTER HOMECARE LIMITED,CARE ESTABLISHMENT,LD - East Locality - Cost of Care,LD - East Cambs - Care,Supported Living
Cambridgeshire County Council,07-Oct-22,51301863186,"-1,015.36",WESTMINSTER HOMECARE LIMITED,CARE ESTABLISHMENT,LD - East Locality - Cost of Care,LD - East Cambs - Care,Supported Living
Cambridgeshire County Council,07-Oct-22,51301863186,"-1,015.36",WESTMINSTER HOMECARE LIMITED,CARE ESTABLISHMENT,LD - East Locality - Cost of Care,LD - East Cambs - Care,Supported Living
Cambridgeshire County Council,07-Oct-22,51301863186,"-1,015.36",WESTMINSTER HOMECARE LIMITED,CARE ESTABLISHMENT,LD - East Locality - Cost of Care,LD - East Cambs - Care,Supported Living
Cambridgeshire County Council,07-Oct-22,51301863186,"-1,015.36",WESTMINSTER HOMECARE LIMITED,CARE ESTABLISHMENT,LD - East Locality - Cost of Care,LD - East Cambs - Care,Supported Living
Cambridgeshire County Council,07-Oct-22,51301863186,"-1,015.36",WESTMINSTER HOMECARE LIMITED,CARE ESTABLISHMENT,LD - East Locality - Cost of Care,LD - East Cambs - Care,Supported Living
Cambridgeshire County Council,07-Oct-22,51301863222,-997.13,26A LEROWE ROAD (REGARD),CARE ESTABLISHMENT,AMH Hunts and Fens - care,E Cambs & Fenland Mental Health Team,Supported Living
Cambridgeshire County Council,07-Oct-22,51301863222,-997.13,26A LEROWE ROAD (REGARD),CARE ESTABLISHMENT,AMH Hunts and Fens - care,E Cambs & Fenland Mental Health Team,Supported Living
Cambridgeshire County Council,07-Oct-22,51301863222,-997.13,26A LEROWE ROAD (REGARD),CARE ESTABLISHMENT,AMH Hunts and Fens - care,E Cambs & Fenland Mental Health Team,Supported Living
Cambridgeshire County Council,07-Oct-22,51301863222,-997.13,26A LEROWE ROAD (REGARD),CARE ESTABLISHMENT,AMH Hunts and Fens - care,E Cambs & Fenland Mental Health Team,Supported Living
Cambridgeshire County Council,07-Oct-22,51301863222,-997.13,26A LEROWE ROAD (REGARD),CARE ESTABLISHMENT,AMH Hunts and Fens - care,E Cambs & Fenland Mental Health Team,Supported Living
Cambridgeshire County Council,07-Oct-22,51301863222,-997.13,26A LEROWE ROAD (REGARD),CARE ESTABLISHMENT,AMH Hunts and Fens - care,E Cambs & Fenland Mental Health Team,Supported Living
Cambridgeshire County Council,07-Oct-22,51301863222,-997.13,26A LEROWE ROAD (REGARD),CARE ESTABLISHMENT,AMH Hunts and Fens - care,E Cambs & Fenland Mental Health Team,Supported Living
Cambridgeshire County Council,07-Oct-22,51301863222,-997.13,26A LEROWE ROAD (REGARD),CARE ESTABLISHMENT,AMH Hunts and Fens - care,E Cambs & Fenland Mental Health Team,Supported Living
Cambridgeshire County Council,07-Oct-22,51301863222,-997.13,26A LEROWE ROAD (REGARD),CARE ESTABLISHMENT,AMH Hunts and Fens - care,E Cambs & Fenland Mental Health Team,Supported Living
Cambridgeshire County Council,07-Oct-22,51301863222,-997.13,26A LEROWE ROAD (REGARD),CARE ESTABLISHMENT,AMH Hunts and Fens - care,E Cambs & Fenland Mental Health Team,Supported Living
Cambridgeshire County Council,07-Oct-22,51301863222,-997.13,26A LEROWE ROAD (REGARD),CARE ESTABLISHMENT,AMH Hunts and Fens - care,E Cambs & Fenland Mental Health Team,Supported Living
Cambridgeshire County Council,07-Oct-22,51301863222,-997.13,26A LEROWE ROAD (REGARD),CARE ESTABLISHMENT,AMH Hunts and Fens - care,E Cambs & Fenland Mental Health Team,Supported Living
Cambridgeshire County Council,07-Oct-22,51301863222,-997.13,26A LEROWE ROAD (REGARD),CARE ESTABLISHMENT,AMH Hunts and Fens - care,E Cambs & Fenland Mental Health Team,Supported Living
Cambridgeshire County Council,07-Oct-22,51301863222,-997.13,26A LEROWE ROAD (REGARD),CARE ESTABLISHMENT,AMH Hunts and Fens - care,E Cambs & Fenland Mental Health Team,Supported Living
Cambridgeshire County Council,07-Oct-22,51301863222,-997.13,26A LEROWE ROAD (REGARD),CARE ESTABLISHMENT,AMH Hunts and Fens - care,E Cambs & Fenland Mental Health Team,Supported Living
Cambridgeshire County Council,07-Oct-22,51301863222,-997.13,26A LEROWE ROAD (REGARD),CARE ESTABLISHMENT,AMH Hunts and Fens - care,E Cambs & Fenland Mental Health Team,Supported Living
Cambridgeshire County Council,07-Oct-22,51301863222,-997.13,26A LEROWE ROAD (REGARD),CARE ESTABLISHMENT,AMH Hunts and Fens - care,E Cambs & Fenland Mental Health Team,Supported Living
Cambridgeshire County Council,07-Oct-22,51301863222,-997.13,26A LEROWE ROAD (REGARD),CARE ESTABLISHMENT,AMH Hunts and Fens - care,E Cambs & Fenland Mental Health Team,Supported Living
Cambridgeshire County Council,07-Oct-22,51301863222,-997.13,26A LEROWE ROAD (REGARD),CARE ESTABLISHMENT,AMH Hunts and Fens - care,E Cambs & Fenland Mental Health Team,Supported Living
Cambridgeshire County Council,07-Oct-22,51301863222,-997.13,26A LEROWE ROAD (REGARD),CARE ESTABLISHMENT,AMH Hunts and Fens - care,E Cambs & Fenland Mental Health Team,Supported Living
Cambridgeshire County Council,07-Oct-22,51301863222,-997.13,26A LEROWE ROAD (REGARD),CARE ESTABLISHMENT,AMH Hunts and Fens - care,E Cambs & Fenland Mental Health Team,Supported Living
